{"text_format":"1","workbook":"xlsx","n_sheets":11,"sheets":["Cover","Instructions","Hazard Glossary","Risk Matrix","Information","Assumptions","Hazard Data Entry","Data Scores","Risk Summary","Vulnerability Report","Contacts"],"not_rendered":{"charts":6,"images":5,"macros":1,"external_links":0,"defined_names":15,"comments":0,"pivot_tables":0},"unopened":[],"bounds":{"document_bytes":16777216,"sheet_cells":100000,"rows_first":2000,"rows_last":500,"rows_between":2000,"halvings":0,"cell_chars":16384,"cell_head_chars":4096},"cells_cut":0,"cells_raw":0,"read":"whole","date_system":"1900"}

{"sheet":"Cover","index":0,"n_rows":28,"n_cols":13,"rows_kept":28,"cut":false,"hidden":false,"merged":[[27,12,27,16]]}
[]
[]
[]
[]
[]
[]
[null,null,"เครื่องมือประมาณการณ์ความเสี่ยงอย่างรวดเร็ว"]
[null,null,"Quick Risk Estimation (QRE) Tool"]
[]
[]
[]
[]
[]
[]
[]
[]
[]
[]
[]
[]
[]
[]
[]
[]
[]
[]
[]
[null,null,null,null,null,null,null,null,null,null,null,null,"หมายเหตุ: ไฟล์เครื่องมือนี้อาจทำงานได้ไม่สมบูรณ์ หากใช้ MS Excel เวอร์ชั่นก่อนปีค.ศ. 2010 หรือเวอร์ชั่นเฉพาะกิจ เช่น เวอร์ชั่นสำหรับนักเรียน นักศึกษา"]

{"sheet":"Instructions","index":1,"n_rows":197,"n_cols":2,"rows_kept":197,"cut":false,"hidden":false,"merged":[]}
[{"$f":"MdlTle","v":"Quick Risk Estimation (QRE) Tool"}]
[{"$f":"MID(CELL(\"filename\",A1),FIND(\"]\",CELL(\"filename\",A1))+1,255)","v":"Instructions"}]
["คำแนะนำ"]
[]
[null,"เมืองที่มีความรีซีเลียนส์ (Resilient) สามารถพร้อมรับและฟื้นกลับเร็วนั้น จะสามารถลด ต้านทาน พร้อมรับมือ และฟื้นฟูตนเองจากผลกระทบความเสียหายซึ่งเกิดจากภัยได้อย่างมีประสทธิภาพและทันท่วงที เนื่องจากสามารถรักษาและฟื้นฟูโครงสร้างและบริการพื้นฐานที่จำเป็น"]
[]
[null,"กรอบวัตถุประสงค์ที่ใช้ในการตัดสินใจ (Purpose of Decision Making Framework)"]
[]
[null,"เครื่องมือประมาณการณ์ความเสี่ยงอย่างรวดเร็ว (QRE Tool)  ได้รับการออกแบบขึ้นมาเพื่อใช้บ่งชี้และสร้างความเข้าใจถึงความเสี่ยง/สถานการณ์ความตึงเครียด/ภาวะช๊อค อันที่จะเกิดขึ้นได้ทั้งในปัจจุบันและอนาคต  ซึ่งสิ่งเหล่านี้เป็นภัยคุกคามสร้างความเสียหายแก่ทั้งแก่ชีวิตมนุษย์และทรัพย์สิน ทั้งนี้ เครื่องมือ QRE ไม่ใช่เครื่องมือที่ใช้ในการประเมินความเสี่ยงอย่างเต็มรูปแบบ  หากแต่เป็นเครื่องมือสร้างกระบวนการการมีส่วนร่วมของภาคีที่เกี่ยวข้องเพื่อสร้างความเข้าใจร่วมกันในเรื่องความเสี่ยง\n \nเครื่องมือ QRE จะแสดงผลการประเมินความเสี่ยงในรูปแบบกระดานแสดงผล (dashboard-style) โดยคำนึงถึงกิจกรรมที่มาตรการที่ได้ดำเนินการไปแล้ว พร้อมสะท้อนให้เห็นถึงความเสี่ยงและภัยที่อาจเกิดขึ้นและส่งผลต่อชีวิตมนุษย์และทรัพย์สิน รวมทั้งผลกระทบของความเสี่ยงและภัยดังกล่าวในพื้นที่ และ/หรือ สินทรัพย์ใดสินทรัพย์หนึ่งที่เลือกหรือระบุไว้ในการประเมิน"]
[null,"เครื่องมือ QRE จำแนกประเภทของภัยตามที่ได้มีกำหนดไว้โดยสำนักงานเพื่อการลดความเสี่ยงภัยพิบัติแห่งองค์การสหประชาชาติ (United Nations Office for Disaster Risk Reduction หรือ UNDRR) โดยตัวชี้วัดภัยของเครื่องมือ QRE มีความสอดคล้องไปกับหลักสำคัญ 10 ประการเพื่อการสร้างเมืองให้พร้อมรับและฟื้นกลับเร็ว (10 Essential for Making Cities Resilient) ซึ่งอยู่ในสาระและบริบทของกรอบเซนไดเพื่อการลดความเสี่ยงจากภัยพิบัติปี 2015 – 2030 (Sendai Framework) และเป้าหมายการพัฒนาที่ยั่งยืน (Sustainable development Goals: SDGs)"]
[null,"Underpinning the QRE tool, a Decision Making Framework (DMF) has been developed for the purposes of providing the user with the necessary guidance to assess and subsequently score the exposure and vulnerability of the relevant hazards, as well as the level of current response or actions undertaken with respect to those hazards. The DMF, which is incorporated into this QRE Tool, includes a set of instructions, definitions (i.e. Glossary) and an underpinning Risk Matrix that guides the user in entering data into the QRE tool, providing the user with indicative scoring criteria and measurement scales as described in the Assumptions section."]
[]
[null,"ใครสามารถใช้เครืองมือ QRE ได้บ้าง"]
[]
[null,"เครื่องมือ QRE สามารถใช้ได้กับทุกเมืองที่มีความสนใจ โดยเฉพาะเมืองที่เข้าร่วมแคมเปญ Making Cities Resilient (2010-2020) และโครงการ Making Cities Resilient 2030 (MCR2030)"]
[null,"ผู้ใช้เครื่องมือนั้นอาจจะรวมถึง:"]
[null,"    - หน่วยงานท้องถิ่น เช่น นักวางแผนและกำหนดนโยบายการพัฒนาเมือง เจ้าหน้าที่/พนักงานที่ทำงานเกี่ยวข้องกับการประเมินความเสี่ยง รวมไปถึงพนักงานที่ปฏิบัติงานเพื่อรับมือกับภาวะฉุกเฉินในบริบทต่างๆ เช่น การจัดการน้ำท่วม เป็นต้น"]
[null,"    - ภาคีเครืองข่ายของเมืองและท้องถิ่น"]
[null,"เครื่องมือ QRE นั้นใช้ได้ดีผ่านกระบวนการประเมินโดยการมีส่วมร่วมของภาคีที่เกี่ยวข้อง เช่นในงานสัมมนาเชิงปฏิบัติการ และไม่ควรใช้โดยนักประเมินเพียงคนใดคนหนึ่ง"]
[]
[null,"ข้อแนะนำสำหรับผู้ใช้เครื่องมือ QRE"]
[]
[null,"เครื่องมือ QRE ช่วยให้ผู้ใช้สามารถประเมินความเสี่ยงอย่างง่ายๆ สำหรับพื้นที่ ภาคส่วน หรือสินทรัพย์ที่ต้องการได้ด้วยตัวเอง โดยกระบวนการประเมินโดยใช้เครื่องมือ QRE จะอาศัยข้อมูลจากประสบการณ์ที่ผ่านมา หลักฐาน การวิจัย และการปรึกษาหารือกับภาคีที่เกี่ยวข้อง ซึ่งกระบวนการเพื่อการแลกเปลี่ยนและหารือข้อมูลดังกล่าวจะช่วยสร้างความเข้าใจ การมีส่วนร่วม ความเป็นเจ้าของ และการสร้างความสอดคล้องระหว่างภาคีเครื่อข่ายที่เกี่ยวข้อง"]
[]
[null,"คำแนะนำสำหรับการใช้เครื่องมือ QRE  มีขั้นตอนพร้อมคำอธิบายตัวอย่างกรณีศึกษา ดังรายละเอียดต่อไปนี้"]
[]
[null,"ขั้นตอนที่ 1  ระบุข้อมูลสถานที่ ชื่อเมือง ภูมิภาค หรือสินทรัพย์ที่จะทำการประเมิน"]
[null,"เริ่มการใช้เครื่องมือ QRE โดยไปที่แถบ \"Information\" เพื่อกรอกข้อมูลต่าง ๆ เช่น ระบุชื่อเมือง สถานที่ หรือ ภูมิภาค หรือสินทรัพย์ที่ต้องการประมาณการณ์ความเสี่ยง รวมทั้งชื่อผู้ประเมิน วันที่ทำการประเมินเสร็จสิ้นหรือวันที่ตรวจทานการประเมิน เพื่อเป็นการสร้างกรอบและขอบข่ายในการประเมิน"]
[]
[null,"ขั้นตอนที่ 2 ศึกษาประเภทภัย และประเภทภัยย่อย"]
[null,"ไปที่แถบ \"Hazard Glossary\""]
[null,"> ศึกษาประเภทภัยและประเภทภัยย่อยที่เกี่ยวข้องกับเมือง สถานที่ หรือ ภูมิภาค หรือ สินทรัพย์ที่เลือก"]
[]
[null,"หมายเหตุ: ประเภทภัยและประเภทภัยย่อยนั้นแบ่งตามเกณฑ์ที่กำหนดโดย UNDRR ตามกรอบเซนได \nแถบ \"Hazard Glossary\" มีอภิธานศัพท์ที่เกี่ยวกับภัย (ศัพท์และความหมาย)\nแถบ \"Assumptions\" มีข้อมูลเกี่ยวกับประเภทภัยและประเภทภัยย่อย ภัยหลัก ภายใต้กรอบเซนได \nโดยทั้งสองแถบจะช่วยให้คุณทำขั้นตอนที่ 2 3 และ 4 ได้  ทั้งนี้ การแบ่งประเภทภัยดังกล่าวมีไว้เป็นแนวทางเท่านั้น โดยภัยย่อยที่เกิดอาจมีความเกี่ยวพันกับภัยหลักที่แตกต่างกันได้ตามบริบทของแต่ละพื้นที่"]
[]
[null,"กรณีศึกษา:"]
[null,"พื้นที่ที่ถูกเลือกเป็นกรณีศึกษาในการประเมินความเสี่ยงครั้งนี้ คือ เมืองแมคเคย์  รัฐควีนแลนด์  ประเทศออสเตรเลีย ซึ่งตั้งอยู่ในพื้นที่ของพายุไซโคลนเขตร้อนเด็บบี้ซึ่งเกิดขึ้นในเดือน มีนาคม 2017 "]
[null,"เมืองแมคเคย์  ตั้งอยู่ทางตอนเหนือของรัฐควีนแลนด์ซึ่งอยู่ทางชายฝั่งทิศตะวันออกของประเทศออสเตอรเลีย เมืองตั้งอยู่บนแม่น้ำไพโอเนียร์และเทือกเขาคลาร์กซึ่งตั้งอยู่ทางตะวันตกของเมือง เมืองแมคเคย์เป็นภูมิภาคเกษตรขนาดใหญ่และมีชื่อเสียงเรื่องการทำสวนอ้อยของประเทศ เมืองมีประชากรมากว่า 120,000 คนที่พักอาศัยกระจายออกไปตามความเหมาะสมในการอยู่รอดตั้งแต่ชายทะเล ไปถึงชุมชนชนบทเล็กๆ "]
[null,"บนพื้นฐานของภูมิอากาศแบบกึ่งร้อนชื้นและประวัติภัยพิบัติของเมืองแม็คเคย์ ทำให้เมืองมีความเสี่ยงในเหตุการณ์ต่อไปนี้: อุทกภัย แผ่นดินถล่ม พายุรุนแรงด้วยลูกเห็บ และลมแรงที่สามารถสร้างความเสียหายได้ ไฟป่า คลื่นความร้อน พายุหมุนนอกเขตร้าน (พายุไซโคลน) แผ่นดินไหว และคลื่นบนผิวน้ำ"]
[null,"จุดประสงค์ของการประเมินความเสี่ยงในกรณีศึกษานั้นเพื่อเสริมสร้างความเข้าใจระดับของความเสี่ยงของภัยในกรณีศึกษา (อุทกภัย แผ่นดินถล่ม คลื่นถล่ม และพายุหมุนนอกเขตร้อน)"]
[null,"ซึ่งภัยในกรณีศึกษานั้นอยู่ในกลุ่มภัยธรรมชาติ ซึ่งแบ่งโดย UNDRR ภายใต้กรอบเซนได"]
[null,"คำจำกัดความของประเภทภัยนั้นถูกระบุในแถบ \"Hazard Glossary\" ซึ่งมีประเภทภัยดังนี้:"]
[null," - ภัยทางธรณีวิทยา"]
[null," - ภัยทางอุทกวิทยา"]
[null," - ภัยทางอุตุนิยมวิทยา"]
[null," - ภัยทางภูมิอากาศวิทยา"]
[null," - ภัยทางชีววิทยา"]
[null," - ภัยจากนอกโลก"]
[null," - ภัยที่เกิดจากการกระทำของมนุษย์"]
[null,"ผลที่ได้จากการศึกษาประเภทของภัยและภัยย่อยในแถบ \"Hazard Glossary\" เราจะสามารถเลือกประเภทภัยย่อยได้ในแถบ \"Hazard Data Entry\""]
[]
[null,"ขั้นตอนที่ 3 ระบุภัยที่สำคัญ"]
[null,"ไปที่ คอลัมน์ B ของแถบ \"Hazard Data Entry\""]
[null,"> ในคอลัมน์ B ให้เลือกประเภทภัยและประเภทภัยย่อย (ที่ทำในขั้นตอนที่ 2)"]
[null,"> ตัวเลือกของประเภทภัยย่อยของแต่ละประเภทภัยจะมีให้เลือกอัตโนมัติ"]
[]
[null,"กรณีศึกษา:"]
[null,"ในแถบ \"Hazard Glossary\" ภัยหลักของประเภทภัยนั้นจะมีให้เลือกในคอลัมน์ A"]
[null," - H2 ภัยทางอุทกวิทยา: ให้เลือก อุทกภัย แผ่นดินถล่ม และคลื่นบนผิวน้ำ ในแต่ละแถว"]
[null," - H3 ภัยทางอุตุนิยมวิทยา: ให้เลือกพายุหมุนนอกเขตร้อน "]
[]
[null,"ขั้นตอนที่ 4 เลือกเหตุการณ์ที่เป็นภัยอันตราย"]
[null,"ไปที่ คอลัมน์ C ของแถบ \"Hazard Data Entry\""]
[null,"> ในแต่ละประเภทภัยย่อย ให้เลือกเหตุการณ์ที่เป็นภัยอันตรายที่เป็นผลตามมาจาก ประเภทภัยย่อยนั้นๆ "]
[]
[null,"หมายเหตุ: ถ้ามีประเภทภัยอื่นๆที่สำคัญ สามารถเพิ่มได้ที่แถบ \"Assumptions\" ที่เซลล์ B92-96 โดยภัยดังกล่าวแสดงภายใต้  \"H8 - ภัยสำคัญอื่นๆ (โปรดระบุ)\" ในแถบ 'Hazard Data Entry' "]
[]
[null,"กรณีศึกษา:"]
[null,"การเลือกเหตุการณ์ที่เป็นภัยอันตรายในคอลัมน์ C ของเมืองแมคเคย์นั้น ใช้พื้นฐานของข้อมูลทางประวัติภัย การวิจัย หรือการประชุมปรึกษาหารือกับภาคีที่เกี่ยวข้อง โดยใช้ข้อมูลของแถบ \"Hazard Glossary\" และ แถบ \"Assumptions\" (หนึ่งแถวต่อหนึ่งภัยที่เลือก)"]
[null," - อุทกภัย เลือก น้ำล้นตลิ่ง\n - อุทกภัย เลือก น้ำท่วมฉับพลัน"]
[null," - แผ่นดินถล่ม เลือก เหตุการณ์แผ่นดินถล่ม"]
[null," - คลื่นบนผิวน้ำ เลือก น้ำท่วมชายฝั่ง"]
[null," - พายุหมุนเขตร้อน เลือก ลม"]
[null," - พายุหมุนเขตร้อน เลือก เลือกพายุซัดฝั่ง"]
[null," - พายุคะนอง เลือก ลูกเห็บ\n - พายุคะนอง เลือก ลม"]
[null," - ไฟป่า เลือก ไฟป่าที่ลุกลามมาถึงที่พักอาศัยหรือไฟลามทุ่ง "]
[null," - แผ่นดินไหว เลือก การเคลื่อนไหวของแผ่นโลก\n - แผ่นดินไหว เลือก ดินถล่มที่เกิดขึ้นตามหลังเหตุการณ์ภัยหลัก"]
[]
[null,"ขั้นตอนที่ 5 ประเมินความล่อแหลม"]
[null,"ไปที่ คอลัมน์ D ของแถบ \"Hazard Data Entry\""]
[null,"> ให้เลือกระดับความล่อแหลมตามประเภทภัยย่อยในแต่ละแถว"]
[null,"> คุณสามารถแสดงความคิดเห็นได้ในคอลัมน์ N มีชื่อว่า \"กล่องแสดงความคิดเห็นและเหตุผลสนับสนุน\""]
[]
[null,"UNDRR ได้ให้คำจำกัดความของ ความล่อแหลม ไว้ใน UNISDR Terminology, 2009  (https://www.unisdr.org/we/inform/publications/7817)"]
[]
[null,"กรณีศึกษา:"]
[null,"การประเมินความล่อแหลมในคอลัมน์ D ของเมืองแมคเคย์นั้น ใช้พื้นฐานของข้อมูลทางประวัติภัย การวิจัย หรือการประชุมปรึกษาหารือกับภาคีที่เกี่ยวข้อง"]
[null," - อุทกภัย น้ำล้นตลิ่ง เลือก 9-มีโอกาสจะเป็นไปได้สูงมาก (Extremely likely)\n - อุทกภัย น้ำท่วมฉับพลัน เลือก 9-มีโอกาสจะเป็นไปได้สูงมาก (Extremely likely)"]
[null," - แผ่นดินถล่ม เหตุการณ์แผ่นดินถล่ม เลือก 7-มีโอกาสจะเป็นไปได้ (Likely)"]
[null," - คลื่นบนผิวน้ำ น้ำท่วมชายฝั่ง เลือก 9-มีโอกาสจะเป็นไปได้สูงมาก (Extremely likely)"]
[null," - พายุหมุนเขตร้อน ลม เลือก 10-มีโอกาสเป็นไปได้อย่างแน่นอน (Inevitable)\n - พายุหมุนเขตร้อน พายุซัดฝั่ง เลือก 9-มีโอกาสจะเป็นไปได้สูงมาก (Extremely likely)"]
[null,"> คุณสามารถแสดงความคิดเห็นได้ในคอลัมน์ N มีชื่อว่า \"กล่องแสดงความคิดเห็นและเหตุผลสนับสนุน\""]
[]
[null,"ขั้นตอนที่ 6 ประเมินความเปราะบาง "]
[null,"ไปที่ คอลัมน์ E F G H  ของแถบ \"Hazard Data Entry\""]
[null,"> ให้เลือกระดับผลกระทบต่อความเปราะบางตามประเภทภัยย่อยในแต่ละแถว\n>ความเปราะบางมีอยู่ 4 ประเภทคือ:\na. ความเปราะบางต่อโครงสร้างพื้นฐาน (ทุกประเภท เช่น ถนน รางรถไฟ ท่าเรือ สะพาน บ้าน ฯลฯ)\nb. ความเปราะบางต่อภาคการผลิต (โดยเฉพาะเรื่อง specifically livelihood/job market indirectly)\nc. ความเปราะบางต่อภาคบริการพื้นฐานหรือจำเป็น (สุขภาพ, การติดต่อสื่อสาร, น้้ำ, พลังงาน ฯลฯ)\nd. ด้านมนุษย์และสังคม (ความปลอดภัย การย้ายถิ่นฐาน ฯลฯ)"]
[null,"> คุณสามารถแสดงความคิดเห็นได้ในคอลัมน์ N มีชื่อว่า \"กล่องแสดงความคิดเห็นและเหตุผลสนับสนุน\""]
[]
[null,"UNDRR ได้ให้คำจำกัดความของ ความเปราะบาง ไว้ใน UNISDR Terminology, 2009  (https://www.unisdr.org/we/inform/publications/7817)"]
[]
[null,"กรณีศึกษา:"]
[null,"การประเมินความเปราะบางในคอลัมน์ E F G H  ของเมืองแมคเคย์ดังนี้"]
[null," - อุทกภัย น้ำท่วมจากแม่น้ำ ในโครงสร้างพื้นฐานเลือก 8-มีโอกาสจะเป็นไปได้มาก (Very Likely) ในภาคการผลิตเลือก 8-มีโอกาสจะเป็นไปได้มาก (Very Likely) ในภาคการบริการพื้นฐานหรือจำเป็น เลือก 8-มีโอกาสจะเป็นไปได้มาก (Very Likely) และ ด้านมนุษย์และสังคม เลือก 8-มีโอกาสจะเป็นไปได้มาก (Very Likely)"]
[null," - อุทกภัย น้ำท่วมฉับพลัน ในโครงสร้างพื้นฐานเลือก  9-มีโอกาสจะเป็นไปได้สูงมาก (Extremely likely) ในภาคการผลิตเลือก 9-มีโอกาสจะเป็นไปได้สูงมาก (Extremely likely) ในภาคการบริการพื้นฐานหรือจำเป็น เลือก 8-มีโอกาสจะเป็นไปได้มาก (Very Likely) และ ด้านมนุษย์และสังคม 9-มีโอกาสจะเป็นไปได้สูงมาก (Extremely likely)"]
[null," - แผ่นดินถล่ม เหตุการณ์แผ่นดินถล่ม ในโครงสร้างพื้นฐาน เลือก 7-มีโอกาสจะเป็นไปได้ (Likely) ในภาคการผลิตเลือก 6-เป็นไปได้ (Probable)ในภาคการบริการพื้นฐานหรือจำเป็น  เลือก 5-อาจจะเป็นไปได้ (Possible) และ ด้านมนุษย์และสังคม เลือก 5-อาจจะเป็นไปได้ (Possible)"]
[null," - คลื่นผิวน้ำ น้ำท่วมชายฝั่ง ในโครงสร้างพื้นฐาน เลือก 8-มีโอกาสจะเป็นไปได้มาก (Very Likely) ในภาคการผลิตเลือก 6-เป็นไปได้ (Probable) ในภาคการบริการพื้นฐานหรือจำเป็น  เลือก 5-อาจจะเป็นไปได้ (Possible) และ ด้านมนุษย์และสังคม เลือก 5-อาจจะเป็นไปได้ (Possible)"]
[null," - พายุหมุนเขตร้อน ลม ในโครงสร้างพื้นฐาน เลือก 9-มีโอกาสจะเป็นไปได้สูงมาก (Extremely likely) ในภาคการผลิต เลือก 9-มีโอกาสจะเป็นไปได้สูงมาก (Extremely likely) ในภาคการบริการพื้นฐานหรือจำเป็น เลือก 9-มีโอกาสจะเป็นไปได้สูงมาก (Extremely likely) และ ด้านมนุษย์และสังคม เลือก 9-มีโอกาสจะเป็นไปได้สูงมาก (Extremely likely)"]
[null," - พายุหมุนเขตร้อน คลื่นพายุซัดฝั่ง ในโครงสร้างพื้นฐาน เลือก 9-มีโอกาสจะเป็นไปได้สูงมาก (Extremely likely) ในภาคการผลิต เลือก 9-มีโอกาสจะเป็นไปได้สูงมาก (Extremely likely) ในภาคการบริการพื้นฐานหรือจำเป็น เลือก 10-มีโอกาสเป็นไปได้อย่างแน่นอน (Inevitable) และ ด้านมนุษย์และสังคม เลือก 9-มีโอกาสจะเป็นไปได้สูงมาก (Extremely likely)"]
[null,"> คุณสามารถแสดงความคิดเห็นได้ในคอลัมน์ N มีชื่อว่า \"กล่องแสดงความคิดเห็นและเหตุผลสนับสนุน\""]
[]
[null,"ขั้นตอนที่ 7 ระดับการใช้มาตรการรับมือในปัจจุบัน หรือ ที่มีอยู่"]
[null,"ไปที่ คอลัมน์ J  ของแถบ \"Hazard Data Entry\""]
[null,"> ให้เลือกระดับมาตรการการรับมือที่มีอยู่ในปัจจุบัน ในคอลัมน์ J ตามประเภทภัยย่อยนั้นๆ "]
[null,"> คุณสามารถแสดงความคิดเห็นได้ในคอลัมน์ N มีชื่อว่า \"กล่องแสดงความคิดเห็นและเหตุผลสนับสนุน\""]
[]
[null,"UNDRR ได้ให้คำจำกัดความของ มาตรการการรับมือที่มีอยู่ในปัจจุบัน (Current actions or measures undertaken) ไว้ใน UNISDR Terminology, 2009  (https://www.unisdr.org/we/inform/publications/7817)"]
[]
[null,"Case study:"]
[null,"สืบเนื่องจากเมืองแมคเคย์มีแผนการต่างๆ ที่เกี่ยวข้องกับการจัดการภัยพิบัติ ยุทธศาสตร์การฟื้นฟู ทั้งแผนระดับชุมชน ของศาลาเมือง รวมทั้งมีการประชุมปรึกษาหารือกับภาคีที่เกี่ยวข้องอย่างดี ดังนั้น ให้เลือกระดับการใช้มาตราการรัมือในปัจจุบัน คอลัมน์ J หรือที่อยู่ ดังนี้ "]
[null," - อุทกภัย น้ำท่วมจากแม่น้ำ เลือก 4-มีมาตรการการรับมือบ้าง (Some measures in place)"]
[null," - อุทกภัย น้ำท่วมฉับพลัน เลือก 4-มีมาตรการการรับมือบ้าง (Some measures in place)"]
[null," - แผ่นดินถล่ม เหตุการณ์แผ่นดินถล่ม เลือก 3-มีมาตรการการรับมือเล็กน้อย (Few measures in place)"]
[null," - คลื่นผิวน้ำ น้ำท่วมชายฝั่ง เลือก 1-มีมาตราการการรับมือน้อยมากที่สุด (Extremely few measures in place)"]
[null," - พายุหมุนเขตร้อน ลม เลือก 5-มีมาตรการการรับมือที่สมเหตุสมผล (Reasonable measures in place)"]
[null," - พายุหมุนเขตร้อน คลื่นพายุซัดฝั่ง เลือก 2-มีมาตราการการรับมือน้อยมาก (Very few measures in place)"]
[null,{"$f":"B114","v":"> คุณสามารถแสดงความคิดเห็นได้ในคอลัมน์ N มีชื่อว่า \"กล่องแสดงความคิดเห็นและเหตุผลสนับสนุน\""}]
[]
[null,"ขั้นตอนที่ 8 การวิเคราะห์ผล"]
[null,"ไปที่ คอลัมน์ K L M  ของแถบ \"Hazard Data Entry\""]
[null,"> จากขั้นตอนที่ 5 ถึง 7 เครื่องมือ QRE จะคำนวณและสร้างเลขอย่างอัตโนมัติ 2 ที่ คือที่ คอลัมน์ K \"ระดับคะแนนความเป็นไปได้ในการเกิด (Likelihood ranking score)\" และ คอลัมน์ L \"ระดับความรุนแรง (Severity rating)\" ซึ่งตัวเลขนั้นอ้างอิงจากแถบ \"Risk Matrix\""]
[null,"  a) ระดับคะแนนความเป็นไปได้ในการเกิด หมายถึง ความเป็นไปได้ของเหตุการณ์ที่เกิดขึ้น ณ ที่ใดที่หนึ่งที่เลือกไว้ ซึ่งสอดคล้องกับความล่อแหลม ความเปราะบาง และศักยภาพ มาตราการในการรับมือ ยิ่งระดับคะแนนยิ่งสูง ยิ่งต้องได้รับการแก้ไขอย่างมาก ทั้งนี้คะแนนที่ได้นี้ไม่ใช่ข้อมูลทางสถิติของความเป็นไปได้ แต่จะเป็นการบ่งบอกถึงลำดับความเร่งด่วนในการแก้ไขปัญหาของภัยเมื่อเปรียบเทียบกับภัยอื่นๆ"]
[null,"  b) ระดับความรุนแรง หมายถึงผลกระทบที่ภัยในพื้นที่และชุมชนที่เลือก คะแนนจาก 1 ถึง 100 จากระดับน้อยไปหามาก"]
[null,"  c) ผลการจัดลำดับความเสี่ยง หมายถึง ระดับความเสี่ยงจาก ต่ำมาก ไปถึง สูงมาก ในแถบ \"Risk Matrix\" ซึ่งขึ้นอยู่กับผลการคำนวณของระดับความเป็นไปได้ในการเกิดกับระดับความรุนแรง"]
[]
[null,"หมายเหตุ:"]
[null," - ถ้าผลของระดับความรุนแรงติดลบ แสดงว่าคุณอยู่นอกเกณฑ์ความเสี่ยง"]
[null," - การได้ผลระดับความรุนแรงเท่ากันศูนย์ หรือติดลบ อาจจะสื่อได้ว่าการให้คะแนนมาตราการที่รับมือในปัจจุบันนั้นไม่ตรงกับความเป็นจริง"]
[null," - คุณอาจจะต้องทบทวนการให้คะแนนแต่ละช่องใหม่"]
[]
[null,"การรายงานผล"]
[null,"> ข้อมูลโดยรวมจะสรุปอยู่ในตารางแถบ 'Data Scores'  จะมีการแสดงผลคะแนนซึ่งนำไปวิเคราะห์ได้\n> เครื่องมือ QRE สร้างรายงานไว้สองรูปแบบ คือ รายงานสรุปความเสี่ยง และ รายงานความเปราะบาง\na) รายงานสรุปความเสี่ยง ในกราฟแรกจะแสดงความสัมพันธ์ของระดับความเป็นไปได้ในการเกิดและระดับความรุนแรงของภัยแต่ละภัยทั้งหมด ส่วนกราฟที่สอง แสดงความสัมพันธ์ของระดับความล่อแหลมกับระดับความเปราะบางของภัยแต่ละภัยทั้งหมด \nb) รายงานความเปราะบาง กราฟจะแสดงถึงความสัมพันธ์ของระดับความล่อแหลมและระดับความเปราะบางของทั้ง 4 ส่วน (โครงสร้างพื้นฐาน ภาคการผลิด ภาคการบริการขั้นพื้นฐานหรือจำเป็น ด้านมนุษย์และสังคม\nรายงานทั้งคู่อยู่ในรูปแบบกระดานแสดงผล หรือ 'Dashboard' ช่วยในการวิเคราะห์หาทางออก และการจัดการความเสี่ยงในปัจจุบันและอนาคต \nหมายเหตุ:ขนาดของจุดในกราฟนั้นจะมีขนาดตามระดับคะแนน ยิ่งคะแนนมากขึ้น จุดยิ่งใหญ่ขึ้น"]
[]
[null,"กรณีศึกษา"]
[null,"จากกรณีศึกษาของเมืองแมคเคย์ ข้อมูลในแถบ 'Data Scores' จะมีผลดังนี้"]
[null," - อุทกภัย น้ำท่วมจากแม่น้ำ คะแนนความเปราะบาง 80 จาก 100 คะแนนความเป็นไปได้ในการเกิด 8 จาก 100 คะแนนความรุนแรง 40 จาก 100 ระดับความเสี่ยง M6"]
[null," - อุทกภัย น้ำท่วมฉับพลัน คะแนนความเปราะบาง 88 จาก 100 คะแนนความเป็นไปได้ในการเกิด 8 จาก 100 คะแนนความรุนแรง 40 จาก 100 ระดับความเสี่ยง M6"]
[null," - แผ่นดินถล่ม เหตุการณ์แผ่นดินถล่ม คะแนนความเปราะบาง 58 จาก 100 คะแนนความเป็นไปได้ในการเกิด 5 จาก 100 คะแนนความรุนแรง 20 จาก 100 ระดับความเสี่ยง L4"]
[null," - คลื่นบนผิวน้ำ น้ำท่วมชายฝั่ง คะแนนความเปราะบาง 88 จาก 100 คะแนนความเป็นไปได้ในการเกิด 8 จาก 100 คะแนนความรุนแรง 70 จาก 100 ระดับความเสี่ยง H7"]
[null," - พายุหมุนเขตร้อน ลม คะแนนความเปราะบาง 90 จาก 100 คะแนนความเป็นไปได้ในการเกิด 9 จาก 100 คะแนนความรุนแรง 40 จาก 100 ระดับความเสี่ยง H7"]
[null," - พายุหมุนเขตร้อน ลม คะแนนความเปราะบาง 93 จาก 100 คะแนนความเป็นไปได้ในการเกิด 8 จาก 100 คะแนนความรุนแรง 60 จาก 100 ระดับความเสี่ยง H7"]
[]
[]
[null,"Risk Matrix Scenarios "]
[null,"เครื่องมือ QRE จะช่วยให้คุณมีความเข้าใจในฉากทัศน์ความเสี่ยงในปัจจุบันและอนาคตจากการประเมินความเสี่ยงด้วยตัวเอง ฉากทัศน์ความเสี่ยงเป็นผลที่ได้จากการประเมินความรุนแรง ความเป็นไปได้การเกิดของภัย และผลกระทบองค์รวมที่เกิดจากภัยดังกล่าว บนพื้นฐานของความล่อแหลมและความเปราะบางของเมืองต่อการสูญเสียชีวิต ความเสียหายต่อทรัพย์สิน หรือผลกระทบอื่นๆ ที่เกี่ยวข้อง การกำหนดฉากทัศน์นั้นมีความสำคัญมากในการสร้างความเข้าใจในระดับความเสี่ยงจากภัยพิบัติแต่ละประเภทและผลกระทบที่อาจเกิดมีกับสถานที่ที่อยู่ในขอบเขตการประเมิน ผลการประเมินจะช่วยให้เมืองสามารถสร้างฐานความเข้าใจเรื่องความเสี่ยงซึ่งจะช่วยในการจัดลำดับความสำคัญในการลงทุนและการดำเนินงานเพื่อแก้ไขปัญหา และเพื่อประเมินผลงานความก้าวหน้าในการสร้างความรีซีเลียนส์ให้กับเมืองและท้องถิ่นของตนต่อไปได้ในอนาคต"]
[null,"เครื่องมือ QRE สามารถใช้ในการสร้างฉากทัศน์ด้านความเสี่ยงได้ในหลายรูปแบบ จากข้อมูลความเสี่ยงที่มาจาก:"]
[null," 1) ภัยหลักภัยเดียว เช่น ภัยหลักคือแผ่นดินไหว เมื่อเกิดในพื้นที่ชายฝั่งสามารถสร้างการเคลื่อนตัวของเปลือกโลก และทำให้เกิดคลื่นสึนามิ"]
[null," 2) ความเสี่ยงแบบผสมผสาน จากภัยหลักสองประเภทขึ้นไป เช่น ฉากทัศน์ที่เกิดขึ้นจากภัยแล้ง และไฟป่า ซึ่งทำให้เกิดไฟลามทุ่งที่รุนแรงขึ้นจากภาวะแล้ง "]
[null," 3) การผสมผสานกันระหว่างภัยหลักหลายประเภท"]
[null,"Notes:"]
[null,"  - Within hazard families cumulative severity representing a number of main hazards and associated hazard events can be assessed by using the totals calculated and shown in the Criteria Scores & Family Plots tab. For example, in the current example Cell H9 in the 'Criteria Scores & Family Plots' tab indicates a Total Severity Score across the Hazard Family of 215. This total severity score can be used to quickly identify the Hazard Family with the most severe combination of hazards/hazard events for the purposes of prioritising response measures."]
[]
[null,"ระดับความเสี่ยงของฉากทัศน์ต่างๆ จะถูกวิเคราะห์ในแถบ Risk Matrix เพื่อให้ข้อมูลว่าภัย/สถานการณ์ ไหนมีลำดับความสำคัญและควรได้รับการแก้ไขก่อน "]
[]
[]
[]
[]
[null,"1) Scenario #1: A riverine flood."]
[null,"2) Scenario #2: A convective storm with hail and damaging winds."]
[null,"3) Scenario #3: An earthquake causing ground movement, followed by landslide and riverine flooding."]
[]
[null,"Key Data and formulas to use in scenarios calculations อมูลสำคัญที่ใช้ในการคำนวณและวิเคราะห์สถานการณ์:"]
[null,"  - A Riverine flood has a Likelihood Ranking of 8.5 and a Severity Rating of 65.0.\n-\tน้ำท่วมจากแม่น้ำมีลำดับความน่าจะเป็นอยู่ที่ 8.5 และมีระดับความรุนแรงอยู่ที่ 6.0\n-\t\n................................................."]
[null,"  - A Convective storm as a Likelihood Ranking of 4.0 (with hail) and 7.0 (with wind) and a Severity Rating of 5.0 (with hail) and 40.0 (with wind).พายุฝนฟ้าคะนอง มีระดับความน่าจะเป็นที่มีลูกเห็บตก อยู่ที่ 4.0 และ 7.0 ที่จะมีลมพายุ  มีระดับความรุนแรงกับการพายุที่มีลูกเห็บตกอยู่ที่ 5.0 และ ระดับความรุนแรงที่มีลมพายุอยู่ที่ 4.0"]
[null,"  - Earthquake causing Ground Movement has a Likelihood Ranking of 6.5 and a Severity Rating of 45.0."]
[null,"  - Earthquake causing landslide following event has a Likelihood Ranking of 7.5 and a Severity Rating of 60.0."]
[]
[null,"  - Average Likelihood Ranking (LR): LR1 + LR2 + LR3 divided by Total Number of LR Assessed"]
[null,"  - Weighted Average Severity Rating (ASR): (LR1 x SR1) + (LR2 x SR2) divided by 10, where SR is the Severity Rating for each hazard event assessed."]
[]
[null,"To determine the risk level of each scenario, we refer to the provided Risk Matrix. การตัดสินใจถึงระดับความเสี่ยงแต่ละสถานการณ์  เราจะอ้างอิงถึงการจัดหา ความเสี่ยง Matrix  ดังนี้"]
[]
[null,"1) Scenario #1:  -\tสถานการณ์ที่ 1"]
[null,"     - Based on the likelihood ranking score obtained, i.e. 8.5, the scenario's likelihood ranking based on exposure and vulnerability, when compared with other potential scenarios in the city of Mackay, is classified as \"Very High\"."]
[null,"     - Based on the severity rating obtained, i.e. 65.0, the event's severity is classified as \"Major\"."]
[null,"     - As a result, a final risk level of \"H8\" is obtained."]
[null,"2) Scenario #2:"]
[null,"     - As this scenario is built upon two hazard events within the same hazard sub-family, the average likelihood ranking score is calculated using the likelihood ranking score for each hazard event. In this case, the average likelihood ranking score equals 5.5 (i.e. 4.0 + 7.0 / 2), hence the scenario’s likelihood ranking based on exposure and vulnerability, when compared with other potential scenarios in the city of Mackay, is classified as \"Moderate\"."]
[null,"     - The weighted average severity rating is calculated using each hazard event's severity rating weighted by each hazard event's likelihood ranking score. The scenario's severity rating equals 30 (i.e. 4.0 x 5.0 + 7.0 x 40.0 / 10), hence the scenario's severity is classified as \"Moderate\"."]
[null,"     - As a result, a final risk level of \"M5\" is obtained."]
[null,"3) Scenario #3: "]
[null,"     - As this scenario is built upon three hazard events, the average likelihood ranking score is calculated using the likelihood ranking score for each hazard event. In this case, the average likelihood ranking score equals 7.5 (i.e. 6.5 + 7.5 + 8.5 / 3), hence the scenario’s likelihood ranking based on exposure and vulnerability, when compared with other potential scenarios in the city of Mackay, is classified as \"High\"."]
[null,"     - As this scenario is built upon hazard event from different hazard sub-families (i.e. two within the geophysical hazard sub-family and one within the hydrological hazard sub-family), the weighted average severity rating is calculated as follows: first the weighted average severity rating for the hazard event of the same sub-family (i.e. ground movement and landslide) is calculated using each hazard event's severity rating weighted by each hazard event's likelihood ranking score (74.25, i.e. [6.5 x 45.0] + [7.5 X 60.0] / 10); secondly, the severity rating of the third hazard event (flood) is multiplied by its likelihood ranking score (55.25, i.e. [8.5 X 65.0] / 10); finally, the average of the two calculated ratings is obtained (64.75 i.e. [74.25 + 55.25] / 2 ). Therefore the scenario's average severity rating equals 64.75, hence the scenario's severity is classified as \"Major\". ดังนั้น สถานการณ์ความรุนแรงมีค่าเฉลี่ยเท่ากับ  64.75  และสถานการณ์ความรุนแรงได้จัดแบ่งประเภทเป็นระดับสำคัญ (Major)"]
[null,"     - As a result, a final risk level of \"H7\" is obtained. ผลลัพภ์  ระดับความเสี่ยงสุดท้ายของ H7 "]
[]
[null,"These scenarios can then be prioritised based on their risk level, i.e. scenario #1 > scenario #3 > scenario #2. This will guide the city of Mackay in designing an action plan accordingly.สถานการณ์ความเสี่ยงเหล่านี้สามารถจัดลำดับความสำคัญโดยตั้งอยู่บนพื้นฐานระดับความเสี่ยง เช่น สถานการณ์ที่ 1 มีความเสี่ยงมากกว่าสถานการณ์ที่  3 และสถานการณ์ที่ 3 มีความเสี่ยงมากกว่าสถานการณ์ที่ 2.  ซึ่งสิ่งเหล่านี้จะช่วยให้เมืองแมคเคย์มีแผนปฏิบัติการณ์ที่สอดคล้อง \n\n"]
[]
["End"]

{"sheet":"Hazard Glossary","index":2,"n_rows":90,"n_cols":16384,"rows_kept":90,"cut":false,"hidden":false,"merged":[]}
[{"$f":"MdlTle","v":"Quick Risk Estimation (QRE) Tool"}]
[{"$f":"MID(CELL(\"filename\",A1),FIND(\"]\",CELL(\"filename\",A1))+1,255)","v":"Hazard Glossary"}]
["คำศัพท์เกี่ยวกับภัย"]
[]
[null,"Term","Definition"]
[null,{"$f":"Assumptions!B100","v":"การระเบิดกลางอากาศ (Airburst)"},"การระเบิดของดาวหางหรืออุกกาบาตที่เกิดขึ้นในชั้นบรรยากาศโลก"]
[null,{"$f":"Assumptions!B79","v":"ภัยจากสัตว์ (Animal incident)"},"การที่มนุษย์เผชิญหน้ากับสัตว์ดุร้ายทั้งที่เกิดขึ้นในเมืองและชนบท"]
[null,{"$f":"Assumptions!B101","v":"ขี้เถ้าร่วง (Ash fall)"},"การร่วงหล่นของขึ้เถ้าละเอียด (เส้นผ่านศูนย์กลางขนาดเล็กกว่า 4 มม.) ที่เกิดจากภูเขาไฟระเบิด และกระจายตัวในชั้นบรรยากาศโลก สามารถทรงตัวอยู่ในอากาศเป็นเวลานาน และสามารถกระจายไปได้ในวงกว้างจากต้นตอ"]
[null,{"$f":"Assumptions!B102","v":"การถล่มของหิมะ เศษหินและดิน (Avalanche/snow & debris)"},"ชิ้นส่วนขนาดใหญ่ของแผ่นโลก หิมะ หรือ น้ำแข็ง ที่เคลื่อนตัวตกลงมาจากภูเขาอย่างรวดเร็วตามแรงโน้มถ่วงของโลก\n• หิมะถล่ม (Snow avalanche) คือ การถล่มของแผ่นหิมะและน้ำแข็งอย่างรวดเร็ว\n• การถล่มของเศษหินและดิน (Debris avalanche) คือการถล่มของหินและดินจำนวนมาก แบ่งออกเป็น 2 ประเภท คือ การถล่มของเศษหินและดินแบบเย็น (Cold debris avalanche) ที่มักเกิดจากลาดหินและดินที่ไม่มั่นคง และ การถล่มของเศษหินและดินแบบร้อน (Hot debris avalanche) ที่เกิดจากการประทุของภูเขาไฟทำให้เกิดการเคลื่อนไหวของเนินดินและถล่มลงในที่สุด"]
[null,{"$f":"Assumptions!B103","v":"อุบัติเหตุการบิน (Aviation accident)"},"รอการอัพเดทข้อมูลต่อไป"]
[null,{"$f":"Assumptions!B104","v":"เชื้อโรคแบคทีเรีย (Bacterial disease)"},"การเพิ่มขึ้นอย่างผิดปกติของผู้ติดเชื้อโรคจากเชื้อแบคทีเรีย เป็นได้ทั้งจากผ่านผิวหนัง ระบบทางเดินอาหาร หรือระบบทางเดินหายใจ ตัวอย่างเช่น โรคจากเชื้อซัลโมเนลลา เชื้อเอ็มอาร์เซสเอ และเชื้ออหิวาตกโรค"]
[null,"ภัยทางชีววิทยา (Biological hazard)","ภัยที่เกิดขึ้นจากการที่สิ่งมีชีวิตได้สัมผัสกับสิ่งที่เป็นพิษ เชื้อรา หรือเชื้อโรคที่มากับพาหะนำโรค เช่น สัตว์ป่าและแมลงมีพิษ พืชมีพิษ และยุงที่เป็นพาหะนำเชื้อปรสิต แบคทีเรีย หรือไวรัส (เช่นโรคมาลาเรีย)"]
[null,{"$f":"Assumptions!B105","v":"สารเคมีรั่วไหล (Chemical spill)"},"รอการอัพเดทข้อมูลต่อไป"]
[null,"ภัยทางภูมิอากาศวิทยา (Climatological hazard)","ภัยที่เกิดจากความแปรผันของสภาพภูมิอากาศ ทั้งที่เกิดขึ้นภายในหนึ่งฤดูกาล และที่เกิดขึ้นจากความผันผวนของสภาพภูมิอากาศในช่วงเวลาหลายทศวรรษ"]
[null,{"$f":"Assumptions!B106","v":"การกัดเซาะชายฝั่ง (Coastal erosion)"},"การสูญเสียมวลดินชายฝั่งแบบชั่วคราวหรือถาวร อันเกิดจากคลื่น ลม น้ำขึ้นน้ำลง หรือจากการกระทำของมนุษย์"]
[null,{"$f":"Assumptions!B107","v":"อุทกภัยตามแนวชายฝั่ง (Coastal flood)"},"ระดับน้ำแนวชายฝั่งทะเลที่สูงกว่าปกติ เกิดจากการเปลี่ยนแปลงของน้ำขึ้นลง หรือพายุ ซึ่งทำให้เกิดน้ำท่วมขังได้เป็นเวลาหลายวันถึงหลายสัปดาห์"]
[null,{"$f":"Assumptions!B108","v":"คลื่นอากาศหนาว (Cold wave)"},"ช่วงเวลาหนึ่งที่มีอากาศหนาวเย็นผิดปกติ โดยมากคลื่นอากาศหนาวจะมีระยะเวลามากกว่า 2 วันขึ้นไปและสามารถรู้สึกหนาวเย็นได้มากขึ้นหากมีลมแรง เกณฑ์อุณหภูมิที่บ่งชี้คลื่นอากาศหนาวมีความแตกต่างไปในแต่ละพื้นที่"]
[null,{"$f":"Assumptions!B67","v":"พายุคะนอง (Convective Storm)"},"พายุฝนที่เกิดจากการเกิดมวลอากาศร้อนปะทะความชื้นสูงและคลื่นลมที่มีความแปรปรวน เป็นได้ทั้งแบบพายุที่เกิดขึ้นเฉพาะพื้นที่ (ฝนตกหนัก และ/หรือมี ลูกเห็บ ฟ้าผ่า ลมกรรโชก พายุฝนฟ้าคะนอง) ไปจนพายุที่มีขนาดใหญ่เป็นเวลาหลายวัน "]
[null,{"$f":"Assumptions!B132","v":"โคลนถล่ม/หินถล่ม/ซากปรักหักพัง (Mudfall/rockfall/debris)"},"ประเภทของแผ่นดินถล่มซึ่งเกิดขึ้นเมื่อมีฝนตกหนัก หรือหิมะ/น้ำแข็งละลายอย่างรวดเร็ว จนเกิดมวลดินหรือหินที่ไหลลงสู่ที่ต่ำตามแรงโน้มถ่วงของดลก"]
[null,{"$f":"Assumptions!B110","v":"พายุลม (Derecho)"},"พายุลมชนิดหนึ่งที่มีขนาดใหญ่และมักเคลื่อนตัวอย่างรวดเร็ว เกี่ยวพันกับพายุฝนฟ้าคะนอง เป็นได้ทั้งกระแสลมที่พุ่งลงในแนวดิ่ง (downburst) หรือลมเป็นแนวเส้นตรง"]
[null,{"$f":"Assumptions!B80","v":"โรคต่างๆ (Disease)"},"การเพิ่มขึ้นอย่างรวดเร็ว ฉับพลัน และผิดปกติของจำนวนการติดเชื้อโรคที่มีอยู่แล้วในภูมิภาค (เช่นไข้หวัด หรือ อีโคไล) หรือการเกิดโรคติดเชื้อที่ไม่เคยมีมาก่อนในภูมิภาค (เช่น โรคระบาด หรือโปลิโอ)"]
[null,{"$f":"Assumptions!B74","v":"ภัยแล้ง (Drough)"},"ภาวะฝนแล้งเป็นเวลานานทำให้เกิดการขาดแคลนน้ำกินน้ำใช้ สำหรับคน สัตว์ และพืช ภัยแล้งมีความแตกต่างกับภัยพิบัติ เนื่องจากเป็นภัยที่่ค่อย ๆ เกิดขึ้น และสะสมมาเป็นระยะเวลานานหลายปีทำให้การคาดการณ์ภัยแล้งเป็นไปได้ยาก\n\nภัยแล้งไม่ใช่แค่ปรากฎการณ์ทางกายภาพเนื่องจากผลกระทบของภัยแล้งอาจมีความรุนแรงมากขึ้นได้จากการกระทำของมนุษย์และความต้องการในการใช้น้ำ การนิยามภัยแล้งในแต่ละพื้นที่จึงต้องอ้างอิงทั้งความหมายในเชิงแนวคิด และความหมายในเชิงปฏิบัติ เช่น ปริมาณของน้ำฝนจะต้องลดลงเท่าใดจึงจะเข้าเกณฑ์การเกิดภัยแล้งนั้นย่อมมีความแตกต่างไปในแต่ละพื้นที่และข้อตกลงของภาคส่วนที่มีความรับผิดชอบเรื่องสภาพภูมิอากาศและสิ่งแวดล้อม เป็นต้น"]
[null,{"$f":"Assumptions!B57","v":"แผ่นดินไหว (Earthquake)"},"การเคลื่อนตัวอย่างรวดเร็วของแผ่นเปลือกโลก ทำให้เกิดการสั่นไหวของพื้นดิน"]
[null,{"$f":"Assumptions!B111","v":"อนุภาคพลังงานสูง (Energetic particles)"},"การเกิดพายุรังสีดวงอาทิตย์ที่ทำให้มีการปล่อยอนุภาคต่าง ๆ เช่น โปรตอนและประจุไฟฟ้าอื่นๆ ที่เคลื่อนที่ด้วยความเร็วสูง ถึงแม้ชั้นบรรยากาศแมกเนโตสเฟียร์จะช่วยป้องกันไม่ให้อนุภาคพลังงานแสงอาทิตย์มาถึงมนุษย์ที่อาศัยอยู่บนโลกได้ แต่อนุภาคเหล่านี้สร้างความเสียหายต่ออุปกรณ์อิเล็กทรอนิกส์ที่อยู่ในอวกาศ เช่น ดาวเทียม และทำให้สิ่งมีชีวิตในห้วงอวกาศและเครื่องบินที่บินอยู่ในระดับสูงมีความเสี่ยงภัยจากรังสีได้"]
[null,{"$f":"Assumptions!B112","v":"การบวมตัวของดิน (Expansive soil)"},"ดินบางชนิด โดยเฉพาะดินเหนียว เมื่อมีปริมาณน้ำที่แทรกอยู่ในชั้นดินเปลี่ยนไป ทำให้เกิดการขยายตัวหรือหดตัวจนทำให้เกิดความเสียหายกับโครงสร้างของอาคารหรือสิ่งก่อสร้าง  ถ้าหากมีสิ่งปลูกสร้างที่ไม่แข็งแรงตั้งอยู่บนพื้นที่ที่มีดินชนิดนี้ ในหน้าฝนดินจะบวมใหญ่แล้วยกตัวสิ่งปลูกสร้างขึ้น พอหน้าแล้งก็จะหดตัวลง พอผ่านไปหลายๆปีเข้า สิ่งปลูกสร้างก็ถูกดันขึ้นดันลงซ้ำๆ สุดท้ายแล้วถ้าไม่แข็งแรงพอก็จะแตกร้าวได้"]
[null,"ภัยจากนอกโลก (Extraterrestrial hazard)","ภัยที่เกิดขึ้นจากการที่ดาวเคราะห์น้อย อุกกาบาต และดาวหาง เคลื่อนที่เข้าใกล้โลก หรือหลุดเข้ามาอยู่ในชั้นบรรยากาศ หรือพุ่งชนโลก ทำให้เกิดการเปลี่ยนแปลงสภาพแวดล้อมในชั้นบรรยากาศของโลก เช่นในชั้นบรรยากาศแมกเนโตสเฟียร์ (Magnetosphere) ไอโอโนสเฟียร์(Ionosphere) และเทอร์โมสเฟียร์ (Thermosphere)"]
[null,{"$f":"Assumptions!B68","v":"พายุหมุนนอกเขตร้อน (Extratropical Storm)"},"พายุหมุนที่เกิดในบริเวณความกดอากาศต่ำในเขตละติจูดปานหลางหรือสูง (บางทีเรียก พายุหมุนละติจูดปานกลาง หรือ mid-latitude cyclone) ได้รับพลังงานหลักจากความแตกต่างของอุณหภูมิในชั้นบรรยากาศ เมื่อปะทะกับความเย็น อาจจะทำให้มีกำลังทำลายล้างมากขึ้น"]
[null,{"$f":"Assumptions!B69","v":"อุณหภูมิสุดขั้ว (Extreme temperature)"},"เป็นคำที่ใช้เรียกภาวะที่เกิดอุณหภูมิร้อนมาก (extreme heat) หรือหนาวมาก (extreme cold) กว่าอุณหภูมิปกติ"]
[null,"ไฟไหม้ (Fire)","รอการอัพเดทข้อมูลต่อไป"]
[null,{"$f":"Assumptions!B113","v":"อัคคีภัยที่เกิดขึ้นตามหลังเหตุการณ์ภัยหลัก (Fire following event)"},"ไฟไหม้บ้านเรือนที่อยู่อาศัยที่เกิดขึ้นจากการเกิดภัยหลัก เช่น แผ่นดินไหว โดยพื้นที่ประสบภัยส่วนมากมีความแออัด สร้างจากไม้ และหากแผ่นดินไหวทำให้ท่อน้ำหรือท่อก๊าซรั่ว อาจเกิดจากไฟไหม้ขนาดเล็กที่ขยายวงกว้างได้"]
[null,{"$f":"Assumptions!B114","v":"น้ำท่วมฉับพลัน น้ำหลาก (Flash flood)"},"การที่มีฝนตกหนักหรือมีปริมาณน้ำฝนจำนวนมากในระยะเวลาอันสั้นทำให้ระบายน้ำไม่ทัน เกิดน้ำท่วมได้ในห้วงนาทีหรือไม่กี่ชั่วโมงหลังฝนเริ่มตก"]
[null,{"$f":"Assumptions!B62","v":"อุทกภัย (Flood)"},"เป็นคำเรียกทั่วไปของน้ำท่วม ทั้งที่เป็นแบบน้ำล้นตลิ่ง ระดับน้ำริมชายฝั่งหรือในทะเลสาบสูงผิดปกติ หรือน้ำหลาก"]
[null,{"$f":"Assumptions!B70","v":"หมอก (Fog)"},"กลุ่มละอองน้ำ เหมือนเมฆแต่อยู่บนพื้นดิน"]
[null,{"$f":"Assumptions!B126","v":"ไฟป่าที่ลุกลามมาถึงที่พักอาศัยหรือไฟลามทุ่ง (Land fire or brush/bush/pasture)"},"ไฟไหม้ที่เกิดขึ้นในป่า แล้วขยายวงไปถึงแหล่งชุมชน ที่พักอาศัย"]
[null,{"$f":"Assumptions!B116","v":"น้ำค้างแข็ง (Frost/freeze)"},"สถานการณ์ที่ความเย็นคลอบคลุมบางบริเวณจนน้ำบนพื้นผิวกลายเป็นน้ำแข็ง มีผลกระทบอย่างมากในการเพาะปลูก"]
[null,{"$f":"Assumptions!B117","v":"การติดเชื้อรา (Fungal disease)"},"การติดเชื้อโรคเชื้อรา ผ่านผิวหนัง ระบบทางเดินอาหาร หรือระบบทางเดินหายใจ"]
[null,{"$f":"Assumptions!B118","v":"พายุแม่เหล็กโลก (Geomagnetic storm)"},"เป็นภัยที่เกิดนอกโลกจากการเกิดคลื่นกระแทกจากลมสุริยะ ทำให้รบกวนคลื่นแม่เหล็กไฟฟ้าบนโลก ส่งผลกระทบได้ทั้งกับระบบไฟฟ้า การทำงานของยานอวกาศ และการสื่อสารผ่านดาวเทียม"]
[null,"ภัยทางธรณีวิทยา (Geophysical hazard)","เป็นภัยที่เกี่ยวกับผืนโลก"]
[null,{"$f":"Assumptions!B75","v":"ทะเลสาบธารน้ำแข็งระเบิด (Glacier Lake Outburst)"},"น้ำท่วมที่เกิดจากการระเบิดของทะเลสาบธารน้ำแข็ง ซึ่งเป็นได้ทั้งทะเลสาบที่อยู่ด้านหน้าธารน้ำแข็ง (marginal lake) หรือที่อยู่ภายใต้แผ่นน้ำแข็ง (Sub-glacial lake)"]
[null,{"$f":"Assumptions!B119","v":"การเคลื่อนไหวของแผ่นโลก (Ground movement)"},"การเคลื่อนไหวของแผ่นโลกจากการเกิดแผ่นดินไหวหรือภูเขาไฟระเบิด"]
[null,{"$f":"Assumptions!B120","v":"ลูกเห็บ (Hail)"},"ก้อนน้ำที่ตกลงมาจากฟ้า มักมีรูปร่างไม่แน่นอน และมีเส้นผ่านศูนย์กลางมากกว่า 5 มม"]
[null,{"$f":"Assumptions!B121","v":"คลื่นความร้อน (Heatwave)"},"เป็นช่วงเวลาที่่อากาศร้อน และ/หรือ ชื้นแบบผิดปกติ มักเกิดติดกันมากกว่า 2 วัน โดยเกณฑ์อุณหภูมิที่บ่งชี้คลื่นความร้อนมีความแตกต่างไปในแต่ละพื้นที่"]
[null,"ภัยทางอุทกวิทยา (Hydrological hazard)","ภัยที่เกิดจากการเกิด การเคลื่อนตัว และการกระจายตัวในระดับผิวน้ำและใต้ผิวน้ำของทั้งน้ำจืดและน้ำเค็ม"]
[null,{"$f":"Assumptions!B122","v":"น้ำท่วมประเภทที่มีน้ำแข็งปิดกั้นลำน้ำ(Ice jam flood)"},"การสะสมของก้อนน้ำแข็งทำให้เกิดการปิดกั้นการไหลเวียนและระบายน้ำ มักเกิดขึ้นตามทางโค้งของลำน้ำหรือมีสิ่งกีดขวาง เช่น สะพาน"]
[null,{"$f":"Assumptions!B84","v":"แรงกระแทกที่ส่งผลต่อพื้นดินหรือน้ำ (Impact to ground or water)"},"เป็นภัยที่เกิดนอกโลก จากการที่อุกกาบาต ดาวเคราะห์น้อย หรือดาวหางพุ่งชนผิวโลก"]
[null,{"$f":"Assumptions!B123","v":"ภัยพิบัติทางอุตสาหกรรม (Industrial disaster)"},"รอการอัพเดทข้อมูลต่อไป"]
[null,{"$f":"Assumptions!B124","v":"การระเบิดของโรงงานอุตสาหกรรม (Industrial explostion)"},"รอการอัพเดทข้อมูลต่อไป"]
[null,{"$f":"Assumptions!B81","v":"การรบกวนจากแมลง (Insect infestation)"},"การไหลบ่าเข้ามาอย่างแพร่หลาย และ/หรือการฟักตัวของแมลงที่มีผลกระทบต่อมนุษย์ สัตว์ พืชผล และสินค้าที่เน่าเสียง่าย ตัวอย่างเช่น ตั๊กแตน หรือ ผึ้งแอฟริกา"]
[null,{"$f":"Assumptions!B125","v":"ตะกอนไหล (Lahar)"},"ตะกอนดินทั้งแบบร้อนหรือเย็นที่ไหลตามแนวลาดภูเขาไฟเมื่อเกิดภูเขาไฟระเบิด"]
[null,{"$f":"Assumptions!B127","v":"ดินถล่มที่เกิดขึ้นตามหลังเหตุการณ์ภัยหลัก (Landslide following event)"},"การเคลื่อนตัวของมวลแผ่นดิน อาจเป็นผลจากการเกิดแผ่นดินไหว"]
[null,{"$f":"Assumptions!B128","v":"การไหลของลาวา (Lava flow)"},"มวลของเหลวแม๊กม่าที่ออกมาจากการประทุของภูเขาไฟ"]
[null,{"$f":"Assumptions!B129","v":"ฟ้าผ่า (Lightning)"},"ไฟฟ้าแรงสูงที่เกิดขึ้นและมองเห็นได้ในท้องฟ้าช่วงพายุหรือฝนฟ้าคะนอง มักตามด้วยเสียงฟ้าร้อง"]
[null,{"$f":"Assumptions!B130","v":"ธรณีสูบ (Liquefaction)"},"การเปลี่ยนสภาพของดินบางส่วนที่อิ่มน้ำจากดินแข็งเป็นดินที่มีน้ำแทรกเป็นรูพรุน เป็นผลจากแผ่นดินไหว ทำให้พื้นดินมีความอ่อนยวบและทำให้อาคารและสิ่งก่อสร้างบนพื้นผิวพังทลาย "]
[null,{"$f":"Assumptions!B58","v":"การเคลื่อนที่ของมวลดิน (Mass movement)"},"การเคลื่อนตัวของแผ่นดินในแนวลาดเอียงทุกรูปแบบ"]
[null,"ภัยทางอุตุนิยมวิทยา (Meteorological hazard)","ภัยที่เกิดจากอุณหภูมิสุดขั้วและสภาวะชั้นบรรยากาศ ทั้งระยะสั้นและยาว สามารถเกิดขั้นในห้วงนาทีหรือนานหลายวัน "]
[null,{"$f":"Assumptions!B131","v":"ภัยพิบัติจากเหมืองถ่านหิน (Mine disaster)"},"รอการอัพเดทข้อมูลต่อไป"]
[null,{"$f":"Assumptions!B133","v":"อุบัติเหตุในการเดินเรือ (Navigation accident)"},"รอการอัพเดทข้อมูลต่อไป"]
[null,{"$f":"Assumptions!B134","v":"น้ามันรั่ว (Oil spill)"},"รอการอัพเดทข้อมูลต่อไป"]
[null,{"$f":"Assumptions!B135","v":"โรคเกิดจากปรสิต (Parasitic disease)"},"การเป็นโรคที่เกิดจากการติดเชื้อโรคปรสิต มักเกิดจากน้ำและอาหารปนเปื้อน หรือการสัมผัสกับแมลง สัตว์ สัตว์เลี้ยง เป็นต้น ตัวอย่างโรค ได้แก่ ไข้มาลาเรีย ไข้ชากาส"]
[null,{"$f":"Assumptions!B136","v":"ไฟดับ (Power outage)"},"รอการอัพเดทข้อมูลต่อไป"]
[null,{"$f":"Assumptions!B137","v":"โรคเกิดจากเชื้อพรีออน (Prion disease)"},"ภัยทางชีววิทยาประเภทหนึ่งที่เกิดจากโปรตีนพรีออน โรคพรีออนหรือโรคสมองอักเสบแบบติดต่อ transmissible spongiform encephalopathies (TSEs) ทำให้เกิดการเสื่อมสภาพของเนื้อเยื่อสมอง มีระยะฟักตัวนาน พบได้ยาก แต่ส่งผลกระทบต่อทั้งมนุษย์และสัตว์ ตัวอย่าง ได้แก่ โรควัวบ้า Bovine Spongiform Encephalopathy (BSE), ครอยท์ซเฟลด์-เจคอบดิซิส Creutzfeldt-Jakob-Disease (CJD), และโรคคูรู Kuru"]
[null,{"$f":"Assumptions!B138","v":"กระแสไพโรคลาสติก (Pyroclastic flow)"},"การไหลเคลื่อนที่อย่างรวดเร็วของก๊าซที่ร้อน ขี้เถ้า หรือสสารอื่นๆ ที่มีอุณหภูมิมากว่า 1,000 องศาเซลเซียส ที่ไหลมาจากภูเขาไฟระเบิด (ความเร็วมากกว่า 700 กิโลเมตรต่อชั่วโมง)"]
[null,{"$f":"Assumptions!B139","v":"การปนเปื้อนสารกัมมันตรังสี, อุบัติเหตุนิวเคลียร์ (Radiation contamination, nuclear incident)"},"รอการอัพเดทข้อมูลต่อไป"]
[null,{"$f":"Assumptions!B140","v":"คลื่นวิทยุรบกวน (Radio disturbance)"},"คลื่นเอ็กซเรย์จากดวงอาทิตย์ที่กระทบชั้นบรรยากาศโลก ส่งผลรบกวนต่อสัญญาณการสื่อสารทั้งคลื่นความถี่ต่ำและสูง เช่น สัญญาณวิทยุดาวเทียม และ GPS"]
[null,{"$f":"Assumptions!B141","v":"อุบัติเหตุทางราง (Rail accident)"},"รอการอัพเดทข้อมูลต่อไป"]
[null,{"$f":"Assumptions!B142","v":"ฝน (Rain)"},"น้ำที่กลั่นตัวจากท้องฟ้า"]
[null,{"$f":"Assumptions!B143","v":"น้ำล้นตลิ่ง (Riverine flood)"},"น้ำที่เอ่อท่วมมาจากแม่น้ำลำคลอง เข้าไปสู่พื้นที่แห้งในที่ราบลุ่มใกล้กับลำน้ำ"]
[null,{"$f":"Assumptions!B144","v":"อุบัติเหตุทางถนน (Road accident)"},"To be updated"]
[null,{"$f":"Assumptions!B145","v":"คลื่นยักษ์ (Rogue wave)"},"คลื่นในทะเลเดี่ยวๆ ที่มีความสูงแบบผิดปกติมากกว่าคลื่นอื่น ๆ ในระนาบเดียวกัน"]
[null,{"$f":"Assumptions!B146","v":"พายุทราย/ พายุฝุ่น (Sandstorm / duststorm)"},"พายุทราย คือ ลมแรงที่พัดพาอนุภาคทรายขึ้นสูงโดยมากในระยะ 15 เมตร มักเกิดในพื้นที่แห้งแล้งหรือกึ่งแห้งแล้ง ส่วนพายุฝุ่นเป็นลมแรงที่พัดฝุ่นละอองขนาดเล็กกว่าทรายไปทั่วบริเวณที่กว้างขวาง"]
[null,{"$f":"Assumptions!B147","v":"การกระเพื่อมขึ้นลงของน้ำ (Seiche)"},"คลื่นที่เกิดขึ้นบนผิวน้ำ การกระเพื่อมของผิวน้ำ ในพื้นที่กักเก็บน้ำแบบปิด หรือกึ่งปิด เช่นทะเลทราบ หรืออ่าว เกิดจากลมแรง และ/หรือการไล่ระดับความดันอากาศขนาดใหญ่"]
[null,{"$f":"Assumptions!B148","v":"คลื่นกระแทก (Shockwave)"},"คลื่นกระแทกรับพลังงานจากการกระแทกผ่านตัวกลาง (ของแข็ง ของเหลว และก๊าซ) คล้ายกับคลื่นที่เดินทางด้วยความเร็วสูง อาจเป็นผลจากภัยนอกโลกที่เกิดจากการระเบิดกลางอากาศหรือการพุ่งชนของดาวเคราห์น้อยซึ่งสร้างพลังงานกระแทก ทำให้กระจกสั่น หรือกำแพงพังทลายได้"]
[null,{"$f":"Assumptions!B149","v":"หลุมยุบ (Sinkhold)"},"สภาพพื้นผิวยุบตัวลง จากการสลายตัวของหินใต้พื้นผิว เช่น หินปูนที่ถูกกัดเซาะโดยน้ำ"]
[null,{"$f":"Assumptions!B150","v":"หิมะ/ น้าแข็ง (Snow/ice)"},"น้ำฝนที่ตกลงมายังผิวโลกในรูปแบบของเกล็ดหิมะหรือลูกเห็บ จากไอน้ำในอากาศที่มีอุณหภูมิต่ำกว่าจุดเยือกแข็ง ส่วนน้ำแข็งนั้นสะสมตัวเมื่อฝนปะทะกับพื้นผิวความเย็นและเกิดการแข็งตัว"]
[null,{"$f":"Assumptions!B151","v":"อุบัติเหตุบนอวกาศ (Space accident)"},"รอการอัพเดทข้อมูลต่อไป"]
[null,{"$f":"Assumptions!B85","v":"อากาศในอวกาศ (Space Weather)"},"สภาพอากาศในอวกาศที่มีผลมาจากองค์ประกอบต่าง ๆ ในอวกาศ เช่น พายุสุริยะ การรบกวนของคลื่นวิทยุ ฯลฯ"]
[null,{"$f":"Assumptions!B152","v":"คลื่นพายุซัดฝั่ง (Storm surge)"},"การเพิ่มขึ้นของระดับน้ำทะเลแบบผิดปกติใกล้ชายฝั่ง เนื่องจากการเคลื่อนตัวขึ้นฝั่งของพายุหมุนเขตร้อน หรือลมที่พัดแรง"]
[null,{"$f":"Assumptions!B153","v":"โครงสร้างถล่ม (Structural collapse)"},"รอการอัพเดทข้อมูลต่อไป"]
[null,{"$f":"Assumptions!B154","v":"การทรุดตัว (Subsidence)"},"การทรุดตัวของผิวดิน เนื่องจากการสูบน้ำ การทำเหมือง แผ่นดินไหว เป็นต้น"]
[null,{"$f":"Assumptions!B155","v":"พายุทอร์นาโด (Tornado)"},"เป็นพายุลมงวงช้าง ที่เกิดจากการหมุนของอากาศทั้งบนผืนน้ำหรือผืนดิน มีพลังทำลายสูง "]
[null,{"$f":"Assumptions!B71","v":"พายุหมุนเขตร้อน (Tropical Cyclone)"},"พายุหมุนขนาดใหญ่ที่เกิดเหนือทะเลหรือมหาสมุทรในเขตร้อน โดยทั่วไปมีเส้นผ่านศูนย์กลางขนาดหลายร้อยกิโลเมตร  พายุหมุนเขตร้อน มีชื่อเรียกต่างกันไปตามแหล่งกำเนิด เช่น พายุที่เกิดในมหาสมุทรแอตแลนติกเหนือ ทะเลแคริบเบียน และอ่าวเม็กซิโก เรียกว่า \"เฮอร์ริเคน\" (Hurricane)  ถ้าเกิดขึ้นในมหาสมุทรแปซิฟิกและทะเลจีนใต้เรียกว่า \"ไต้ฝุ่น\"  (Typhoon)  ถ้าเกิดขึ้นในมหาสมุทรอินเดียเรียกว่า \"ไซโคลน\" (Cyclone) "]
[null,{"$f":"Assumptions!B156","v":"คลื่นสึนามิ (Tsunami)"},"เป็นกลุ่มคลื่นน้ำที่เกิดขึ้นจากการย้ายตัวของปริมาตรน้ำก้อนใหญ่ คือ มหาสมุทรหรือทะเลสาบขนาดใหญ่ จากการเกิดแผ่นดินไหว การปะทุของภูเขาไฟ หรือดินถล่มใต้น้ำ คลื่นสึนามินั้นเดินทางด้วยความเร็วผ่านมหาสมุทร และเมื่อไปถึงพื้นที่น้ำตื้นจะมีความเร็วลดลง แต่จะมีความสูงมากขึ้น"]
[null,{"$f":"Assumptions!B59","v":"ภูเขาไฟปะทุ (Volcanic Activity)"},"เหตุการณ์การระเบิดของภูเขาไฟ"]
[null,{"$f":"Assumptions!B64","v":"คลื่นบนผิวน้ำ (Wave action)"},"คลื่นบนผิวน้ำของมหาสมุทร แม่น้ำ หรือ ทะเลสาบ ซึ่งเกิดจากลม ขนาดของคลื่นนั้นขึ้นอยู่กับแรงลมและระยะการเคลื่อนที่"]
[null,{"$f":"Assumptions!B76","v":"ไฟป่า (Wildfire)"},"ไฟไหม้ที่เกิดขึ้นในป่า ทุ่งหญ้า หรือพื้นที่ทางธรรมชาติที่ไม่ได้มีการควบคุม สามารถแพร่กระจายไปได้ตามแรงลมและลักษณะภูมิประเทศ อาจเกิดขึ้นได้หลายสาเหตุ ทั้งจากฟ้าผ่าหรือจากน้ำมือมนุษย์"]
[null,{"$f":"Assumptions!B158","v":"ลม (Wind)"},"ความกดอากาศที่ต่างกัน สร้างการเคลื่อนตัวของอากาศจากความกดอากาศสูงไปยังความกดอากาศต่ำ หากความกดอากาศมีความแตกต่างกันมาก ลมก็จะมีความรุนแรงมากขึ้น"]
[null,{"$f":"Assumptions!B159","v":"พายุฤดูหนาว/พายุหิมะ (Winter storm / blizzard)"},"พายุในช่วงหน้าหนาวที่มีความกดอากาศต่ำ มีการสะสมของหิมะ น้ำฝนแข็ง หรือ น้ำแข็ง พายุหิมะที่รุนแรงจะมีความเร็วมากกว่า 56 กิโลเมตรต่อชั่วโมง เป็นเวลา 3 ชั่วโมงหรือมากกว่า"]
[]
[]
["End",null,null,null,null,null,null,null,null,null,null,null,"End","End","End","End","End","End","End","End","End","End","End","End","End","End","End","End","End","End","End","End","End","End","End","End","End","End","End","End","End","End","End","End","End","End","End","End","End","End","End","End","End","End","End","End","End","End","End","End","End","End","End","End","End","End","End","End","End","End","End","End","End","End","End","End","End","End","End","End","End","End","End","End","End","End","End","End","End","End","End","End","End","End","End","End","End","End","End","End","End","End","End","End","End","End","End","End","End","End","End","End","End","End","End","End","End","End","End","End","End","End","End","End","End","End","End","End","End","End","End","End","End","End","End","End","End","End","End","End","End","End","End","End","End","End","End","End","End","End","End","End","End","End","End","End","End","End","End","End","End","End","End","End","End","End","End","End","End","End","End","End","End","End","End","End","End","End","End","End","End","End","End","End","End","End","End","End","End","End","End","End","End","End","End","End","End","End","End","End","End","End","End","End","End","End","End","End","End","End","End","End","End","End","End","End","End","End","End","End","End","End","End","End","End","End","End","End","End","End","End","End","End","End","End","End","End","End","End","End","End","End","End","End","End","End","End","End","End","End","End","End","End","End","End","End","End","End","End","End","End","End","End","End","End","End","End","End","End","End","End","End","End","End","End","End","End","End","End","End","End","End","End","End","End","End","End","End","End","End","End","End","End","End","End","End","End","End","End","End","End","End","End","End","End","End","End","End","End","End","End","End","End","End","End","End","End","End","End","End","End","End","End","End","End","End","End","End","End","End","End","End","End","End","End","End","End","End","End","End","End","End","End","End","End","End","End","End","End","End","End","End","End","End","End","End","End","End","End","End","End","End","End","End","End","End","End","End","End","End","End","End","End","End","End","End","End","End","End","End","End","End","End","End","End","End","End","End","End","End","End","End","End","End","End","End","End","End","End","End","End","End","End","End","End","End","End","End","End","End","End","End","End","End","End","End","End","End","End","End","End","End","End","End","End","End","End","End","End","End","End","End","End","End","End","End","End","End","End","End","End","End","End","End","End","End","End","End","End","End","End","End","End","End","End","End","End","End","End","End","End","End","End","End","End","End","End","End","End","End","End","End","End","End","End","End","End","End","End","End","End","End","End","End","End","End","End","End","End","End","End","End","End","End","End","End","End","End","End","End","End","End","End","End","End","End","End","End","End","End","End","End","End","End","End","End","End","End","End","End","End","End","End","End","End","End","End","End","End","End","End","End","End","End","End","End","End","End","End","End","End","End","End","End","End","End","End","End","End","End","End","End","End","End","End","End","End","End","End","End","End","End","End","End","End","End","End","End","End","End","End","End","End","End","End","End","End","End","End","End","End","End","End","End","End","End","End","End","End","End","End","End","End","End","End","End","End","End","End","End","End","End","End","End","End","End","End","End","End","End","End","End","End","End","End","End","End","End","End","End","End","End","End","End","End","End","End","End","End","End","End","End","End","End","End","End","End","End","End","End","End","End","End","End","End","End","End","End","End","End","End","End","End","End","End","End","End","End","End","End","End","End","End","End","End","End","End","End","End","End","End","End","End","End","End","End","End","End","End","End","End","End","End","End","End","End","End","End","End","End","End","End","End","End","End","End","End","End","End","End","End","End","End","End","End","End","End","End","End","End","End","End","End","End","End","End","End","End","End","End","End","End","End","End","End","End","End","End","End","End","End","End","End","End","End","End","End","End","End","End","End","End","End","End","End","End","End","End","End","End","End","End","End","End","End","End","End","End","End","End","End","End","End","End","End","End","End","End","End","End","End","End","End","End","End","End","End","End","End","End","End","End","End","End","End","End","End","End","End","End","End","End","End","End","End","End","End","End","End","End","End","End","End","End","End","End","End","End","End","End","End","End","End","End","End","End","End","End","End","End","End","End","End","End","End","End","End","End","End","End","End","End","End","End","End","End","End","End","End","End","End","End","End","End","End","End","End","End","End","End","End","End","End","End","End","End","End","End","End","End","End","End","End","End","End","End","End","End","End","End","End","End","End","End","End","End","End","End","End","End","End","End","End","End","End","End","End","End","End","End","End","End","End","End","End","End","End","End","End","End","End","End","End","End","End","End","End","End","End","End","End","End","End","End","End","End","End","End","End","End","End","End","End","End","End","End","End","End","End","End","End","End","End","End","End","End","End","End","End","End","End","End","End","End","End","End","End","End","End","End","End","End","End","End","End","End","End","End","End","End","End","End","End","End","End","End","End","End","End","End","End","End","End","End","End","End","End","End","End","End","End","End","End","End","End","End","End","End","End","End","End","End","End","End","End","End","End","End","End","End","End","End","End","End","End","End","End","End","End","End","End","End","End","End","End","End","End","End","End","End","End","End","End","End","End","End","End","End","End","End","End","End","End","End","End","End","End","End","End","End","End","End","End","End","End","End","End","End","End","End","End","End","End","End","End","End","End","End","End","End","End","End","End","End","End","End","End","End","End","End","End","End","End","End","End","End","End","End","End","End","End","End","End","End","End","End","End","End","End","End","End","End","End","End","End","End","End","End","End","End","End","End","End","End","End","End","End","End","End","End","End","End","End","End","End","End","End","End","End","End","End","End","End","End","End","End","End","End","End","End","End","End","End","End","End","End","End","End","End","End","End","End","End","End","End","End","End","End","End","End","End","End","End","End","End","End","End","End","End","End","End","End","End","End","End","End","End","End","End","End","End","End","End","End","End","End","End","End","End","End","End","End","End","End","End","End","End","End","End","End","End","End","End","End","End","End","End","End","End","End","End","End","End","End","End","End","End","End","End","End","End","End","End","End","End","End","End","End","End","End","End","End","End","End","End","End","End","End","End","End","End","End","End","End","End","End","End","End","End","End","End","End","End","End","End","End","End","End","End","End","End","End","End","End","End","End","End","End","End","End","End","End","End","End","End","End","End","End","End","End","End","End","End","End","End","End","End","End","End","End","End","End","End","End","End","End","End","End","End","End","End","End","End","End","End","End","End","End","End","End","End","End","End","End","End","End","End","End","End","End","End","End","End","End","End","End","End","End","End","End","End","End","End","End","End","End","End","End","End","End","End","End","End","End","End","End","End","End","End","End","End","End","End","End","End","End","End","End","End","End","End","End","End","End","End","End","End","End","End","End","End","End","End","End","End","End","End","End","End","End","End","End","End","End","End","End","End","End","End","End","End","End","End","End","End","End","End","End","End","End","End","End","End","End","End","End","End","End","End","End","End","End","End","End","End","End","End","End","End","End","End","End","End","End","End","End","End","End","End","End","End","End","End","End","End","End","End","End","End","End","End","End","End","End","End","End","End","End","End","End","End","End","End","End","End","End","End","End","End","End","End","End","End","End","End","End","End","End","End","End","End","End","End","End","End","End","End","End","End","End","End","End","End","End","End","End","End","End","End","End","End","End","End","End","End","End","End","End","End","End","End","End","End","End","End","End","End","End","End","End","End","End","End","End","End","End","End","End","End","End","End","End","End","End","End","End","End","End","End","End","End","End","End","End","End","End","End","End","End","End","End","End","End","End","End","End","End","End","End","End","End","End","End","End","End","End","End","End","End","End","End","End","End","End","End","End","End","End","End","End","End","End","End","End","End","End","End","End","End","End","End","End","End","End","End","End","End","End","End","End","End","End","End","End","End","End","End","End","End","End","End","End","End","End","End","End","End","End","End","End","End","End","End","End","End","End","End","End","End","End","End","End","End","End","End","End","End","End","End","End","End","End","End","End","End","End","End","End","End","End","End","End","End","End","End","End","End","End","End","End","End","End","End","End","End","End","End","End","End","End","End","End","End","End","End","End","End","End","End","End","End","End","End","End","End","End","End","End","End","End","End","End","End","End","End","End","End","End","End","End","End","End","End","End","End","End","End","End","End","End","End","End","End","End","End","End","End","End","End","End","End","End","End","End","End","End","End","End","End","End","End","End","End","End","End","End","End","End","End","End","End","End","End","End","End","End","End","End","End","End","End","End","End","End","End","End","End","End","End","End","End","End","End","End","End","End","End","End","End","End","End","End","End","End","End","End","End","End","End","End","End","End","End","End","End","End","End","End","End","End","End","End","End","End","End","End","End","End","End","End","End","End","End","End","End","End","End","End","End","End","End","End","End","End","End","End","End","End","End","End","End","End","End","End","End","End","End","End","End","End","End","End","End","End","End","End","End","End","End","End","End","End","End","End","End","End","End","End","End","End","End","End","End","End","End","End","End","End","End","End","End","End","End","End","End","End","End","End","End","End","End","End","End","End","End","End","End","End","End","End","End","End","End","End","End","End","End","End","End","End","End","End","End","End","End","End","End","End","End","End","End","End","End","End","End","End","End","End","End","End","End","End","End","End","End","End","End","End","End","End","End","End","End","End","End","End","End","End","End","End","End","End","End","End","End","End","End","End","End","End","End","End","End","End","End","End","End","End","End","End","End","End","End","End","End","End","End","End","End","End","End","End","End","End","End","End","End","End","End","End","End","End","End","End","End","End","End","End","End","End","End","End","End","End","End","End","End","End","End","End","End","End","End","End","End","End","End","End","End","End","End","End","End","End","End","End","End","End","End","End","End","End","End","End","End","End","End","End","End","End","End","End","End","End","End","End","End","End","End","End","End","End","End","End","End","End","End","End","End","End","End","End","End","End","End","End","End","End","End","End","End","End","End","End","End","End","End","End","End","End","End","End","End","End","End","End","End","End","End","End","End","End","End","End","End","End","End","End","End","End","End","End","End","End","End","End","End","End","End","End","End","End","End","End","End","End","End","End","End","End","End","End","End","End","End","End","End","End","End","End","End","End","End","End","End","End","End","End","End","End","End","End","End","End","End","End","End","End","End","End","End","End","End","End","End","End","End","End","End","End","End","End","End","End","End","End","End","End","End","End","End","End","End","End","End","End","End","End","End","End","End","End","End","End","End","End","End","End","End","End","End","End","End","End","End","End","End","End","End","End","End","End","End","End","End","End","End","End","End","End","End","End","End","End","End","End","End","End","End","End","End","End","End","End","End","End","End","End","End","End","End","End","End","End","End","End","End","End","End","End","End","End","End","End","End","End","End","End","End","End","End","End","End","End","End","End","End","End","End","End","End","End","End","End","End","End","End","End","End","End","End","End","End","End","End","End","End","End","End","End","End","End","End","End","End","End","End","End","End","End","End","End","End","End","End","End","End","End","End","End","End","End","End","End","End","End","End","End","End","End","End","End","End","End","End","End","End","End","End","End","End","End","End","End","End","End","End","End","End","End","End","End","End","End","End","End","End","End","End","End","End","End","End","End","End","End","End","End","End","End","End","End","End","End","End","End","End","End","End","End","End","End","End","End","End","End","End","End","End","End","End","End","End","End","End","End","End","End","End","End","End","End","End","End","End","End","End","End","End","End","End","End","End","End","End","End","End","End","End","End","End","End","End","End","End","End","End","End","End","End","End","End","End","End","End","End","End","End","End","End","End","End","End","End","End","End","End","End","End","End","End","End","End","End","End","End","End","End","End","End","End","End","End","End","End","End","End","End","End","End","End","End","End","End","End","End","End","End","End","End","End","End","End","End","End","End","End","End","End","End","End","End","End","End","End","End","End","End","End","End","End","End","End","End","End","End","End","End","End","End","End","End","End","End","End","End","End","End","End","End","End","End","End","End","End","End","End","End","End","End","End","End","End","End","End","End","End","End","End","End","End","End","End","End","End","End","End","End","End","End","End","End","End","End","End","End","End","End","End","End","End","End","End","End","End","End","End","End","End","End","End","End","End","End","End","End","End","End","End","End","End","End","End","End","End","End","End","End","End","End","End","End","End","End","End","End","End","End","End","End","End","End","End","End","End","End","End","End","End","End","End","End","End","End","End","End","End","End","End","End","End","End","End","End","End","End","End","End","End","End","End","End","End","End","End","End","End","End","End","End","End","End","End","End","End","End","End","End","End","End","End","End","End","End","End","End","End","End","End","End","End","End","End","End","End","End","End","End","End","End","End","End","End","End","End","End","End","End","End","End","End","End","End","End","End","End","End","End","End","End","End","End","End","End","End","End","End","End","End","End","End","End","End","End","End","End","End","End","End","End","End","End","End","End","End","End","End","End","End","End","End","End","End","End","End","End","End","End","End","End","End","End","End","End","End","End","End","End","End","End","End","End","End","End","End","End","End","End","End","End","End","End","End","End","End","End","End","End","End","End","End","End","End","End","End","End","End","End","End","End","End","End","End","End","End","End","End","End","End","End","End","End","End","End","End","End","End","End","End","End","End","End","End","End","End","End","End","End","End","End","End","End","End","End","End","End","End","End","End","End","End","End","End","End","End","End","End","End","End","End","End","End","End","End","End","End","End","End","End","End","End","End","End","End","End","End","End","End","End","End","End","End","End","End","End","End","End","End","End","End","End","End","End","End","End","End","End","End","End","End","End","End","End","End","End","End","End","End","End","End","End","End","End","End","End","End","End","End","End","End","End","End","End","End","End","End","End","End","End","End","End","End","End","End","End","End","End","End","End","End","End","End","End","End","End","End","End","End","End","End","End","End","End","End","End","End","End","End","End","End","End","End","End","End","End","End","End","End","End","End","End","End","End","End","End","End","End","End","End","End","End","End","End","End","End","End","End","End","End","End","End","End","End","End","End","End","End","End","End","End","End","End","End","End","End","End","End","End","End","End","End","End","End","End","End","End","End","End","End","End","End","End","End","End","End","End","End","End","End","End","End","End","End","End","End","End","End","End","End","End","End","End","End","End","End","End","End","End","End","End","End","End","End","End","End","End","End","End","End","End","End","End","End","End","End","End","End","End","End","End","End","End","End","End","End","End","End","End","End","End","End","End","End","End","End","End","End","End","End","End","End","End","End","End","End","End","End","End","End","End","End","End","End","End","End","End","End","End","End","End","End","End","End","End","End","End","End","End","End","End","End","End","End","End","End","End","End","End","End","End","End","End","End","End","End","End","End","End","End","End","End","End","End","End","End","End","End","End","End","End","End","End","End","End","End","End","End","End","End","End","End","End","End","End","End","End","End","End","End","End","End","End","End","End","End","End","End","End","End","End","End","End","End","End","End","End","End","End","End","End","End","End","End","End","End","End","End","End","End","End","End","End","End","End","End","End","End","End","End","End","End","End","End","End","End","End","End","End","End","End","End","End","End","End","End","End","End","End","End","End","End","End","End","End","End","End","End","End","End","End","End","End","End","End","End","End","End","End","End","End","End","End","End","End","End","End","End","End","End","End","End","End","End","End","End","End","End","End","End","End","End","End","End","End","End","End","End","End","End","End","End","End","End","End","End","End","End","End","End","End","End","End","End","End","End","End","End","End","End","End","End","End","End","End","End","End","End","End","End","End","End","End","End","End","End","End","End","End","End","End","End","End","End","End","End","End","End","End","End","End","End","End","End","End","End","End","End","End","End","End","End","End","End","End","End","End","End","End","End","End","End","End","End","End","End","End","End","End","End","End","End","End","End","End","End","End","End","End","End","End","End","End","End","End","End","End","End","End","End","End","End","End","End","End","End","End","End","End","End","End","End","End","End","End","End","End","End","End","End","End","End","End","End","End","End","End","End","End","End","End","End","End","End","End","End","End","End","End","End","End","End","End","End","End","End","End","End","End","End","End","End","End","End","End","End","End","End","End","End","End","End","End","End","End","End","End","End","End","End","End","End","End","End","End","End","End","End","End","End","End","End","End","End","End","End","End","End","End","End","End","End","End","End","End","End","End","End","End","End","End","End","End","End","End","End","End","End","End","End","End","End","End","End","End","End","End","End","End","End","End","End","End","End","End","End","End","End","End","End","End","End","End","End","End","End","End","End","End","End","End","End","End","End","End","End","End","End","End","End","End","End","End","End","End","End","End","End","End","End","End","End","End","End","End","End","End","End","End","End","End","End","End","End","End","End","End","End","End","End","End","End","End","End","End","End","End","End","End","End","End","End","End","End","End","End","End","End","End","End","End","End","End","End","End","End","End","End","End","End","End","End","End","End","End","End","End","End","End","End","End","End","End","End","End","End","End","End","End","End","End","End","End","End","End","End","End","End","End","End","End","End","End","End","End","End","End","End","End","End","End","End","End","End","End","End","End","End","End","End","End","End","End","End","End","End","End","End","End","End","End","End","End","End","End","End","End","End","End","End","End","End","End","End","End","End","End","End","End","End","End","End","End","End","End","End","End","End","End","End","End","End","End","End","End","End","End","End","End","End","End","End","End","End","End","End","End","End","End","End","End","End","End","End","End","End","End","End","End","End","End","End","End","End","End","End","End","End","End","End","End","End","End","End","End","End","End","End","End","End","End","End","End","End","End","End","End","End","End","End","End","End","End","End","End","End","End","End","End","End","End","End","End","End","End","End","End","End","End","End","End","End","End","End","End","End","End","End","End","End","End","End","End","End","End","End","End","End","End","End","End","End","End","End","End","End","End","End","End","End","End","End","End","End","End","End","End","End","End","End","End","End","End","End","End","End","End","End","End","End","End","End","End","End","End","End","End","End","End","End","End","End","End","End","End","End","End","End","End","End","End","End","End","End","End","End","End","End","End","End","End","End","End","End","End","End","End","End","End","End","End","End","End","End","End","End","End","End","End","End","End","End","End","End","End","End","End","End","End","End","End","End","End","End","End","End","End","End","End","End","End","End","End","End","End","End","End","End","End","End","End","End","End","End","End","End","End","End","End","End","End","End","End","End","End","End","End","End","End","End","End","End","End","End","End","End","End","End","End","End","End","End","End","End","End","End","End","End","End","End","End","End","End","End","End","End","End","End","End","End","End","End","End","End","End","End","End","End","End","End","End","End","End","End","End","End","End","End","End","End","End","End","End","End","End","End","End","End","End","End","End","End","End","End","End","End","End","End","End","End","End","End","End","End","End","End","End","End","End","End","End","End","End","End","End","End","End","End","End","End","End","End","End","End","End","End","End","End","End","End","End","End","End","End","End","End","End","End","End","End","End","End","End","End","End","End","End","End","End","End","End","End","End","End","End","End","End","End","End","End","End","End","End","End","End","End","End","End","End","End","End","End","End","End","End","End","End","End","End","End","End","End","End","End","End","End","End","End","End","End","End","End","End","End","End","End","End","End","End","End","End","End","End","End","End","End","End","End","End","End","End","End","End","End","End","End","End","End","End","End","End","End","End","End","End","End","End","End","End","End","End","End","End","End","End","End","End","End","End","End","End","End","End","End","End","End","End","End","End","End","End","End","End","End","End","End","End","End","End","End","End","End","End","End","End","End","End","End","End","End","End","End","End","End","End","End","End","End","End","End","End","End","End","End","End","End","End","End","End","End","End","End","End","End","End","End","End","End","End","End","End","End","End","End","End","End","End","End","End","End","End","End","End","End","End","End","End","End","End","End","End","End","End","End","End","End","End","End","End","End","End","End","End","End","End","End","End","End","End","End","End","End","End","End","End","End","End","End","End","End","End","End","End","End","End","End","End","End","End","End","End","End","End","End","End","End","End","End","End","End","End","End","End","End","End","End","End","End","End","End","End","End","End","End","End","End","End","End","End","End","End","End","End","End","End","End","End","End","End","End","End","End","End","End","End","End","End","End","End","End","End","End","End","End","End","End","End","End","End","End","End","End","End","End","End","End","End","End","End","End","End","End","End","End","End","End","End","End","End","End","End","End","End","End","End","End","End","End","End","End","End","End","End","End","End","End","End","End","End","End","End","End","End","End","End","End","End","End","End","End","End","End","End","End","End","End","End","End","End","End","End","End","End","End","End","End","End","End","End","End","End","End","End","End","End","End","End","End","End","End","End","End","End","End","End","End","End","End","End","End","End","End","End","End","End","End","End","End","End","End","End","End","End","End","End","End","End","End","End","End","End","End","End","End","End","End","End","End","End","End","End","End","End","End","End","End","End","End","End","End","End","End","End","End","End","End","End","End","End","End","End","End","End","End","End","End","End","End","End","End","End","End","End","End","End","End","End","End","End","End","End","End","End","End","End","End","End","End","End","End","End","End","End","End","End","End","End","End","End","End","End","End","End","End","End","End","End","End","End","End","End","End","End","End","End","End","End","End","End","End","End","End","End","End","End","End","End","End","End","End","End","End","End","End","End","End","End","End","End","End","End","End","End","End","End","End","End","End","End","End","End","End","End","End","End","End","End","End","End","End","End","End","End","End","End","End","End","End","End","End","End","End","End","End","End","End","End","End","End","End","End","End","End","End","End","End","End","End","End","End","End","End","End","End","End","End","End","End","End","End","End","End","End","End","End","End","End","End","End","End","End","End","End","End","End","End","End","End","End","End","End","End","End","End","End","End","End","End","End","End","End","End","End","End","End","End","End","End","End","End","End","End","End","End","End","End","End","End","End","End","End","End","End","End","End","End","End","End","End","End","End","End","End","End","End","End","End","End","End","End","End","End","End","End","End","End","End","End","End","End","End","End","End","End","End","End","End","End","End","End","End","End","End","End","End","End","End","End","End","End","End","End","End","End","End","End","End","End","End","End","End","End","End","End","End","End","End","End","End","End","End","End","End","End","End","End","End","End","End","End","End","End","End","End","End","End","End","End","End","End","End","End","End","End","End","End","End","End","End","End","End","End","End","End","End","End","End","End","End","End","End","End","End","End","End","End","End","End","End","End","End","End","End","End","End","End","End","End","End","End","End","End","End","End","End","End","End","End","End","End","End","End","End","End","End","End","End","End","End","End","End","End","End","End","End","End","End","End","End","End","End","End","End","End","End","End","End","End","End","End","End","End","End","End","End","End","End","End","End","End","End","End","End","End","End","End","End","End","End","End","End","End","End","End","End","End","End","End","End","End","End","End","End","End","End","End","End","End","End","End","End","End","End","End","End","End","End","End","End","End","End","End","End","End","End","End","End","End","End","End","End","End","End","End","End","End","End","End","End","End","End","End","End","End","End","End","End","End","End","End","End","End","End","End","End","End","End","End","End","End","End","End","End","End","End","End","End","End","End","End","End","End","End","End","End","End","End","End","End","End","End","End","End","End","End","End","End","End","End","End","End","End","End","End","End","End","End","End","End","End","End","End","End","End","End","End","End","End","End","End","End","End","End","End","End","End","End","End","End","End","End","End","End","End","End","End","End","End","End","End","End","End","End","End","End","End","End","End","End","End","End","End","End","End","End","End","End","End","End","End","End","End","End","End","End","End","End","End","End","End","End","End","End","End","End","End","End","End","End","End","End","End","End","End","End","End","End","End","End","End","End","End","End","End","End","End","End","End","End","End","End","End","End","End","End","End","End","End","End","End","End","End","End","End","End","End","End","End","End","End","End","End","End","End","End","End","End","End","End","End","End","End","End","End","End","End","End","End","End","End","End","End","End","End","End","End","End","End","End","End","End","End","End","End","End","End","End","End","End","End","End","End","End","End","End","End","End","End","End","End","End","End","End","End","End","End","End","End","End","End","End","End","End","End","End","End","End","End","End","End","End","End","End","End","End","End","End","End","End","End","End","End","End","End","End","End","End","End","End","End","End","End","End","End","End","End","End","End","End","End","End","End","End","End","End","End","End","End","End","End","End","End","End","End","End","End","End","End","End","End","End","End","End","End","End","End","End","End","End","End","End","End","End","End","End","End","End","End","End","End","End","End","End","End","End","End","End","End","End","End","End","End","End","End","End","End","End","End","End","End","End","End","End","End","End","End","End","End","End","End","End","End","End","End","End","End","End","End","End","End","End","End","End","End","End","End","End","End","End","End","End","End","End","End","End","End","End","End","End","End","End","End","End","End","End","End","End","End","End","End","End","End","End","End","End","End","End","End","End","End","End","End","End","End","End","End","End","End","End","End","End","End","End","End","End","End","End","End","End","End","End","End","End","End","End","End","End","End","End","End","End","End","End","End","End","End","End","End","End","End","End","End","End","End","End","End","End","End","End","End","End","End","End","End","End","End","End","End","End","End","End","End","End","End","End","End","End","End","End","End","End","End","End","End","End","End","End","End","End","End","End","End","End","End","End","End","End","End","End","End","End","End","End","End","End","End","End","End","End","End","End","End","End","End","End","End","End","End","End","End","End","End","End","End","End","End","End","End","End","End","End","End","End","End","End","End","End","End","End","End","End","End","End","End","End","End","End","End","End","End","End","End","End","End","End","End","End","End","End","End","End","End","End","End","End","End","End","End","End","End","End","End","End","End","End","End","End","End","End","End","End","End","End","End","End","End","End","End","End","End","End","End","End","End","End","End","End","End","End","End","End","End","End","End","End","End","End","End","End","End","End","End","End","End","End","End","End","End","End","End","End","End","End","End","End","End","End","End","End","End","End","End","End","End","End","End","End","End","End","End","End","End","End","End","End","End","End","End","End","End","End","End","End","End","End","End","End","End","End","End","End","End","End","End","End","End","End","End","End","End","End","End","End","End","End","End","End","End","End","End","End","End","End","End","End","End","End","End","End","End","End","End","End","End","End","End","End","End","End","End","End","End","End","End","End","End","End","End","End","End","End","End","End","End","End","End","End","End","End","End","End","End","End","End","End","End","End","End","End","End","End","End","End","End","End","End","End","End","End","End","End","End","End","End","End","End","End","End","End","End","End","End","End","End","End","End","End","End","End","End","End","End","End","End","End","End","End","End","End","End","End","End","End","End","End","End","End","End","End","End","End","End","End","End","End","End","End","End","End","End","End","End","End","End","End","End","End","End","End","End","End","End","End","End","End","End","End","End","End","End","End","End","End","End","End","End","End","End","End","End","End","End","End","End","End","End","End","End","End","End","End","End","End","End","End","End","End","End","End","End","End","End","End","End","End","End","End","End","End","End","End","End","End","End","End","End","End","End","End","End","End","End","End","End","End","End","End","End","End","End","End","End","End","End","End","End","End","End","End","End","End","End","End","End","End","End","End","End","End","End","End","End","End","End","End","End","End","End","End","End","End","End","End","End","End","End","End","End","End","End","End","End","End","End","End","End","End","End","End","End","End","End","End","End","End","End","End","End","End","End","End","End","End","End","End","End","End","End","End","End","End","End","End","End","End","End","End","End","End","End","End","End","End","End","End","End","End","End","End","End","End","End","End","End","End","End","End","End","End","End","End","End","End","End","End","End","End","End","End","End","End","End","End","End","End","End","End","End","End","End","End","End","End","End","End","End","End","End","End","End","End","End","End","End","End","End","End","End","End","End","End","End","End","End","End","End","End","End","End","End","End","End","End","End","End","End","End","End","End","End","End","End","End","End","End","End","End","End","End","End","End","End","End","End","End","End","End","End","End","End","End","End","End","End","End","End","End","End","End","End","End","End","End","End","End","End","End","End","End","End","End","End","End","End","End","End","End","End","End","End","End","End","End","End","End","End","End","End","End","End","End","End","End","End","End","End","End","End","End","End","End","End","End","End","End","End","End","End","End","End","End","End","End","End","End","End","End","End","End","End","End","End","End","End","End","End","End","End","End","End","End","End","End","End","End","End","End","End","End","End","End","End","End","End","End","End","End","End","End","End","End","End","End","End","End","End","End","End","End","End","End","End","End","End","End","End","End","End","End","End","End","End","End","End","End","End","End","End","End","End","End","End","End","End","End","End","End","End","End","End","End","End","End","End","End","End","End","End","End","End","End","End","End","End","End","End","End","End","End","End","End","End","End","End","End","End","End","End","End","End","End","End","End","End","End","End","End","End","End","End","End","End","End","End","End","End","End","End","End","End","End","End","End","End","End","End","End","End","End","End","End","End","End","End","End","End","End","End","End","End","End","End","End","End","End","End","End","End","End","End","End","End","End","End","End","End","End","End","End","End","End","End","End","End","End","End","End","End","End","End","End","End","End","End","End","End","End","End","End","End","End","End","End","End","End","End","End","End","End","End","End","End","End","End","End","End","End","End","End","End","End","End","End","End","End","End","End","End","End","End","End","End","End","End","End","End","End","End","End","End","End","End","End","End","End","End","End","End","End","End","End","End","End","End","End","End","End","End","End","End","End","End","End","End","End","End","End","End","End","End","End","End","End","End","End","End","End","End","End","End","End","End","End","End","End","End","End","End","End","End","End","End","End","End","End","End","End","End","End","End","End","End","End","End","End","End","End","End","End","End","End","End","End","End","End","End","End","End","End","End","End","End","End","End","End","End","End","End","End","End","End","End","End","End","End","End","End","End","End","End","End","End","End","End","End","End","End","End","End","End","End","End","End","End","End","End","End","End","End","End","End","End","End","End","End","End","End","End","End","End","End","End","End","End","End","End","End","End","End","End","End","End","End","End","End","End","End","End","End","End","End","End","End","End","End","End","End","End","End","End","End","End","End","End","End","End","End","End","End","End","End","End","End","End","End","End","End","End","End","End","End","End","End","End","End","End","End","End","End","End","End","End","End","End","End","End","End","End","End","End","End","End","End","End","End","End","End","End","End","End","End","End","End","End","End","End","End","End","End","End","End","End","End","End","End","End","End","End","End","End","End","End","End","End","End","End","End","End","End","End","End","End","End","End","End","End","End","End","End","End","End","End","End","End","End","End","End","End","End","End","End","End","End","End","End","End","End","End","End","End","End","End","End","End","End","End","End","End","End","End","End","End","End","End","End","End","End","End","End","End","End","End","End","End","End","End","End","End","End","End","End","End","End","End","End","End","End","End","End","End","End","End","End","End","End","End","End","End","End","End","End","End","End","End","End","End","End","End","End","End","End","End","End","End","End","End","End","End","End","End","End","End","End","End","End","End","End","End","End","End","End","End","End","End","End","End","End","End","End","End","End","End","End","End","End","End","End","End","End","End","End","End","End","End","End","End","End","End","End","End","End","End","End","End","End","End","End","End","End","End","End","End","End","End","End","End","End","End","End","End","End","End","End","End","End","End","End","End","End","End","End","End","End","End","End","End","End","End","End","End","End","End","End","End","End","End","End","End","End","End","End","End","End","End","End","End","End","End","End","End","End","End","End","End","End","End","End","End","End","End","End","End","End","End","End","End","End","End","End","End","End","End","End","End","End","End","End","End","End","End","End","End","End","End","End","End","End","End","End","End","End","End","End","End","End","End","End","End","End","End","End","End","End","End","End","End","End","End","End","End","End","End","End","End","End","End","End","End","End","End","End","End","End","End","End","End","End","End","End","End","End","End","End","End","End","End","End","End","End","End","End","End","End","End","End","End","End","End","End","End","End","End","End","End","End","End","End","End","End","End","End","End","End","End","End","End","End","End","End","End","End","End","End","End","End","End","End","End","End","End","End","End","End","End","End","End","End","End","End","End","End","End","End","End","End","End","End","End","End","End","End","End","End","End","End","End","End","End","End","End","End","End","End","End","End","End","End","End","End","End","End","End","End","End","End","End","End","End","End","End","End","End","End","End","End","End","End","End","End","End","End","End","End","End","End","End","End","End","End","End","End","End","End","End","End","End","End","End","End","End","End","End","End","End","End","End","End","End","End","End","End","End","End","End","End","End","End","End","End","End","End","End","End","End","End","End","End","End","End","End","End","End","End","End","End","End","End","End","End","End","End","End","End","End","End","End","End","End","End","End","End","End","End","End","End","End","End","End","End","End","End","End","End","End","End","End","End","End","End","End","End","End","End","End","End","End","End","End","End","End","End","End","End","End","End","End","End","End","End","End","End","End","End","End","End","End","End","End","End","End","End","End","End","End","End","End","End","End","End","End","End","End","End","End","End","End","End","End","End","End","End","End","End","End","End","End","End","End","End","End","End","End","End","End","End","End","End","End","End","End","End","End","End","End","End","End","End","End","End","End","End","End","End","End","End","End","End","End","End","End","End","End","End","End","End","End","End","End","End","End","End","End","End","End","End","End","End","End","End","End","End","End","End","End","End","End","End","End","End","End","End","End","End","End","End","End","End","End","End","End","End","End","End","End","End","End","End","End","End","End","End","End","End","End","End","End","End","End","End","End","End","End","End","End","End","End","End","End","End","End","End","End","End","End","End","End","End","End","End","End","End","End","End","End","End","End","End","End","End","End","End","End","End","End","End","End","End","End","End","End","End","End","End","End","End","End","End","End","End","End","End","End","End","End","End","End","End","End","End","End","End","End","End","End","End","End","End","End","End","End","End","End","End","End","End","End","End","End","End","End","End","End","End","End","End","End","End","End","End","End","End","End","End","End","End","End","End","End","End","End","End","End","End","End","End","End","End","End","End","End","End","End","End","End","End","End","End","End","End","End","End","End","End","End","End","End","End","End","End","End","End","End","End","End","End","End","End","End","End","End","End","End","End","End","End","End","End","End","End","End","End","End","End","End","End","End","End","End","End","End","End","End","End","End","End","End","End","End","End","End","End","End","End","End","End","End","End","End","End","End","End","End","End","End","End","End","End","End","End","End","End","End","End","End","End","End","End","End","End","End","End","End","End","End","End","End","End","End","End","End","End","End","End","End","End","End","End","End","End","End","End","End","End","End","End","End","End","End","End","End","End","End","End","End","End","End","End","End","End","End","End","End","End","End","End","End","End","End","End","End","End","End","End","End","End","End","End","End","End","End","End","End","End","End","End","End","End","End","End","End","End","End","End","End","End","End","End","End","End","End","End","End","End","End","End","End","End","End","End","End","End","End","End","End","End","End","End","End","End","End","End","End","End","End","End","End","End","End","End","End","End","End","End","End","End","End","End","End","End","End","End","End","End","End","End","End","End","End","End","End","End","End","End","End","End","End","End","End","End","End","End","End","End","End","End","End","End","End","End","End","End","End","End","End","End","End","End","End","End","End","End","End","End","End","End","End","End","End","End","End","End","End","End","End","End","End","End","End","End","End","End","End","End","End","End","End","End","End","End","End","End","End","End","End","End","End","End","End","End","End","End","End","End","End","End","End","End","End","End","End","End","End","End","End","End","End","End","End","End","End","End","End","End","End","End","End","End","End","End","End","End","End","End","End","End","End","End","End","End","End","End","End","End","End","End","End","End","End","End","End","End","End","End","End","End","End","End","End","End","End","End","End","End","End","End","End","End","End","End","End","End","End","End","End","End","End","End","End","End","End","End","End","End","End","End","End","End","End","End","End","End","End","End","End","End","End","End","End","End","End","End","End","End","End","End","End","End","End","End","End","End","End","End","End","End","End","End","End","End","End","End","End","End","End","End","End","End","End","End","End","End","End","End","End","End","End","End","End","End","End","End","End","End","End","End","End","End","End","End","End","End","End","End","End","End","End","End","End","End","End","End","End","End","End","End","End","End","End","End","End","End","End","End","End","End","End","End","End","End","End","End","End","End","End","End","End","End","End","End","End","End","End","End","End","End","End","End","End","End","End","End","End","End","End","End","End","End","End","End","End","End","End","End","End","End","End","End","End","End","End","End","End","End","End","End","End","End","End","End","End","End","End","End","End","End","End","End","End","End","End","End","End","End","End","End","End","End","End","End","End","End","End","End","End","End","End","End","End","End","End","End","End","End","End","End","End","End","End","End","End","End","End","End","End","End","End","End","End","End","End","End","End","End","End","End","End","End","End","End","End","End","End","End","End","End","End","End","End","End","End","End","End","End","End","End","End","End","End","End","End","End","End","End","End","End","End","End","End","End","End","End","End","End","End","End","End","End","End","End","End","End","End","End","End","End","End","End","End","End","End","End","End","End","End","End","End","End","End","End","End","End","End","End","End","End","End","End","End","End","End","End","End","End","End","End","End","End","End","End","End","End","End","End","End","End","End","End","End","End","End","End","End","End","End","End","End","End","End","End","End","End","End","End","End","End","End","End","End","End","End","End","End","End","End","End","End","End","End","End","End","End","End","End","End","End","End","End","End","End","End","End","End","End","End","End","End","End","End","End","End","End","End","End","End","End","End","End","End","End","End","End","End","End","End","End","End","End","End","End","End","End","End","End","End","End","End","End","End","End","End","End","End","End","End","End","End","End","End","End","End","End","End","End","End","End","End","End","End","End","End","End","End","End","End","End","End","End","End","End","End","End","End","End","End","End","End","End","End","End","End","End","End","End","End","End","End","End","End","End","End","End","End","End","End","End","End","End","End","End","End","End","End","End","End","End","End","End","End","End","End","End","End","End","End","End","End","End","End","End","End","End","End","End","End","End","End","End","End","End","End","End","End","End","End","End","End","End","End","End","End","End","End","End","End","End","End","End","End","End","End","End","End","End","End","End","End","End","End","End","End","End","End","End","End","End","End","End","End","End","End","End","End","End","End","End","End","End","End","End","End","End","End","End","End","End","End","End","End","End","End","End","End","End","End","End","End","End","End","End","End","End","End","End","End","End","End","End","End","End","End","End","End","End","End","End","End","End","End","End","End","End","End","End","End","End","End","End","End","End","End","End","End","End","End","End","End","End","End","End","End","End","End","End","End","End","End","End","End","End","End","End","End","End","End","End","End","End","End","End","End","End","End","End","End","End","End","End","End","End","End","End","End","End","End","End","End","End","End","End","End","End","End","End","End","End","End","End","End","End","End","End","End","End","End","End","End","End","End","End","End","End","End","End","End","End","End","End","End","End","End","End","End","End","End","End","End","End","End","End","End","End","End","End","End","End","End","End","End","End","End","End","End","End","End","End","End","End","End","End","End","End","End","End","End","End","End","End","End","End","End","End","End","End","End","End","End","End","End","End","End","End","End","End","End","End","End","End","End","End","End","End","End","End","End","End","End","End","End","End","End","End","End","End","End","End","End","End","End","End","End","End","End","End","End","End","End","End","End","End","End","End","End","End","End","End","End","End","End","End","End","End","End","End","End","End","End","End","End","End","End","End","End","End","End","End","End","End","End","End","End","End","End","End","End","End","End","End","End","End","End","End","End","End","End","End","End","End","End","End","End","End","End","End","End","End","End","End","End","End","End","End","End","End","End","End","End","End","End","End","End","End","End","End","End","End","End","End","End","End","End","End","End","End","End","End","End","End","End","End","End","End","End","End","End","End","End","End","End","End","End","End","End","End","End","End","End","End","End","End","End","End","End","End","End","End","End","End","End","End","End","End","End","End","End","End","End","End","End","End","End","End","End","End","End","End","End","End","End","End","End","End","End","End","End","End","End","End","End","End","End","End","End","End","End","End","End","End","End","End","End","End","End","End","End","End","End","End","End","End","End","End","End","End","End","End","End","End","End","End","End","End","End","End","End","End","End","End","End","End","End","End","End","End","End","End","End","End","End","End","End","End","End","End","End","End","End","End","End","End","End","End","End","End","End","End","End","End","End","End","End","End","End","End","End","End","End","End","End","End","End","End","End","End","End","End","End","End","End","End","End","End","End","End","End","End","End","End","End","End","End","End","End","End","End","End","End","End","End","End","End","End","End","End","End","End","End","End","End","End","End","End","End","End","End","End","End","End","End","End","End","End","End","End","End","End","End","End","End","End","End","End","End","End","End","End","End","End","End","End","End","End","End","End","End","End","End","End","End","End","End","End","End","End","End","End","End","End","End","End","End","End","End","End","End","End","End","End","End","End","End","End","End","End","End","End","End","End","End","End","End","End","End","End","End","End","End","End","End","End","End","End","End","End","End","End","End","End","End","End","End","End","End","End","End","End","End","End","End","End","End","End","End","End","End","End","End","End","End","End","End","End","End","End","End","End","End","End","End","End","End","End","End","End","End","End","End","End","End","End","End","End","End","End","End","End","End","End","End","End","End","End","End","End","End","End","End","End","End","End","End","End","End","End","End","End","End","End","End","End","End","End","End","End","End","End","End","End","End","End","End","End","End","End","End","End","End","End","End","End","End","End","End","End","End","End","End","End","End","End","End","End","End","End","End","End","End","End","End","End","End","End","End","End","End","End","End","End","End","End","End","End","End","End","End","End","End","End","End","End","End","End","End","End","End","End","End","End","End","End","End","End","End","End","End","End","End","End","End","End","End","End","End","End","End","End","End","End","End","End","End","End","End","End","End","End","End","End","End","End","End","End","End","End","End","End","End","End","End","End","End","End","End","End","End","End","End","End","End","End","End","End","End","End","End","End","End","End","End","End","End","End","End","End","End","End","End","End","End","End","End","End","End","End","End","End","End","End","End","End","End","End","End","End","End","End","End","End","End","End","End","End","End","End","End","End","End","End","End","End","End","End","End","End","End","End","End","End","End","End","End","End","End","End","End","End","End","End","End","End","End","End","End","End","End","End","End","End","End","End","End","End","End","End","End","End","End","End","End","End","End","End","End","End","End","End","End","End","End","End","End","End","End","End","End","End","End","End","End","End","End","End","End","End","End","End","End","End","End","End","End","End","End","End","End","End","End","End","End","End","End","End","End","End","End","End","End","End","End","End","End","End","End","End","End","End","End","End","End","End","End","End","End","End","End","End","End","End","End","End","End","End","End","End","End","End","End","End","End","End","End","End","End","End","End","End","End","End","End","End","End","End","End","End","End","End","End","End","End","End","End","End","End","End","End","End","End","End","End","End","End","End","End","End","End","End","End","End","End","End","End","End","End","End","End","End","End","End","End","End","End","End","End","End","End","End","End","End","End","End","End","End","End","End","End","End","End","End","End","End","End","End","End","End","End","End","End","End","End","End","End","End","End","End","End","End","End","End","End","End","End","End","End","End","End","End","End","End","End","End","End","End","End","End","End","End","End","End","End","End","End","End","End","End","End","End","End","End","End","End","End","End","End","End","End","End","End","End","End","End","End","End","End","End","End","End","End","End","End","End","End","End","End","End","End","End","End","End","End","End","End","End","End","End","End","End","End","End","End","End","End","End","End","End","End","End","End","End","End","End","End","End","End","End","End","End","End","End","End","End","End","End","End","End","End","End","End","End","End","End","End","End","End","End","End","End","End","End","End","End","End","End","End","End","End","End","End","End","End","End","End","End","End","End","End","End","End","End","End","End","End","End","End","End","End","End","End","End","End","End","End","End","End","End","End","End","End","End","End","End","End","End","End","End","End","End","End","End","End","End","End","End","End","End","End","End","End","End","End","End","End","End","End","End","End","End","End","End","End","End","End","End","End","End","End","End","End","End","End","End","End","End","End","End","End","End","End","End","End","End","End","End","End","End","End","End","End","End","End","End","End","End","End","End","End","End","End","End","End","End","End","End","End","End","End","End","End","End","End","End","End","End","End","End","End","End","End","End","End","End","End","End","End","End","End","End","End","End","End","End","End","End","End","End","End","End","End","End","End","End","End","End","End","End","End","End","End","End","End","End","End","End","End","End","End","End","End","End","End","End","End","End","End","End","End","End","End","End","End","End","End","End","End","End","End","End","End","End","End","End","End","End","End","End","End","End","End","End","End","End","End","End","End","End","End","End","End","End","End","End","End","End","End","End","End","End","End","End","End","End","End","End","End","End","End","End","End","End","End","End","End","End","End","End","End","End","End","End","End","End","End","End","End","End","End","End","End","End","End","End","End","End","End","End","End","End","End","End","End","End","End","End","End","End","End","End","End","End","End","End","End","End","End","End","End","End","End","End","End","End","End","End","End","End","End","End","End","End","End","End","End","End","End","End","End","End","End","End","End","End","End","End","End","End","End","End","End","End","End","End","End","End","End","End","End","End","End","End","End","End","End","End","End","End","End","End","End","End","End","End","End","End","End","End","End","End","End","End","End","End","End","End","End","End","End","End","End","End","End","End","End","End","End","End","End","End","End","End","End","End","End","End","End","End","End","End","End","End","End","End","End","End","End","End","End","End","End","End","End","End","End","End","End","End","End","End","End","End","End","End","End","End","End","End","End","End","End","End","End","End","End","End","End","End","End","End","End","End","End","End","End","End","End","End","End","End","End","End","End","End","End","End","End","End","End","End","End","End","End","End","End","End","End","End","End","End","End","End","End","End","End","End","End","End","End","End","End","End","End","End","End","End","End","End","End","End","End","End","End","End","End","End","End","End","End","End","End","End","End","End","End","End","End","End","End","End","End","End","End","End","End","End","End","End","End","End","End","End","End","End","End","End","End","End","End","End","End","End","End","End","End","End","End","End","End","End","End","End","End","End","End","End","End","End","End","End","End","End","End","End","End","End","End","End","End","End","End","End","End","End","End","End","End","End","End","End","End","End","End","End","End","End","End","End","End","End","End","End","End","End","End","End","End","End","End","End","End","End","End","End","End","End","End","End","End","End","End","End","End","End","End","End","End","End","End","End","End","End","End","End","End","End","End","End","End","End","End","End","End","End","End","End","End","End","End","End","End","End","End","End","End","End","End","End","End","End","End","End","End","End","End","End","End","End","End","End","End","End","End","End","End","End","End","End","End","End","End","End","End","End","End","End","End","End","End","End","End","End","End","End","End","End","End","End","End","End","End","End","End","End","End","End","End","End","End","End","End","End","End","End","End","End","End","End","End","End","End","End","End","End","End","End","End","End","End","End","End","End","End","End","End","End","End","End","End","End","End","End","End","End","End","End","End","End","End","End","End","End","End","End","End","End","End","End","End","End","End","End","End","End","End","End","End","End","End","End","End","End","End","End","End","End","End","End","End","End","End","End","End","End","End","End","End","End","End","End","End","End","End","End","End","End","End","End","End","End","End","End","End","End","End","End","End","End","End","End","End","End","End","End","End","End","End","End","End","End","End","End","End","End","End","End","End","End","End","End","End","End","End","End","End","End","End","End","End","End","End","End","End","End","End","End","End","End","End","End","End","End","End","End","End","End","End","End","End","End","End","End","End","End","End","End","End","End","End","End","End","End","End","End","End","End","End","End","End","End","End","End","End","End","End","End","End","End","End","End","End","End","End","End","End","End","End","End","End","End","End","End","End","End","End","End","End","End","End","End","End","End","End","End","End","End","End","End","End","End","End","End","End","End","End","End","End","End","End","End","End","End","End","End","End","End","End","End","End","End","End","End","End","End","End","End","End","End","End","End","End","End","End","End","End","End","End","End","End","End","End","End","End","End","End","End","End","End","End","End","End","End","End","End","End","End","End","End","End","End","End","End","End","End","End","End","End","End","End","End","End","End","End","End","End","End","End","End","End","End","End","End","End","End","End","End","End","End","End","End","End","End","End","End","End","End","End","End","End","End","End","End","End","End","End","End","End","End","End","End","End","End","End","End","End","End","End","End","End","End","End","End","End","End","End","End","End","End","End","End","End","End","End","End","End","End","End","End","End","End","End","End","End","End","End","End","End","End","End","End","End","End","End","End","End","End","End","End","End","End","End","End","End","End","End","End","End","End","End","End","End","End","End","End","End","End","End","End","End","End","End","End","End","End","End","End","End","End","End","End","End","End","End","End","End","End","End","End","End","End","End","End","End","End","End","End","End","End","End","End","End","End","End","End","End","End","End","End","End","End","End","End","End","End","End","End","End","End","End","End","End","End","End","End","End","End","End","End","End","End","End","End","End","End","End","End","End","End","End","End","End","End","End","End","End","End","End","End","End","End","End","End","End","End","End","End","End","End","End","End","End","End","End","End","End","End","End","End","End","End","End","End","End","End","End","End","End","End","End","End","End","End","End","End","End","End","End","End","End","End","End","End","End","End","End","End","End","End","End","End","End","End","End","End","End","End","End","End","End","End","End","End","End","End","End","End","End","End","End","End","End","End","End","End","End","End","End","End","End","End","End","End","End","End","End","End","End","End","End","End","End","End","End","End","End","End","End","End","End","End","End","End","End","End","End","End","End","End","End","End","End","End","End","End","End","End","End","End","End","End","End","End","End","End","End","End","End","End","End","End","End","End","End","End","End","End","End","End","End","End","End","End","End","End","End","End","End","End","End","End","End","End","End","End","End","End","End","End","End","End","End","End","End","End","End","End","End","End","End","End","End","End","End","End","End","End","End","End","End","End","End","End","End","End","End","End","End","End","End","End","End","End","End","End","End","End","End","End","End","End","End","End","End","End","End","End","End","End","End","End","End","End","End","End","End","End","End","End","End","End","End","End","End","End","End","End","End","End","End","End","End","End","End","End","End","End","End","End","End","End","End","End","End","End","End","End","End","End","End","End","End","End","End","End","End","End","End","End","End","End","End","End","End","End","End","End","End","End","End","End","End","End","End","End","End","End","End","End","End","End","End","End","End","End","End","End","End","End","End","End","End","End","End","End","End","End","End","End","End","End","End","End","End","End","End","End","End","End","End","End","End","End","End","End","End","End","End","End","End","End","End","End","End","End","End","End","End","End","End","End","End","End","End","End","End","End","End","End","End","End","End","End","End","End","End","End","End","End","End","End","End","End","End","End","End","End","End","End","End","End","End","End","End","End","End","End","End","End","End","End","End","End","End","End","End","End","End","End","End","End","End","End","End","End","End","End","End","End","End","End","End","End","End","End","End","End","End","End","End","End","End","End","End","End","End","End","End","End","End","End","End","End","End","End","End","End","End","End","End","End","End","End","End","End","End","End","End","End","End","End","End","End","End","End","End","End","End","End","End","End","End","End","End","End","End","End","End","End","End","End","End","End","End","End","End","End","End","End","End","End","End","End","End","End","End","End","End","End","End","End","End","End","End","End","End","End","End","End","End","End","End","End","End","End","End","End","End","End","End","End","End","End","End","End","End","End","End","End","End","End","End","End","End","End","End","End","End","End","End","End","End","End","End","End","End","End","End","End","End","End","End","End","End","End","End","End","End","End","End","End","End","End","End","End","End","End","End","End","End","End","End","End","End","End","End","End","End","End","End","End","End","End","End","End","End","End","End","End","End","End","End","End","End","End","End","End","End","End","End","End","End","End","End","End","End","End","End","End","End","End","End","End","End","End","End","End","End","End","End","End","End","End","End","End","End","End","End","End","End","End","End","End","End","End","End","End","End","End","End","End","End","End","End","End","End","End","End","End","End","End","End","End","End","End","End","End","End","End","End","End","End","End","End","End","End","End","End","End","End","End","End","End","End","End","End","End","End","End","End","End","End","End","End","End","End","End","End","End","End","End","End","End","End","End","End","End","End","End","End","End","End","End","End","End","End","End","End","End","End","End","End","End","End","End","End","End","End","End","End","End","End","End","End","End","End","End","End","End","End","End","End","End","End","End","End","End","End","End","End","End","End","End","End","End","End","End","End","End","End","End","End","End","End","End","End","End","End","End","End","End","End","End","End","End","End","End","End","End","End","End","End","End","End","End","End","End","End","End","End","End","End","End","End","End","End","End","End","End","End","End","End","End","End","End","End","End","End","End","End","End","End","End","End","End","End","End","End","End","End","End","End","End","End","End","End","End","End","End","End","End","End","End","End","End","End","End","End","End","End","End","End","End","End","End","End","End","End","End","End","End","End","End","End","End","End","End","End","End","End","End","End","End","End","End","End","End","End","End","End","End","End","End","End","End","End","End","End","End","End","End","End","End","End","End","End","End","End","End","End","End","End","End","End","End","End","End","End","End","End","End","End","End","End","End","End","End","End","End","End","End","End","End","End","End","End","End","End","End","End","End","End","End","End","End","End","End","End","End","End","End","End","End","End","End","End","End","End","End","End","End","End","End","End","End","End","End","End","End","End","End","End","End","End","End","End","End","End","End","End","End","End","End","End","End","End","End","End","End","End","End","End","End","End","End","End","End","End","End","End","End","End","End","End","End","End","End","End","End","End","End","End","End","End","End","End","End","End","End","End","End","End","End","End","End","End","End","End","End","End","End","End","End","End","End","End","End","End","End","End","End","End","End","End","End","End","End","End","End","End","End","End","End","End","End","End","End","End","End","End","End","End","End","End","End","End","End","End","End","End","End","End","End","End","End","End","End","End","End","End","End","End","End","End","End","End","End","End","End","End","End","End","End","End","End","End","End","End","End","End","End","End","End","End","End","End","End","End","End","End","End","End","End","End","End","End","End","End","End","End","End","End","End","End","End","End","End","End","End","End","End","End","End","End","End","End","End","End","End","End","End","End","End","End","End","End","End","End","End","End","End","End","End","End","End","End","End","End","End","End","End","End","End","End","End","End","End","End","End","End","End","End","End","End","End","End","End","End","End","End","End","End","End","End","End","End","End","End","End","End","End","End","End","End","End","End","End","End","End","End","End","End","End","End","End","End","End","End","End","End","End","End","End","End","End","End","End","End","End","End","End","End","End","End","End","End","End","End","End","End","End","End","End","End","End","End","End","End","End","End","End","End","End","End","End","End","End","End","End","End","End","End","End","End","End","End","End","End","End","End","End","End","End","End","End","End","End","End","End","End","End","End","End","End","End","End","End","End","End","End","End","End","End","End","End","End","End","End","End","End","End","End","End","End","End","End","End","End","End","End","End","End","End","End","End","End","End","End","End","End","End","End","End","End","End","End","End","End","End","End","End","End","End","End","End","End","End","End","End","End","End","End","End","End","End","End","End","End","End","End","End","End","End","End","End","End","End","End","End","End","End","End","End","End","End","End","End","End","End","End","End","End","End","End","End","End","End","End","End","End","End","End","End","End","End","End","End","End","End","End","End","End","End","End","End","End","End","End","End","End","End","End","End","End","End","End","End","End","End","End","End","End","End","End","End","End","End","End","End","End","End","End","End","End","End","End","End","End","End","End","End","End","End","End","End","End","End","End","End","End","End","End","End","End","End","End","End","End","End","End","End","End","End","End","End","End","End","End","End","End","End","End","End","End","End","End","End","End","End","End","End","End","End","End","End","End","End","End","End","End","End","End","End","End","End","End","End","End","End","End","End","End","End","End","End","End","End","End","End","End","End","End","End","End","End","End","End","End","End","End","End","End","End","End","End","End","End","End","End","End","End","End","End","End","End","End","End","End","End","End","End","End","End","End","End","End","End","End","End","End","End","End","End","End","End","End","End","End","End","End","End","End","End","End","End","End","End","End","End","End","End","End","End","End","End","End","End","End","End","End","End","End","End","End","End","End","End","End","End","End","End","End","End","End","End","End","End","End","End","End","End","End","End","End","End","End","End","End","End","End","End","End","End","End","End","End","End","End","End","End","End","End","End","End","End","End","End","End","End","End","End","End","End","End","End","End","End","End","End","End","End","End","End","End","End","End","End","End","End","End","End","End","End","End","End","End","End","End","End","End","End","End","End","End","End","End","End","End","End","End","End","End","End","End","End","End","End","End","End","End","End","End","End","End","End","End","End","End","End","End","End","End","End","End","End","End","End","End","End","End","End","End","End","End","End","End","End","End","End","End","End","End","End","End","End","End","End","End","End","End","End","End","End","End","End","End","End","End","End","End","End","End","End","End","End","End","End","End","End","End","End","End","End","End","End","End","End","End","End","End","End","End","End","End","End","End","End","End","End","End","End","End","End","End","End","End","End","End","End","End","End","End","End","End","End","End","End","End","End","End","End","End","End","End","End","End","End","End","End","End","End","End","End","End","End","End","End","End","End","End","End","End","End","End","End","End","End","End","End","End","End","End","End","End","End","End","End","End","End","End","End","End","End","End","End","End","End","End","End","End","End","End","End","End","End","End","End","End","End","End","End","End","End","End","End","End","End","End","End","End","End","End","End","End","End","End","End","End","End","End","End","End","End","End","End","End","End","End","End","End","End","End","End","End","End","End","End","End","End","End","End","End","End","End","End","End","End","End","End","End","End","End","End","End","End","End","End","End","End","End","End","End","End","End","End","End","End","End","End","End","End","End","End","End","End","End","End","End","End","End","End","End","End","End","End","End","End","End","End","End","End","End","End","End","End","End","End","End","End","End","End","End","End","End","End","End","End","End","End","End","End","End","End","End","End","End","End","End","End","End","End","End","End","End","End","End","End","End","End","End","End","End","End","End","End","End","End","End","End","End","End","End","End","End","End","End","End","End","End","End","End","End","End","End","End","End","End","End","End","End","End","End","End","End","End","End","End","End","End","End","End","End","End","End","End","End","End","End","End","End","End","End","End","End","End","End","End","End","End","End","End","End","End","End","End","End","End","End","End","End","End","End","End","End","End","End","End","End","End","End","End","End","End","End","End","End","End","End","End","End","End","End","End","End","End","End","End","End","End","End","End","End","End","End","End","End","End","End","End","End","End","End","End","End","End","End","End","End","End","End","End","End","End","End","End","End","End","End","End","End","End","End","End","End","End","End","End","End","End","End","End","End","End","End","End","End","End","End","End","End","End","End","End","End","End","End","End","End","End","End","End","End","End","End","End","End","End","End","End","End","End","End","End","End","End","End","End","End","End","End","End","End","End","End","End","End","End","End","End","End","End","End","End","End","End","End","End","End","End","End","End","End","End","End","End","End","End","End","End","End","End","End","End","End","End","End","End","End","End","End","End","End","End","End","End","End","End","End","End","End","End","End","End","End","End","End","End","End","End","End","End","End","End","End","End","End","End","End","End","End","End","End","End","End","End","End","End","End","End","End","End","End","End","End","End","End","End","End","End","End","End","End","End","End","End","End","End","End","End","End","End","End","End","End","End","End","End","End","End","End","End","End","End","End","End","End","End","End","End","End","End","End","End","End","End","End","End","End","End","End","End","End","End","End","End","End","End","End","End","End","End","End","End","End","End","End","End","End","End","End","End","End","End","End","End","End","End","End","End","End","End","End","End","End","End","End","End","End","End","End","End","End","End","End","End","End","End","End","End","End","End","End","End","End","End","End","End","End","End","End","End","End","End","End","End","End","End","End","End","End","End","End","End","End","End","End","End","End","End","End","End","End","End","End","End","End","End","End","End","End","End","End","End","End","End","End","End","End","End","End","End","End","End","End","End","End","End","End","End","End","End","End","End","End","End","End","End","End","End","End","End","End","End","End","End","End","End","End","End","End","End","End","End","End","End","End","End","End","End","End","End","End","End","End","End","End","End","End","End","End","End","End","End","End","End","End","End","End","End","End","End","End","End","End","End","End","End","End","End","End","End","End","End","End","End","End","End","End","End","End","End","End","End","End","End","End","End","End","End","End","End","End","End","End","End","End","End","End","End","End","End","End","End","End","End","End","End","End","End","End","End","End","End","End","End","End","End","End","End","End","End","End","End","End","End","End","End","End","End","End","End","End","End","End","End","End","End","End","End","End","End","End","End","End","End","End","End","End","End","End","End","End","End","End","End","End","End","End","End","End","End","End","End","End","End","End","End","End","End","End","End","End","End","End","End","End","End","End","End","End","End","End","End","End","End","End","End","End","End","End","End","End","End","End","End","End","End","End","End","End","End","End","End","End","End","End","End","End","End","End","End","End","End","End","End","End","End","End","End","End","End","End","End","End","End","End","End","End","End","End","End","End","End","End","End","End","End","End","End","End","End","End","End","End","End","End","End","End","End","End","End","End","End","End","End","End","End","End","End","End","End","End","End","End","End","End","End","End","End","End","End","End","End","End","End","End","End","End","End","End","End","End","End","End","End","End","End","End","End","End","End","End","End","End","End","End","End","End","End","End","End","End","End","End","End","End","End","End","End","End","End","End","End","End","End","End","End","End","End","End","End","End","End","End","End","End","End","End","End","End","End","End","End","End","End","End","End","End","End","End","End","End","End","End","End","End","End","End","End","End","End","End","End","End","End","End","End","End","End","End","End","End","End","End","End","End","End","End","End","End","End","End","End","End","End","End","End","End","End","End","End","End","End","End","End","End","End","End","End","End","End","End","End","End","End","End","End","End","End","End","End","End","End","End","End","End","End","End","End","End","End","End","End","End","End","End","End","End","End","End","End","End","End","End","End","End","End","End","End","End","End","End","End","End","End","End","End","End","End","End","End","End","End","End","End","End","End","End","End","End","End","End","End","End","End","End","End","End","End","End","End","End","End","End","End","End","End","End","End","End","End","End","End","End","End","End","End","End","End","End","End","End","End","End","End","End","End","End","End","End","End","End","End","End","End","End","End","End","End","End","End","End","End","End","End","End","End","End","End","End","End","End","End","End","End","End","End","End","End","End","End","End","End","End","End","End","End","End","End","End","End","End","End","End","End","End","End","End","End","End","End","End","End","End","End","End","End","End","End","End","End","End","End","End","End","End","End","End","End","End","End","End","End","End","End","End","End","End","End","End","End","End","End","End","End","End","End","End","End","End","End","End","End","End","End","End","End","End","End","End","End","End","End","End","End","End","End","End","End","End","End","End","End","End","End","End","End","End","End","End","End","End","End","End","End","End","End","End","End","End","End","End","End","End","End","End","End","End","End","End","End","End","End","End","End","End","End","End","End","End","End","End","End","End","End","End","End","End","End","End","End","End","End","End","End","End","End","End","End","End","End","End","End","End","End","End","End","End","End","End","End","End","End","End","End","End","End","End","End","End","End","End","End","End","End","End","End","End","End","End","End","End","End","End","End","End","End","End","End","End","End","End","End","End","End","End","End","End","End","End","End","End","End","End","End","End","End","End","End","End","End","End","End","End","End","End","End","End","End","End","End","End","End","End","End","End","End","End","End","End","End","End","End","End","End","End","End","End","End","End","End","End","End","End","End","End","End","End","End","End","End","End","End","End","End","End","End","End","End","End","End","End","End","End","End","End","End","End","End","End","End","End","End","End","End","End","End","End","End","End","End","End","End","End","End","End","End","End","End","End","End","End","End","End","End","End","End","End","End","End","End","End","End","End","End","End","End","End","End","End","End","End","End","End","End","End","End","End","End","End","End","End","End","End","End","End","End","End","End","End","End","End","End","End","End","End","End","End","End","End","End","End","End","End","End","End","End","End","End","End","End","End","End","End","End","End","End","End","End","End","End","End","End","End","End","End","End","End","End","End","End","End","End","End","End","End","End","End","End","End","End","End","End","End","End","End","End","End","End","End","End","End","End","End","End","End","End","End","End","End","End","End","End","End","End","End","End","End","End","End","End","End","End","End","End","End","End","End","End","End","End","End","End","End","End","End","End","End","End","End","End","End","End","End","End","End","End","End","End","End","End","End","End","End","End","End","End","End","End","End","End","End","End","End","End","End","End","End","End","End","End","End","End","End","End","End","End","End","End","End","End","End","End","End","End","End","End","End","End","End","End","End","End","End","End","End","End","End","End","End","End","End","End","End","End","End","End","End","End","End","End","End","End","End","End","End","End","End","End","End","End","End","End","End","End","End","End","End","End","End","End","End","End","End","End","End","End","End","End","End","End","End","End","End","End","End","End","End","End","End","End","End","End","End","End","End","End","End","End","End","End","End","End","End","End","End","End","End","End","End","End","End","End","End","End","End","End","End","End","End","End","End","End","End","End","End","End","End","End","End","End","End","End","End","End","End","End","End","End","End","End","End","End","End","End","End","End","End","End","End","End","End","End","End","End","End","End","End","End","End","End","End","End","End","End","End","End","End","End","End","End","End","End","End","End","End","End","End","End","End","End","End","End","End","End","End","End","End","End","End","End","End","End","End","End","End","End","End","End","End","End","End","End","End","End","End","End","End","End","End","End","End","End","End","End","End","End","End","End","End","End","End","End","End","End","End","End","End","End","End","End","End","End","End","End","End","End","End","End","End","End","End","End","End","End","End","End","End","End","End","End","End","End","End","End","End","End","End","End","End","End","End","End","End","End","End","End","End","End","End","End","End","End","End","End","End","End","End","End","End","End","End","End","End","End","End","End","End","End","End","End","End","End","End","End","End","End","End","End","End","End","End","End","End","End","End","End","End","End","End","End","End","End","End","End","End","End","End","End","End","End","End","End","End","End","End","End","End","End","End","End","End","End","End","End","End","End","End","End","End","End","End","End","End","End","End","End","End","End","End","End","End","End","End","End","End","End","End","End","End","End","End","End","End","End","End","End","End","End","End","End","End","End","End","End","End","End","End","End","End","End","End","End","End","End","End","End","End","End","End","End","End","End","End","End","End","End","End","End","End","End","End","End","End","End","End","End","End","End","End","End","End","End","End","End","End","End","End","End","End","End","End","End","End","End","End","End","End","End","End","End","End","End","End","End","End","End","End","End","End","End","End","End","End","End","End","End","End","End","End","End","End","End","End","End","End","End","End","End","End","End","End","End","End","End","End","End","End","End","End","End","End","End","End","End","End","End","End","End","End","End","End","End","End","End","End","End","End","End","End","End","End","End","End","End","End","End","End","End","End","End","End","End","End","End","End","End","End","End","End","End","End","End","End","End","End","End","End","End","End","End","End","End","End","End","End","End","End","End","End","End","End","End","End","End","End","End","End","End","End","End","End","End","End","End","End","End","End","End","End","End","End","End","End","End","End","End","End","End","End","End","End","End","End","End","End","End","End","End","End","End","End","End","End","End","End","End","End","End","End","End","End","End","End","End","End","End","End","End","End","End","End","End","End","End","End","End","End","End","End","End","End","End","End","End","End","End","End","End","End","End","End","End","End","End","End","End","End","End","End","End","End","End","End","End","End","End","End","End","End","End","End","End","End","End","End","End","End","End","End","End","End","End","End","End","End","End","End","End","End","End","End","End","End","End","End","End","End","End","End","End","End","End","End","End","End","End","End","End","End","End","End","End","End","End","End","End","End","End","End","End","End","End","End","End","End","End","End","End","End","End","End","End","End","End","End","End","End","End","End","End","End","End","End","End","End","End","End","End","End","End","End","End","End","End","End","End","End","End","End","End","End","End","End","End","End","End","End","End","End","End","End","End","End","End","End","End","End","End","End","End","End","End","End","End","End","End","End","End","End","End","End","End","End","End","End","End","End","End","End","End","End","End","End","End","End","End","End","End","End","End","End","End","End","End","End","End","End","End","End","End","End","End","End","End","End","End","End","End","End","End","End","End","End","End","End","End","End","End","End","End","End","End","End","End","End","End","End","End","End","End","End","End","End","End","End","End","End","End","End","End","End","End","End","End","End","End","End","End","End","End","End","End","End","End","End","End","End","End","End","End","End","End","End","End","End","End","End","End","End","End","End","End","End","End","End","End","End","End","End","End","End","End","End","End","End","End","End","End","End","End","End","End","End","End","End","End","End","End","End","End","End","End","End","End","End","End","End","End","End","End","End","End","End","End","End","End","End","End","End","End","End","End","End","End","End","End","End","End","End","End","End","End","End","End","End","End","End","End","End","End","End","End","End","End","End","End","End","End","End","End","End","End","End","End","End","End","End","End","End","End","End","End","End","End","End","End","End","End","End","End","End","End","End","End","End","End","End","End","End","End","End","End","End","End","End","End","End","End","End","End","End","End","End","End","End","End","End","End","End","End","End","End","End","End","End","End","End","End","End","End","End","End","End","End","End","End","End","End","End","End","End","End","End","End","End","End","End","End","End","End","End","End","End","End","End","End","End","End","End","End","End","End","End","End","End","End","End","End","End","End","End","End","End","End","End","End","End","End","End","End","End","End","End","End","End","End","End","End","End","End","End","End","End","End","End","End","End","End","End","End","End","End","End","End","End","End","End","End","End","End","End","End","End","End","End","End","End","End","End","End","End","End","End","End","End","End","End","End","End","End","End","End","End","End","End","End","End","End","End","End","End","End","End","End","End","End","End","End","End","End","End","End","End","End","End","End","End","End","End","End","End","End","End","End","End","End","End","End","End","End","End","End","End","End","End","End","End","End","End","End","End","End","End","End","End","End","End","End","End","End","End","End","End","End","End","End","End","End","End","End","End","End","End","End","End","End","End","End","End","End","End","End","End","End","End","End","End","End","End","End","End","End","End","End","End","End","End","End","End","End","End","End","End","End","End","End","End","End","End","End","End","End","End","End","End","End","End","End","End","End","End","End","End","End","End","End","End","End","End","End","End","End","End","End","End","End","End","End","End","End","End","End","End","End","End","End","End","End","End","End","End","End","End","End","End","End","End","End","End","End","End","End","End","End","End","End","End","End","End","End","End","End","End","End","End","End","End","End","End","End","End","End","End","End","End","End","End","End","End","End","End","End","End","End","End","End","End","End","End","End","End","End","End","End","End","End","End","End","End","End","End","End","End","End","End","End","End","End","End","End","End","End","End","End","End","End","End","End","End","End","End","End","End","End","End","End","End","End","End","End","End","End","End","End","End","End","End","End","End","End","End","End","End","End","End","End","End","End","End","End","End","End","End","End","End","End","End","End","End","End","End","End","End","End","End","End","End","End","End","End","End","End","End","End","End","End","End","End","End","End","End","End","End","End","End","End","End","End","End","End","End","End","End","End","End","End","End","End","End","End","End","End","End","End","End","End","End","End","End","End","End","End","End","End","End","End","End","End","End","End","End","End","End","End","End","End","End","End","End","End","End","End","End","End","End","End","End","End","End","End","End","End","End","End","End","End","End","End","End","End","End","End","End","End","End","End","End","End","End","End","End","End","End","End","End","End","End","End","End","End","End","End","End","End","End","End","End","End","End","End","End","End","End","End","End","End","End","End","End","End","End","End","End","End","End","End","End","End","End","End","End","End","End","End","End","End","End","End","End","End","End","End","End","End","End","End","End","End","End","End","End","End","End","End","End","End","End","End","End","End","End","End","End","End","End","End","End","End","End","End","End","End","End","End","End","End","End","End","End","End","End","End","End","End","End","End","End","End","End","End","End","End","End","End","End","End","End","End","End","End","End","End","End","End","End","End","End","End","End","End","End","End","End","End","End","End","End","End","End","End","End","End","End","End","End","End","End","End","End","End","End","End","End","End","End","End","End","End","End","End","End","End","End","End","End","End","End","End","End","End","End","End","End","End","End","End","End","End","End","End","End","End","End","End","End","End","End","End","End","End","End","End","End","End","End","End","End","End","End","End","End","End","End","End","End","End","End","End","End","End","End","End","End","End","End","End","End","End","End","End","End","End","End","End","End","End","End","End","End","End","End","End","End","End","End","End","End","End","End","End","End","End","End","End","End","End","End","End","End","End","End","End","End","End","End","End","End","End","End","End","End","End","End","End","End","End","End","End","End","End","End","End","End","End","End","End","End","End","End","End","End","End","End","End","End","End","End","End","End","End","End","End","End","End","End","End","End","End","End","End","End","End","End","End","End","End","End","End","End","End","End","End","End","End","End","End","End","End","End","End","End","End","End","End","End","End","End","End","End","End","End","End","End","End","End","End","End","End","End","End","End","End","End","End","End","End","End","End","End","End","End","End","End","End","End","End","End","End","End","End","End","End","End","End","End","End","End","End","End","End","End","End","End","End","End","End","End","End","End","End","End","End","End","End","End","End","End","End","End","End","End","End","End","End","End","End","End","End","End","End","End","End","End","End","End","End","End","End","End","End","End","End","End","End","End","End","End","End","End","End","End","End","End","End","End","End","End","End","End","End","End","End","End","End","End","End","End","End","End","End","End","End","End","End","End","End","End","End","End","End","End","End","End","End","End","End","End","End","End","End","End","End","End","End","End","End","End","End","End","End","End","End","End","End","End","End","End","End","End","End","End","End","End","End","End","End","End","End","End","End","End","End","End","End","End","End","End","End","End","End","End","End","End","End","End","End","End","End","End","End","End","End","End","End","End","End","End","End","End","End","End","End","End","End","End","End","End","End","End","End","End","End","End","End","End","End","End","End","End","End","End","End","End","End","End","End","End","End","End","End","End","End","End","End","End","End","End","End","End","End","End","End","End","End","End","End","End","End","End","End","End","End","End","End","End","End","End","End","End","End","End","End","End","End","End","End","End","End","End","End","End","End","End","End","End","End","End","End","End","End","End","End","End","End","End","End","End","End","End","End","End","End","End","End","End","End","End","End","End","End","End","End","End","End","End","End","End","End","End","End","End","End","End","End","End","End","End","End","End","End","End","End","End","End","End","End","End","End","End","End","End","End","End","End","End","End","End","End","End","End","End","End","End","End","End","End","End","End","End","End","End","End","End","End","End","End","End","End","End","End","End","End","End","End","End","End","End","End","End","End","End","End","End","End","End","End","End","End","End","End","End","End","End","End","End","End","End","End","End","End","End","End","End","End","End","End","End","End","End","End","End","End","End","End","End","End","End","End","End","End","End","End","End","End","End","End","End","End","End","End","End","End","End","End","End","End","End","End","End","End","End","End","End","End","End","End","End","End","End","End","End","End","End","End","End","End","End","End","End","End","End","End","End","End","End","End","End","End","End","End","End","End","End","End","End","End","End","End","End","End","End","End","End","End","End","End","End","End","End","End","End","End","End","End","End","End","End","End","End","End","End","End","End","End","End","End","End","End","End","End","End","End","End","End","End","End","End","End","End","End","End","End","End","End","End","End","End","End","End","End","End","End","End","End","End","End","End","End","End","End","End","End","End","End","End","End","End","End","End","End","End","End","End","End","End","End","End","End","End","End","End","End","End","End","End","End","End","End","End","End","End","End","End","End","End","End","End","End","End","End","End","End","End","End","End","End","End","End","End","End","End","End","End","End","End","End","End","End","End","End","End","End","End","End","End","End","End","End","End","End","End","End","End","End","End","End","End","End","End","End","End","End","End","End","End","End","End","End","End","End","End","End","End","End","End","End","End","End","End","End","End","End","End","End","End","End","End","End","End","End","End","End","End","End","End","End","End","End","End","End","End","End","End","End","End","End","End","End","End","End","End","End","End","End","End","End","End","End","End","End","End","End","End","End","End","End","End","End","End","End","End","End","End","End","End","End","End","End","End","End","End","End","End","End","End","End","End","End","End","End","End","End","End","End","End","End","End","End","End","End","End","End","End","End","End","End","End","End","End","End","End","End","End","End","End","End","End","End","End","End","End","End","End","End","End","End","End","End","End","End","End","End","End","End","End","End","End","End","End","End","End","End","End","End","End","End","End","End","End","End","End","End","End","End","End","End","End","End","End","End","End","End","End","End","End","End","End","End","End","End","End","End","End","End","End","End","End","End","End","End","End","End","End","End","End","End","End","End","End","End","End","End","End","End","End","End","End","End","End","End","End","End","End","End","End","End","End","End","End","End","End","End","End","End","End","End","End","End","End","End","End","End","End","End","End","End","End","End","End","End","End","End","End","End","End","End","End","End","End","End","End","End","End","End","End","End","End","End","End","End","End","End","End","End","End","End","End","End","End","End","End","End","End","End","End","End","End","End","End","End","End","End","End","End","End","End","End","End","End","End","End","End","End","End","End","End","End","End","End","End","End","End","End","End","End","End","End","End","End","End","End","End","End","End","End","End","End","End","End","End","End","End","End","End","End","End","End","End","End","End","End","End","End","End","End","End","End","End","End","End","End","End","End","End","End","End","End","End","End","End","End","End","End","End","End","End","End","End","End","End","End","End","End","End","End","End","End","End","End","End","End","End","End","End","End","End","End","End","End","End","End","End","End","End","End","End","End","End","End","End","End","End","End","End","End","End","End","End","End","End","End","End","End","End","End","End","End","End","End","End","End","End","End","End","End","End","End","End","End","End","End","End","End","End","End","End","End","End","End","End","End","End","End","End","End","End","End","End","End","End","End","End","End","End","End","End","End","End","End","End","End","End","End","End","End","End","End","End","End","End","End","End","End","End","End","End","End","End","End","End","End","End","End","End","End","End","End","End","End","End","End","End","End","End","End","End","End","End","End","End","End","End","End","End","End","End","End","End","End","End","End","End","End","End","End","End","End","End","End","End","End","End","End","End","End","End","End","End","End","End","End","End","End","End","End","End","End","End","End","End"]

{"sheet":"Risk Matrix","index":3,"n_rows":56,"n_cols":13,"rows_kept":56,"cut":false,"hidden":false,"merged":[[25,6,26,6],[25,5,26,5],[25,3,25,4],[8,1,12,1],[25,1,25,2]]}
[{"$f":"MdlTle","v":"Quick Risk Estimation (QRE) Tool"}]
[{"$f":"MID(CELL(\"filename\",A1),FIND(\"]\",CELL(\"filename\",A1))+1,255)","v":"Risk Matrix"}]
["การจัดความสำคัญความเสี่ยง"]
[]
[]
[]
[null,"ระดับความเป็นไปได้ในการเกิด (likelihood ranking)",null,null,"ระดับต่ำมาก","ระดับต่ำ","ระดับปานกลาง","ระดับสูง","ระดับสูงมาก"]
[null,"คะแนนระดับความเป็นไปได้",null,null,"0 - 2","2 - 4","4 - 6","6 - 8","8 - 10"]
[null,"ความรุนแรง (Severity)\nค่าเฉลี่ยความรุนแรงแบบถ่วงน้ำหนัก (จากคำตอบเกี่ยวกับความเปราะบาง ความล่อแหลม และมาตรการการรับมือ)","แทบไม่รุนแรง","0 - 10","VL1","VL2","L3","L4","M5",null,"VL ","Very Low",{"$f":"B22","v":"ระดับต่ำมาก"}]
[null,null,"ไม่รุนแรงมาก","11 - 25","VL2","L3","L4","M5","M6",null,"L","Low",{"$f":"B21","v":"ระดับต่ำ"}]
[null,null,"ปานกลาง","26 - 50","L3","L4","M5","M6","H7",null,"M","Moderate",{"$f":"B20","v":"ระดับปานกลาง"}]
[null,null,"รุนแรง","51 - 75","L4","M5","M6","H7","H8",null,"H","High",{"$f":"B19","v":"ระดับสูง"}]
[null,null,"รุนแรงมากที่สุด","76 - 100","M5","M6","H7","H8","VH9",null,"VH","Very High",{"$f":"B18","v":"ระดับสูงมาก"}]
[]
[]
[null,"คำอธิบายเกี่ยวกับความเป็นไปได้ในการเกิด"]
[null,"ระดับ","ความหมายในเชิงความเป็นไปได้",null,null,null,"ความหมายตามการอ้างอิงข้อมูลในอดีต"]
[null,{"$f":"I7","v":"ระดับสูงมาก"},"เป็นไปได้เกือบแน่นอนที่สุดที่จะเกิดขึ้นอย่างน้อย 1 ครั้ง ขึ้นไป",null,null,null,"เกิดขึ้นมาแล้ว 3 ครั้งหรือมากกว่า ในระยะเวลา 5 ปีที่ผ่านมา"]
[null,{"$f":"H7","v":"ระดับสูง"},"มีโอกาสแบบสมเหตุสมผลในการเกิดอย่างน้อย 1 ครั้ง ขึ้นไป",null,null,null,"เกิดขึ้นมาแล้ว 2 ครั้ง ในระยะเวลา 5 ปีที่ผ่านมา"]
[null,{"$f":"G7","v":"ระดับปานกลาง"},"อาจจะเกิดขึ้นอย่างน้อย 1 ครั้งขึ้นไป",null,null,null,"เกิดขึ้นมาแล้ว 1 ครั้ง ในระยะเวลา 5 ปีที่ผ่านมา"]
[null,{"$f":"F7","v":"ระดับต่ำ"},"ไม่ได้คาดหวังว่าจะเกิด",null,null,null,"อาจจะเกิดขึ้นและเคยเกิดขึ้นมาแล้ว 1 ครั้งในระยะเวลา 10 ปีที่ผ่านมา"]
[null,{"$f":"E7","v":"ระดับต่ำมาก"},"อาจจะเกิดขึ้นได้ในสถานการณ์เหนือความคาดหมายจริงๆ เท่านั้น",null,null,null,"อาจจะเกิดขึ้นได้ในสถานการณ์เหนือความคาดหมายจริงๆ และเกิดขึ้นมาแล้ว 1 ครั้งในระยะเวลา 20 ปีที่ผ่านมา"]
[]
["Risk matrix table"]
[]
[null,"Severity",null,"Likelihood ranking",null,"Ranking","Ranking reference"]
[null,"Lower Bound","Upper Bound","Lower bound","Upper bound"]
[null,-100,0,0,0,0,"VL1"]
[null,0.1,10,0,2,1,"VL1"]
[null,0.1,10,2.1,4,2,"VL2"]
[null,0.1,10,4.0999999999999996,6,3,"L3"]
[null,0.1,10,6.1,8,4,"L4"]
[null,0.1,10,8.1,10,5,"M5"]
[null,11,25,0,2,6,"VL2"]
[null,11,25,2.1,4,7,"L3"]
[null,11,25,4.0999999999999996,6,8,"L4"]
[null,11,25,6.1,8,9,"M5"]
[null,11,25,8.1,10,10,"M6"]
[null,26,50,0,2,11,"L3"]
[null,26,50,2.1,4,12,"L4"]
[null,26,50,4.0999999999999996,6,13,"M5"]
[null,26,50,6.1,8,14,"M6"]
[null,26,50,8.1,10,15,"H7"]
[null,51,75,0,2,16,"L4"]
[null,51,75,2.1,4,17,"M5"]
[null,51,75,4.0999999999999996,6,18,"M6"]
[null,51,75,6.1,8,19,"H7"]
[null,51,75,8.1,10,20,"H8"]
[null,76,100,0,2,21,"M5"]
[null,76,100,2.1,4,22,"M6"]
[null,76,100,4.0999999999999996,6,23,"H7"]
[null,76,100,6.1,8,24,"H8"]
[null,76,100,8.1,10,25,"VH9"]
[]
[]
["End"]

{"sheet":"Information","index":4,"n_rows":24,"n_cols":3,"rows_kept":24,"cut":false,"hidden":false,"merged":[[16,2,16,8]]}
[{"$f":"MdlTle","v":"Quick Risk Estimation (QRE) Tool"}]
[{"$f":"MID(CELL(\"filename\",A1),FIND(\"]\",CELL(\"filename\",A1))+1,255)","v":"Information"}]
["ข้อมูล"]
[]
[]
[]
[]
[]
[]
[]
[]
[]
[]
[]
[null,null,"ชื่อเมือง หรือ ท้องถิ่น:"]
[]
[null,null,"ข้อมูลเพิ่มเติมเกี่ยวกับเมือง (รวมทั้งรายละเอียดของภาคส่วนที่เกี่ยวข้อง และขอบเขตของการประเมิน):"]
[]
[]
[null,null,"ผู้ทำการประเมิน:"]
[]
[null,null,"วันที่ประเมินเสร็จสิ้น: "]
[]
[null,null,"หากเป็นการประเมินซ้ำ หรือตรวจทาน โปรดระบุวันที่ตรวจทาน"]

{"sheet":"Assumptions","index":5,"n_rows":162,"n_cols":6,"rows_kept":162,"cut":false,"hidden":false,"merged":[]}
[{"$f":"MdlTle","v":"Quick Risk Estimation (QRE) Tool"}]
[{"$f":"MID(CELL(\"filename\",A1),FIND(\"]\",CELL(\"filename\",A1))+1,255)","v":"Assumptions"}]
["สมมุติฐาน"]
[]
["สมมติฐานทั่วไป"]
[]
[]
[null,"สัดส่วนของคะแนนการจัดระดับความเป็นไปได้",null,"%",null,0.5]
[null,"คะแนน/ลำดับ  สูงสุด",null,"#",null,10]
[null,"ค่าน้ำหนัก ความเปราะบาง",null,"%",null,0.25]
[]
["การให้คะแนน"]
[]
[null,"ระดับความล่อแหลม (Exposure rating)"]
[null,"0-ไม่สลักสำคัญ (Negligible)",null,"#",null,0]
[null,"1-ไม่น่าเป็นไปได้อย่างที่สุด (Extremely unlikely)",null,"#",null,1]
[null,"2-ไม่น่าเป็นไปได้อย่างมาก (Very unlikely)",null,"#",null,2]
[null,"3-ไม่น่าเป็นไปได้ (Unlikely)",null,"#",null,3]
[null,"4-ไม่น่าจะเป็นไปได้ (Improbable)",null,"#",null,4]
[null,"5-อาจจะเป็นไปได้ (Possible)",null,"#",null,5]
[null,"6-เป็นไปได้ (Probable)",null,"#",null,6]
[null,"7-มีโอกาสจะเป็นไปได้ (Likely)",null,"#",null,7]
[null,"8-มีโอกาสจะเป็นไปได้มาก (Very Likely)",null,"#",null,8]
[null,"9-มีโอกาสจะเป็นไปได้สูงมาก (Extremely likely)",null,"#",null,9]
[null,"10-มีโอกาสเป็นไปได้อย่างแน่นอน (Inevitable)",null,"#",null,10]
[]
[null,"ระดับความเปราะบาง (Vulnerable Rating)"]
[null,"0-ไม่สลักสำคัญ (Negligible)",null,"#",null,0]
[null,"1-ไม่น่าเป็นไปได้อย่างที่สุด (Extremely unlikely)",null,"#",null,1]
[null,"2-ไม่น่าเป็นไปได้อย่างมาก (Very unlikely)",null,"#",null,2]
[null,"3-ไม่น่าเป็นไปได้ (Unlikely)",null,"#",null,3]
[null,"4-ไม่น่าจะเป็นไปได้ (Improbable)",null,"#",null,4]
[null,"5-อาจจะเป็นไปได้ (Possible)",null,"#",null,5]
[null,"6-เป็นไปได้ (Probable)",null,"#",null,6]
[null,"7-มีโอกาสจะเป็นไปได้ (Likely)",null,"#",null,7]
[null,"8-มีโอกาสจะเป็นไปได้มาก (Very Likely)",null,"#",null,8]
[null,"9-มีโอกาสจะเป็นไปได้สูงมาก (Extremely likely)",null,"#",null,9]
[null,"10-มีโอกาสเป็นไปได้อย่างแน่นอน (Inevitable)",null,"#",null,10]
[]
[null,"ระดับมาตรการการรับมือ (Response Rating)"]
[null,"0-ไม่มีมาตรการการรับมือใดๆ (no measures in place)",null,"#",null,0]
[null,"1-มีมาตราการการรับมือน้อยมากที่สุด (Extremely few measures in place)",null,"#",null,1]
[null,"2-มีมาตราการการรับมือน้อยมาก (Very few measures in place)",null,"#",null,2]
[null,"3-มีมาตรการการรับมือเล็กน้อย (Few measures in place)",null,"#",null,3]
[null,"4-มีมาตรการการรับมือบ้าง (Some measures in place)",null,"#",null,4]
[null,"5-มีมาตรการการรับมือที่สมเหตุสมผล (Reasonable measures in place)",null,"#",null,5]
[null,"6-มีมาตรการการรับมืออยู่ในระดับดี (Good measures in place)",null,"#",null,6]
[null,"7-มีมาตรการการรับมือในระดับสูง (High measures in place)",null,"#",null,7]
[null,"8-มีมาตราการในระดับสูงดีเยี่ยม (Extremely high measures in place)",null,"#",null,8]
[null,"9-มีมาตรการการรับมือในระดับดีเลิศที่สุด (Immense measures in place)",null,"#",null,9]
[null,"10-มีความสามารถในการควมคุมจัดการภัยพิบัติอย่างสมบูรณ์ (Complete control of disaster)",null,"#",null,10]
[]
["กล่องตัวเลือกประเภทของภัย (Drop down boxes)"]
[]
[null,"ประเภทภัย (Hazard family)"]
["H1","ภัยทางธรณีวิทยาที่สำคัญ (Geophysical Main Hazards)"]
[null,"แผ่นดินไหว (Earthquake)"]
[null,"การเคลื่อนที่ของมวลดิน (Mass movement)"]
[null,"ภูเขาไฟปะทุ (Volcanic Activity)"]
[]
["H2","ภัยทางอุทกวิทยาที่สำคัญ (Hydrological Main Hazards)"]
[null,"อุทกภัย (Flood)"]
[null,"แผ่นดินถล่ม (Landslide)"]
[null,"คลื่นบนผิวน้ำ (Wave action)"]
[]
["H3","ภัยทางอุตุนิยมวิทยาที่สำคัญ (Meterological Main Hazards)"]
[null,"พายุคะนอง (Convective Storm)"]
[null,"พายุหมุนนอกเขตร้อน (Extratropical Storm)"]
[null,"อุณหภูมิสุดขั้ว (Extreme temperature)"]
[null,"หมอก (Fog)"]
[null,"พายุหมุนเขตร้อน (Tropical Cyclone)"]
[]
["H4","ภัยทางภูมิอากาศวิทยาที่สำคัญ (Climatological Main Hazards)"]
[null,"ภัยแล้ง (Drough)"]
[null,"ทะเลสาบธารน้ำแข็งระเบิด (Glacier Lake Outburst)"]
[null,"ไฟป่า (Wildfire)"]
[]
["H5","ภัยทางชีววิทยาที่สำคัญ (Biological Main Hazards)"]
[null,"ภัยจากสัตว์ (Animal incident)"]
[null,"โรคต่างๆ (Disease)"]
[null,"การรบกวนจากแมลง (Insect infestation)"]
[]
["H6","ภัยจากนอกโลกที่สำคัญ (Extra-terrestrial Main Hazards) "]
[null,"แรงกระแทกที่ส่งผลต่อพื้นดินหรือน้ำ (Impact to ground or water)"]
[null,"อากาศในอวกาศ (Space Weather)"]
[]
["H7","ภัยที่เกิดจากการกระทำของมนุษย์ที่สำคัญ (Anthropogenic Main Hazards)"]
[null,"อันตรายทางเทคโนโลยี (Technological hazard)"]
[null,"อันตรายจากสารเคมีและกัมมันตภาพรังสี (Chemical and radiological hazard)"]
[null,"อุบัติเหตุจากการคมนาคม (Transportation accidents)"]
[]
["H8","ภัยสำคัญอื่นๆ (โปรดระบุ )"]
[null,"สำรอง 1"]
[null,"สำรอง 2"]
[null,"สำรอง 3"]
[null,"สำรอง 4"]
[]
[]
[null,"เหตุการณ์ที่เป็นภัยอันตราย (Hazard Event)"]
[null,"การระเบิดกลางอากาศ (Airburst)",null,null,null,"Ash fall"]
[null,"ขี้เถ้าร่วง (Ash fall)",null,null,null,"Fire following event"]
[null,"การถล่มของหิมะ เศษหินและดิน (Avalanche/snow & debris)",null,null,null,"Ground movement"]
[null,"อุบัติเหตุการบิน (Aviation accident)",null,null,null,"Landslide following event"]
[null,"เชื้อโรคแบคทีเรีย (Bacterial disease)",null,null,null,"Lahar"]
[null,"สารเคมีรั่วไหล (Chemical spill)",null,null,null,"Lava flow"]
[null,"การกัดเซาะชายฝั่ง (Coastal erosion)",null,null,null,"Liquefaction"]
[null,"อุทกภัยตามแนวชายฝั่ง (Coastal flood)",null,null,null,"Pyroclastic flow"]
[null,"คลื่นอากาศหนาว (Cold wave)",null,null,null,"Tsunami"]
[null,"การพุ่งชนโลกโดยอุกกาบาต ดาวเคราะห์น้อย หรือดาวหาง (Collision)",null,null,null,"Avalanche/Snow/Debris"]
[null,"พายุลม (Derecho)",null,null,null,"Coastal Flood"]
[null,"อนุภาคพลังงานสูง (Energetic particles)",null,null,null,"Coastal Erosion"]
[null,"การบวมตัวของดิน (Expansive soil)",null,null,null,"Landslide following event"]
[null,"อัคคีภัยที่เกิดขึ้นตามหลังเหตุการณ์ภัยหลัก (Fire following event)",null,null,null,"Mudfall/Rockfall/Debris"]
[null,"น้ำท่วมฉับพลัน น้ำหลาก (Flash flood)",null,null,null,"Expansive Soil"]
[null,"ไฟป่า (Forest fire)",null,null,null,"Flash Flood"]
[null,"น้ำค้างแข็ง (Frost/freeze)",null,null,null,"Ice Jam Flood"]
[null,"การติดเชื้อรา (Fungal disease)",null,null,null,"Riverine Flood"]
[null,"พายุแม่เหล็กโลก (Geomagnetic storm)",null,null,null,"Rogue Wave"]
[null,"การเคลื่อนไหวของแผ่นโลก (Ground movement)",null,null,null,"Seiche"]
[null,"ลูกเห็บ (Hail)",null,null,null,"Sinkhole"]
[null,"คลื่นความร้อน (Heatwave)",null,null,null,"Cold Wave"]
[null,"น้ำท่วมประเภทที่มีน้ำแข็งปิดกั้นลำน้ำ(Ice jam flood)",null,null,null,"Derecho"]
[null,"ภัยพิบัติทางอุตสาหกรรม (Industrial disaster)",null,null,null,"Frost/Freeze"]
[null,"การระเบิดของโรงงานอุตสาหกรรม (Industrial explostion)",null,null,null,"Hail"]
[null,"ตะกอนไหล (Lahar)",null,null,null,"Heatwave"]
[null,"ไฟป่าที่ลุกลามมาถึงที่พักอาศัยหรือไฟลามทุ่ง (Land fire or brush/bush/pasture)",null,null,null,"Lightning"]
[null,"ดินถล่มที่เกิดขึ้นตามหลังเหตุการณ์ภัยหลัก (Landslide following event)",null,null,null,"Rain"]
[null,"การไหลของลาวา (Lava flow)",null,null,null,"Sandstorm/Duststorm"]
[null,"ฟ้าผ่า (Lightning)",null,null,null,"Snow/Ice"]
[null,"ธรณีสูบ (Liquefaction)",null,null,null,"Storm Surge"]
[null,"ภัยพิบัติจากเหมืองถ่านหิน (Mine disaster)",null,null,null,"Tornado"]
[null,"โคลนถล่ม/หินถล่ม/ซากปรักหักพัง (Mudfall/rockfall/debris)",null,null,null,"Wind"]
[null,"อุบัติเหตุในการเดินเรือ (Navigation accident)",null,null,null,"Winter Storm/Blizzard"]
[null,"น้ามันรั่ว (Oil spill)",null,null,null,"Forest Fire"]
[null,"โรคเกิดจากปรสิต (Parasitic disease)",null,null,null,"Land Fire of Brush/Bush/Pasture"]
[null,"ไฟดับ (Power outage)",null,null,null,"Subsidence"]
[null,"โรคเกิดจากเชื้อพรีออน (Prion disease)",null,null,null,"Bacterial Disease"]
[null,"กระแสไพโรคลาสติก (Pyroclastic flow)",null,null,null,"Fungal Disease"]
[null,"การปนเปื้อนสารกัมมันตรังสี, อุบัติเหตุนิวเคลียร์ (Radiation contamination, nuclear incident)",null,null,null,"Parasitic Disease"]
[null,"คลื่นวิทยุรบกวน (Radio disturbance)",null,null,null,"Prion Disease"]
[null,"อุบัติเหตุทางราง (Rail accident)",null,null,null,"Viral Disease"]
[null,"ฝน (Rain)",null,null,null,"Airburst"]
[null,"น้ำล้นตลิ่ง (Riverine flood)",null,null,null,"Collision"]
[null,"อุบัติเหตุทางถนน (Road accident)",null,null,null,"Energetic Particles"]
[null,"คลื่นยักษ์ (Rogue wave)",null,null,null,"Geomagnetic Storm"]
[null,"พายุทราย/ พายุฝุ่น (Sandstorm / duststorm)",null,null,null,"Radio Disturbance"]
[null,"การกระเพื่อมขึ้นลงของน้ำ (Seiche)",null,null,null,"Shockwave"]
[null,"คลื่นกระแทก (Shockwave)",null,null,null,"Industrial disaster"]
[null,"หลุมยุบ (Sinkhold)",null,null,null,"Structural collapse"]
[null,"หิมะ/ น้าแข็ง (Snow/ice)",null,null,null,"Power outage"]
[null,"อุบัติเหตุบนอวกาศ (Space accident)",null,null,null,"Fire following event"]
[null,"คลื่นพายุซัดฝั่ง (Storm surge)",null,null,null,"Industrial explosion"]
[null,"โครงสร้างถล่ม (Structural collapse)",null,null,null,"Mine disaster"]
[null,"การทรุดตัว (Subsidence)",null,null,null,"Chemical spill"]
[null,"พายุทอร์นาโด (Tornado)",null,null,null,"Oil spill"]
[null,"คลื่นสึนามิ (Tsunami)",null,null,null,"Radiation contamination, nuclear incident"]
[null,"โรคติดเชื้อไวรัส (Viral disease)",null,null,null,"Aviation accident"]
[null,"ลม (Wind)",null,null,null,"Rail accident"]
[null,"พายุฤดูหนาว/พายุหิมะ (Winter storm / blizzard)",null,null,null,"Road accident"]
[null,null,null,null,null,"Navigation accident"]
[null,null,null,null,null,"Space accident"]
["End"]

{"sheet":"Hazard Data Entry","index":6,"n_rows":54,"n_cols":14,"rows_kept":54,"cut":false,"hidden":false,"merged":[[4,1,5,1],[4,4,4,7],[4,2,5,2],[4,13,5,13],[4,3,5,3],[4,9,5,9],[4,12,5,12]]}
[{"$f":"MdlTle","v":"Quick Risk Estimation (QRE) Tool"}]
[{"$f":"MID(CELL(\"filename\",A1),FIND(\"]\",CELL(\"filename\",A1))+1,255)","v":"Hazard Data Entry"}]
["กรอกข้อมูลเกี่ยวกับภัย"]
[]
[null,{"$f":"Assumptions!B55","v":"ประเภทภัย (Hazard family)"},{"$f":"Assumptions!B99","v":"เหตุการณ์ที่เป็นภัยอันตราย (Hazard Event)"},{"$f":"Assumptions!B14","v":"ระดับความล่อแหลม (Exposure rating)"},{"$f":"Assumptions!B27","v":"ระดับความเปราะบาง (Vulnerable Rating)"},null,null,null,"จำนวนคะแนนรวมทั้งหมดของความเปราะบาง","ระดับมาตรการการรับมือที่มีอยู่ในปัจจุบัน (Response measures)","ระดับคะแนนความเป็นไปได้ในการเกิด (Likelihood ranking score)","ระดับความรุนแรง (Severity rating) ","ผลการจัดลำดับความเสี่ยง (Risk matrix output)","กล่องแสดงความคิดเห็นและเหตุผลสนับสนุน"]
[null,null,null,null,"โครงสร้างพื้นฐาน (Infrastructure)","ภาคการผลิต (Productive sectors)","ภาคการบริการพื้นฐานหรือจำเป็น (Essential or basic service)","ด้านมนุษย์และสังคม (Human and social aspects)","1 (น้อย) - 100 (มาก)",null,"1 (น้อย) - 10 (มาก)","1 (น้อย ) - 100 (มาก)"]
[null,"H1 - ภัยทางธรณีวิทยาที่สำคัญ"]
[null,null,null,null,null,null,null,null,{"$f":"IFERROR((((INDEX(Assumptions!$F$28:$F$38,MATCH(E8,Vulnerabilties,0))*Assumptions!$F$10)+(INDEX(Assumptions!$F$28:$F$38,MATCH(F8,Vulnerabilties,0))*Assumptions!$F$10)+(INDEX(Assumptions!$F$28:$F$38,MATCH(G8,Vulnerabilties,0))*Assumptions!$F$10)+(INDEX(Assumptions!$F$28:$F$38,MATCH(H8,Vulnerabilties,0))*Assumptions!$F$10))*Assumptions!$F$9),0)","v":0},null,{"$f":"IFERROR(INDEX(Assumptions!$F$15:$F$25,MATCH(D8,Exposures,0)*Assumptions!$F$8+(I8/Assumptions!$F$9)*Assumptions!$F$8),0)","v":0},{"$f":"IFERROR((K8*Assumptions!$F$9)-(INDEX(Assumptions!$F$41:$F$51,MATCH(J8,Levels_of_response,0))*Assumptions!$F$9),0)","v":0},{"$f":"IF(L8<=0,\"VL1\",IFERROR(INDEX('Risk Matrix'!$G$28:$G$53,MATCH(SUMPRODUCT(('Risk Matrix'!$B$28:$B$53<=L8)*('Risk Matrix'!$C$28:$C$53>=L8)*('Risk Matrix'!$D$28:$D$53<=K8)*('Risk Matrix'!$E$28:$E$53>=K8)*('Risk Matrix'!$F$28:$F$53)),'Risk Matrix'!$F$28:$F$53,0)),0))","v":"VL1"}]
[null,null,null,null,null,null,null,null,{"$f":"IFERROR((((INDEX(Assumptions!$F$28:$F$38,MATCH(E9,Vulnerabilties,0))*Assumptions!$F$10)+(INDEX(Assumptions!$F$28:$F$38,MATCH(F9,Vulnerabilties,0))*Assumptions!$F$10)+(INDEX(Assumptions!$F$28:$F$38,MATCH(G9,Vulnerabilties,0))*Assumptions!$F$10)+(INDEX(Assumptions!$F$28:$F$38,MATCH(H9,Vulnerabilties,0))*Assumptions!$F$10))*Assumptions!$F$9),0)","v":0},null,{"$f":"IFERROR(INDEX(Assumptions!$F$15:$F$25,MATCH(D9,Exposures,0)*Assumptions!$F$8+(I9/Assumptions!$F$9)*Assumptions!$F$8),0)","v":0},{"$f":"IFERROR((K9*Assumptions!$F$9)-(INDEX(Assumptions!$F$41:$F$51,MATCH(J9,Levels_of_response,0))*Assumptions!$F$9),0)","v":0},{"$f":"IF(L9<=0,\"VL1\",IFERROR(INDEX('Risk Matrix'!$G$28:$G$53,MATCH(SUMPRODUCT(('Risk Matrix'!$B$28:$B$53<=L9)*('Risk Matrix'!$C$28:$C$53>=L9)*('Risk Matrix'!$D$28:$D$53<=K9)*('Risk Matrix'!$E$28:$E$53>=K9)*('Risk Matrix'!$F$28:$F$53)),'Risk Matrix'!$F$28:$F$53,0)),0))","v":"VL1"}]
[null,null,null,null,null,null,null,null,{"$f":"IFERROR((((INDEX(Assumptions!$F$28:$F$38,MATCH(E10,Vulnerabilties,0))*Assumptions!$F$10)+(INDEX(Assumptions!$F$28:$F$38,MATCH(F10,Vulnerabilties,0))*Assumptions!$F$10)+(INDEX(Assumptions!$F$28:$F$38,MATCH(G10,Vulnerabilties,0))*Assumptions!$F$10)+(INDEX(Assumptions!$F$28:$F$38,MATCH(H10,Vulnerabilties,0))*Assumptions!$F$10))*Assumptions!$F$9),0)","v":0},null,{"$f":"IFERROR(INDEX(Assumptions!$F$15:$F$25,MATCH(D10,Exposures,0)*Assumptions!$F$8+(I10/Assumptions!$F$9)*Assumptions!$F$8),0)","v":0},{"$f":"IFERROR((K10*Assumptions!$F$9)-(INDEX(Assumptions!$F$41:$F$51,MATCH(J10,Levels_of_response,0))*Assumptions!$F$9),0)","v":0},{"$f":"IF(L10<=0,\"VL1\",IFERROR(INDEX('Risk Matrix'!$G$28:$G$53,MATCH(SUMPRODUCT(('Risk Matrix'!$B$28:$B$53<=L10)*('Risk Matrix'!$C$28:$C$53>=L10)*('Risk Matrix'!$D$28:$D$53<=K10)*('Risk Matrix'!$E$28:$E$53>=K10)*('Risk Matrix'!$F$28:$F$53)),'Risk Matrix'!$F$28:$F$53,0)),0))","v":"VL1"}]
[null,null,null,null,null,null,null,null,{"$f":"IFERROR((((INDEX(Assumptions!$F$28:$F$38,MATCH(E11,Vulnerabilties,0))*Assumptions!$F$10)+(INDEX(Assumptions!$F$28:$F$38,MATCH(F11,Vulnerabilties,0))*Assumptions!$F$10)+(INDEX(Assumptions!$F$28:$F$38,MATCH(G11,Vulnerabilties,0))*Assumptions!$F$10)+(INDEX(Assumptions!$F$28:$F$38,MATCH(H11,Vulnerabilties,0))*Assumptions!$F$10))*Assumptions!$F$9),0)","v":0},null,{"$f":"IFERROR(INDEX(Assumptions!$F$15:$F$25,MATCH(D11,Exposures,0)*Assumptions!$F$8+(I11/Assumptions!$F$9)*Assumptions!$F$8),0)","v":0},{"$f":"IFERROR((K11*Assumptions!$F$9)-(INDEX(Assumptions!$F$41:$F$51,MATCH(J11,Levels_of_response,0))*Assumptions!$F$9),0)","v":0},{"$f":"IF(L11<=0,\"VL1\",IFERROR(INDEX('Risk Matrix'!$G$28:$G$53,MATCH(SUMPRODUCT(('Risk Matrix'!$B$28:$B$53<=L11)*('Risk Matrix'!$C$28:$C$53>=L11)*('Risk Matrix'!$D$28:$D$53<=K11)*('Risk Matrix'!$E$28:$E$53>=K11)*('Risk Matrix'!$F$28:$F$53)),'Risk Matrix'!$F$28:$F$53,0)),0))","v":"VL1"}]
[null,null,null,null,null,null,null,null,{"$f":"IFERROR((((INDEX(Assumptions!$F$28:$F$38,MATCH(E12,Vulnerabilties,0))*Assumptions!$F$10)+(INDEX(Assumptions!$F$28:$F$38,MATCH(F12,Vulnerabilties,0))*Assumptions!$F$10)+(INDEX(Assumptions!$F$28:$F$38,MATCH(G12,Vulnerabilties,0))*Assumptions!$F$10)+(INDEX(Assumptions!$F$28:$F$38,MATCH(H12,Vulnerabilties,0))*Assumptions!$F$10))*Assumptions!$F$9),0)","v":0},null,{"$f":"IFERROR(INDEX(Assumptions!$F$15:$F$25,MATCH(D12,Exposures,0)*Assumptions!$F$8+(I12/Assumptions!$F$9)*Assumptions!$F$8),0)","v":0},{"$f":"IFERROR((K12*Assumptions!$F$9)-(INDEX(Assumptions!$F$41:$F$51,MATCH(J12,Levels_of_response,0))*Assumptions!$F$9),0)","v":0},{"$f":"IF(L12<=0,\"VL1\",IFERROR(INDEX('Risk Matrix'!$G$28:$G$53,MATCH(SUMPRODUCT(('Risk Matrix'!$B$28:$B$53<=L12)*('Risk Matrix'!$C$28:$C$53>=L12)*('Risk Matrix'!$D$28:$D$53<=K12)*('Risk Matrix'!$E$28:$E$53>=K12)*('Risk Matrix'!$F$28:$F$53)),'Risk Matrix'!$F$28:$F$53,0)),0))","v":"VL1"}]
[null,"H2 - ภัยทางอุทกวิทยาที่สำคัญ"]
[null,null,null,null,null,null,null,null,{"$f":"IFERROR((((INDEX(Assumptions!$F$28:$F$38,MATCH(E14,Vulnerabilties,0))*Assumptions!$F$10)+(INDEX(Assumptions!$F$28:$F$38,MATCH(F14,Vulnerabilties,0))*Assumptions!$F$10)+(INDEX(Assumptions!$F$28:$F$38,MATCH(G14,Vulnerabilties,0))*Assumptions!$F$10)+(INDEX(Assumptions!$F$28:$F$38,MATCH(H14,Vulnerabilties,0))*Assumptions!$F$10))*Assumptions!$F$9),0)","v":0},null,{"$f":"IFERROR(INDEX(Assumptions!$F$15:$F$25,MATCH(D14,Exposures,0)*Assumptions!$F$8+(I14/Assumptions!$F$9)*Assumptions!$F$8),0)","v":0},{"$f":"IFERROR((K14*Assumptions!$F$9)-(INDEX(Assumptions!$F$41:$F$51,MATCH(J14,Levels_of_response,0))*Assumptions!$F$9),0)","v":0},{"$f":"IF(L14<=0,\"VL1\",IFERROR(INDEX('Risk Matrix'!$G$28:$G$53,MATCH(SUMPRODUCT(('Risk Matrix'!$B$28:$B$53<=L14)*('Risk Matrix'!$C$28:$C$53>=L14)*('Risk Matrix'!$D$28:$D$53<=K14)*('Risk Matrix'!$E$28:$E$53>=K14)*('Risk Matrix'!$F$28:$F$53)),'Risk Matrix'!$F$28:$F$53,0)),0))","v":"VL1"}]
[null,null,null,null,null,null,null,null,{"$f":"IFERROR((((INDEX(Assumptions!$F$28:$F$38,MATCH(E15,Vulnerabilties,0))*Assumptions!$F$10)+(INDEX(Assumptions!$F$28:$F$38,MATCH(F15,Vulnerabilties,0))*Assumptions!$F$10)+(INDEX(Assumptions!$F$28:$F$38,MATCH(G15,Vulnerabilties,0))*Assumptions!$F$10)+(INDEX(Assumptions!$F$28:$F$38,MATCH(H15,Vulnerabilties,0))*Assumptions!$F$10))*Assumptions!$F$9),0)","v":0},null,{"$f":"IFERROR(INDEX(Assumptions!$F$15:$F$25,MATCH(D15,Exposures,0)*Assumptions!$F$8+(I15/Assumptions!$F$9)*Assumptions!$F$8),0)","v":0},{"$f":"IFERROR((K15*Assumptions!$F$9)-(INDEX(Assumptions!$F$41:$F$51,MATCH(J15,Levels_of_response,0))*Assumptions!$F$9),0)","v":0},{"$f":"IF(L15<=0,\"VL1\",IFERROR(INDEX('Risk Matrix'!$G$28:$G$53,MATCH(SUMPRODUCT(('Risk Matrix'!$B$28:$B$53<=L15)*('Risk Matrix'!$C$28:$C$53>=L15)*('Risk Matrix'!$D$28:$D$53<=K15)*('Risk Matrix'!$E$28:$E$53>=K15)*('Risk Matrix'!$F$28:$F$53)),'Risk Matrix'!$F$28:$F$53,0)),0))","v":"VL1"}]
[null,null,null,null,null,null,null,null,{"$f":"IFERROR((((INDEX(Assumptions!$F$28:$F$38,MATCH(E16,Vulnerabilties,0))*Assumptions!$F$10)+(INDEX(Assumptions!$F$28:$F$38,MATCH(F16,Vulnerabilties,0))*Assumptions!$F$10)+(INDEX(Assumptions!$F$28:$F$38,MATCH(G16,Vulnerabilties,0))*Assumptions!$F$10)+(INDEX(Assumptions!$F$28:$F$38,MATCH(H16,Vulnerabilties,0))*Assumptions!$F$10))*Assumptions!$F$9),0)","v":0},null,{"$f":"IFERROR(INDEX(Assumptions!$F$15:$F$25,MATCH(D16,Exposures,0)*Assumptions!$F$8+(I16/Assumptions!$F$9)*Assumptions!$F$8),0)","v":0},{"$f":"IFERROR((K16*Assumptions!$F$9)-(INDEX(Assumptions!$F$41:$F$51,MATCH(J16,Levels_of_response,0))*Assumptions!$F$9),0)","v":0},{"$f":"IF(L16<=0,\"VL1\",IFERROR(INDEX('Risk Matrix'!$G$28:$G$53,MATCH(SUMPRODUCT(('Risk Matrix'!$B$28:$B$53<=L16)*('Risk Matrix'!$C$28:$C$53>=L16)*('Risk Matrix'!$D$28:$D$53<=K16)*('Risk Matrix'!$E$28:$E$53>=K16)*('Risk Matrix'!$F$28:$F$53)),'Risk Matrix'!$F$28:$F$53,0)),0))","v":"VL1"}]
[null,null,null,null,null,null,null,null,{"$f":"IFERROR((((INDEX(Assumptions!$F$28:$F$38,MATCH(E17,Vulnerabilties,0))*Assumptions!$F$10)+(INDEX(Assumptions!$F$28:$F$38,MATCH(F17,Vulnerabilties,0))*Assumptions!$F$10)+(INDEX(Assumptions!$F$28:$F$38,MATCH(G17,Vulnerabilties,0))*Assumptions!$F$10)+(INDEX(Assumptions!$F$28:$F$38,MATCH(H17,Vulnerabilties,0))*Assumptions!$F$10))*Assumptions!$F$9),0)","v":0},null,{"$f":"IFERROR(INDEX(Assumptions!$F$15:$F$25,MATCH(D17,Exposures,0)*Assumptions!$F$8+(I17/Assumptions!$F$9)*Assumptions!$F$8),0)","v":0},{"$f":"IFERROR((K17*Assumptions!$F$9)-(INDEX(Assumptions!$F$41:$F$51,MATCH(J17,Levels_of_response,0))*Assumptions!$F$9),0)","v":0},{"$f":"IF(L17<=0,\"VL1\",IFERROR(INDEX('Risk Matrix'!$G$28:$G$53,MATCH(SUMPRODUCT(('Risk Matrix'!$B$28:$B$53<=L17)*('Risk Matrix'!$C$28:$C$53>=L17)*('Risk Matrix'!$D$28:$D$53<=K17)*('Risk Matrix'!$E$28:$E$53>=K17)*('Risk Matrix'!$F$28:$F$53)),'Risk Matrix'!$F$28:$F$53,0)),0))","v":"VL1"}]
[null,null,null,null,null,null,null,null,{"$f":"IFERROR((((INDEX(Assumptions!$F$28:$F$38,MATCH(E18,Vulnerabilties,0))*Assumptions!$F$10)+(INDEX(Assumptions!$F$28:$F$38,MATCH(F18,Vulnerabilties,0))*Assumptions!$F$10)+(INDEX(Assumptions!$F$28:$F$38,MATCH(G18,Vulnerabilties,0))*Assumptions!$F$10)+(INDEX(Assumptions!$F$28:$F$38,MATCH(H18,Vulnerabilties,0))*Assumptions!$F$10))*Assumptions!$F$9),0)","v":0},null,{"$f":"IFERROR(INDEX(Assumptions!$F$15:$F$25,MATCH(D18,Exposures,0)*Assumptions!$F$8+(I18/Assumptions!$F$9)*Assumptions!$F$8),0)","v":0},{"$f":"IFERROR((K18*Assumptions!$F$9)-(INDEX(Assumptions!$F$41:$F$51,MATCH(J18,Levels_of_response,0))*Assumptions!$F$9),0)","v":0},{"$f":"IF(L18<=0,\"VL1\",IFERROR(INDEX('Risk Matrix'!$G$28:$G$53,MATCH(SUMPRODUCT(('Risk Matrix'!$B$28:$B$53<=L18)*('Risk Matrix'!$C$28:$C$53>=L18)*('Risk Matrix'!$D$28:$D$53<=K18)*('Risk Matrix'!$E$28:$E$53>=K18)*('Risk Matrix'!$F$28:$F$53)),'Risk Matrix'!$F$28:$F$53,0)),0))","v":"VL1"}]
[null,"H3 - ภัยทางอุตุนิยมวิทยาที่สำคัญ"]
[null,null,null,null,null,null,null,null,{"$f":"IFERROR((((INDEX(Assumptions!$F$28:$F$38,MATCH(E20,Vulnerabilties,0))*Assumptions!$F$10)+(INDEX(Assumptions!$F$28:$F$38,MATCH(F20,Vulnerabilties,0))*Assumptions!$F$10)+(INDEX(Assumptions!$F$28:$F$38,MATCH(G20,Vulnerabilties,0))*Assumptions!$F$10)+(INDEX(Assumptions!$F$28:$F$38,MATCH(H20,Vulnerabilties,0))*Assumptions!$F$10))*Assumptions!$F$9),0)","v":0},null,{"$f":"IFERROR(INDEX(Assumptions!$F$15:$F$25,MATCH(D20,Exposures,0)*Assumptions!$F$8+(I20/Assumptions!$F$9)*Assumptions!$F$8),0)","v":0},{"$f":"IFERROR((K20*Assumptions!$F$9)-(INDEX(Assumptions!$F$41:$F$51,MATCH(J20,Levels_of_response,0))*Assumptions!$F$9),0)","v":0},{"$f":"IF(L20<=0,\"VL1\",IFERROR(INDEX('Risk Matrix'!$G$28:$G$53,MATCH(SUMPRODUCT(('Risk Matrix'!$B$28:$B$53<=L20)*('Risk Matrix'!$C$28:$C$53>=L20)*('Risk Matrix'!$D$28:$D$53<=K20)*('Risk Matrix'!$E$28:$E$53>=K20)*('Risk Matrix'!$F$28:$F$53)),'Risk Matrix'!$F$28:$F$53,0)),0))","v":"VL1"}]
[null,null,null,null,null,null,null,null,{"$f":"IFERROR((((INDEX(Assumptions!$F$28:$F$38,MATCH(E21,Vulnerabilties,0))*Assumptions!$F$10)+(INDEX(Assumptions!$F$28:$F$38,MATCH(F21,Vulnerabilties,0))*Assumptions!$F$10)+(INDEX(Assumptions!$F$28:$F$38,MATCH(G21,Vulnerabilties,0))*Assumptions!$F$10)+(INDEX(Assumptions!$F$28:$F$38,MATCH(H21,Vulnerabilties,0))*Assumptions!$F$10))*Assumptions!$F$9),0)","v":0},null,{"$f":"IFERROR(INDEX(Assumptions!$F$15:$F$25,MATCH(D21,Exposures,0)*Assumptions!$F$8+(I21/Assumptions!$F$9)*Assumptions!$F$8),0)","v":0},{"$f":"IFERROR((K21*Assumptions!$F$9)-(INDEX(Assumptions!$F$41:$F$51,MATCH(J21,Levels_of_response,0))*Assumptions!$F$9),0)","v":0},{"$f":"IF(L21<=0,\"VL1\",IFERROR(INDEX('Risk Matrix'!$G$28:$G$53,MATCH(SUMPRODUCT(('Risk Matrix'!$B$28:$B$53<=L21)*('Risk Matrix'!$C$28:$C$53>=L21)*('Risk Matrix'!$D$28:$D$53<=K21)*('Risk Matrix'!$E$28:$E$53>=K21)*('Risk Matrix'!$F$28:$F$53)),'Risk Matrix'!$F$28:$F$53,0)),0))","v":"VL1"}]
[null,null,null,null,null,null,null,null,{"$f":"IFERROR((((INDEX(Assumptions!$F$28:$F$38,MATCH(E22,Vulnerabilties,0))*Assumptions!$F$10)+(INDEX(Assumptions!$F$28:$F$38,MATCH(F22,Vulnerabilties,0))*Assumptions!$F$10)+(INDEX(Assumptions!$F$28:$F$38,MATCH(G22,Vulnerabilties,0))*Assumptions!$F$10)+(INDEX(Assumptions!$F$28:$F$38,MATCH(H22,Vulnerabilties,0))*Assumptions!$F$10))*Assumptions!$F$9),0)","v":0},null,{"$f":"IFERROR(INDEX(Assumptions!$F$15:$F$25,MATCH(D22,Exposures,0)*Assumptions!$F$8+(I22/Assumptions!$F$9)*Assumptions!$F$8),0)","v":0},{"$f":"IFERROR((K22*Assumptions!$F$9)-(INDEX(Assumptions!$F$41:$F$51,MATCH(J22,Levels_of_response,0))*Assumptions!$F$9),0)","v":0},{"$f":"IF(L22<=0,\"VL1\",IFERROR(INDEX('Risk Matrix'!$G$28:$G$53,MATCH(SUMPRODUCT(('Risk Matrix'!$B$28:$B$53<=L22)*('Risk Matrix'!$C$28:$C$53>=L22)*('Risk Matrix'!$D$28:$D$53<=K22)*('Risk Matrix'!$E$28:$E$53>=K22)*('Risk Matrix'!$F$28:$F$53)),'Risk Matrix'!$F$28:$F$53,0)),0))","v":"VL1"}]
[null,null,null,null,null,null,null,null,{"$f":"IFERROR((((INDEX(Assumptions!$F$28:$F$38,MATCH(E23,Vulnerabilties,0))*Assumptions!$F$10)+(INDEX(Assumptions!$F$28:$F$38,MATCH(F23,Vulnerabilties,0))*Assumptions!$F$10)+(INDEX(Assumptions!$F$28:$F$38,MATCH(G23,Vulnerabilties,0))*Assumptions!$F$10)+(INDEX(Assumptions!$F$28:$F$38,MATCH(H23,Vulnerabilties,0))*Assumptions!$F$10))*Assumptions!$F$9),0)","v":0},null,{"$f":"IFERROR(INDEX(Assumptions!$F$15:$F$25,MATCH(D23,Exposures,0)*Assumptions!$F$8+(I23/Assumptions!$F$9)*Assumptions!$F$8),0)","v":0},{"$f":"IFERROR((K23*Assumptions!$F$9)-(INDEX(Assumptions!$F$41:$F$51,MATCH(J23,Levels_of_response,0))*Assumptions!$F$9),0)","v":0},{"$f":"IF(L23<=0,\"VL1\",IFERROR(INDEX('Risk Matrix'!$G$28:$G$53,MATCH(SUMPRODUCT(('Risk Matrix'!$B$28:$B$53<=L23)*('Risk Matrix'!$C$28:$C$53>=L23)*('Risk Matrix'!$D$28:$D$53<=K23)*('Risk Matrix'!$E$28:$E$53>=K23)*('Risk Matrix'!$F$28:$F$53)),'Risk Matrix'!$F$28:$F$53,0)),0))","v":"VL1"}]
[null,null,null,null,null,null,null,null,{"$f":"IFERROR((((INDEX(Assumptions!$F$28:$F$38,MATCH(E24,Vulnerabilties,0))*Assumptions!$F$10)+(INDEX(Assumptions!$F$28:$F$38,MATCH(F24,Vulnerabilties,0))*Assumptions!$F$10)+(INDEX(Assumptions!$F$28:$F$38,MATCH(G24,Vulnerabilties,0))*Assumptions!$F$10)+(INDEX(Assumptions!$F$28:$F$38,MATCH(H24,Vulnerabilties,0))*Assumptions!$F$10))*Assumptions!$F$9),0)","v":0},null,{"$f":"IFERROR(INDEX(Assumptions!$F$15:$F$25,MATCH(D24,Exposures,0)*Assumptions!$F$8+(I24/Assumptions!$F$9)*Assumptions!$F$8),0)","v":0},{"$f":"IFERROR((K24*Assumptions!$F$9)-(INDEX(Assumptions!$F$41:$F$51,MATCH(J24,Levels_of_response,0))*Assumptions!$F$9),0)","v":0},{"$f":"IF(L24<=0,\"VL1\",IFERROR(INDEX('Risk Matrix'!$G$28:$G$53,MATCH(SUMPRODUCT(('Risk Matrix'!$B$28:$B$53<=L24)*('Risk Matrix'!$C$28:$C$53>=L24)*('Risk Matrix'!$D$28:$D$53<=K24)*('Risk Matrix'!$E$28:$E$53>=K24)*('Risk Matrix'!$F$28:$F$53)),'Risk Matrix'!$F$28:$F$53,0)),0))","v":"VL1"}]
[null,"H4 - ภัยทางภูมิอากาศวิทยาที่สำคัญ"]
[null,null,null,null,null,null,null,null,{"$f":"IFERROR((((INDEX(Assumptions!$F$28:$F$38,MATCH(E26,Vulnerabilties,0))*Assumptions!$F$10)+(INDEX(Assumptions!$F$28:$F$38,MATCH(F26,Vulnerabilties,0))*Assumptions!$F$10)+(INDEX(Assumptions!$F$28:$F$38,MATCH(G26,Vulnerabilties,0))*Assumptions!$F$10)+(INDEX(Assumptions!$F$28:$F$38,MATCH(H26,Vulnerabilties,0))*Assumptions!$F$10))*Assumptions!$F$9),0)","v":0},null,{"$f":"IFERROR(INDEX(Assumptions!$F$15:$F$25,MATCH(D26,Exposures,0)*Assumptions!$F$8+(I26/Assumptions!$F$9)*Assumptions!$F$8),0)","v":0},{"$f":"IFERROR((K26*Assumptions!$F$9)-(INDEX(Assumptions!$F$41:$F$51,MATCH(J26,Levels_of_response,0))*Assumptions!$F$9),0)","v":0},{"$f":"IF(L26<=0,\"VL1\",IFERROR(INDEX('Risk Matrix'!$G$28:$G$53,MATCH(SUMPRODUCT(('Risk Matrix'!$B$28:$B$53<=L26)*('Risk Matrix'!$C$28:$C$53>=L26)*('Risk Matrix'!$D$28:$D$53<=K26)*('Risk Matrix'!$E$28:$E$53>=K26)*('Risk Matrix'!$F$28:$F$53)),'Risk Matrix'!$F$28:$F$53,0)),0))","v":"VL1"}]
[null,null,null,null,null,null,null,null,{"$f":"IFERROR((((INDEX(Assumptions!$F$28:$F$38,MATCH(E27,Vulnerabilties,0))*Assumptions!$F$10)+(INDEX(Assumptions!$F$28:$F$38,MATCH(F27,Vulnerabilties,0))*Assumptions!$F$10)+(INDEX(Assumptions!$F$28:$F$38,MATCH(G27,Vulnerabilties,0))*Assumptions!$F$10)+(INDEX(Assumptions!$F$28:$F$38,MATCH(H27,Vulnerabilties,0))*Assumptions!$F$10))*Assumptions!$F$9),0)","v":0},null,{"$f":"IFERROR(INDEX(Assumptions!$F$15:$F$25,MATCH(D27,Exposures,0)*Assumptions!$F$8+(I27/Assumptions!$F$9)*Assumptions!$F$8),0)","v":0},{"$f":"IFERROR((K27*Assumptions!$F$9)-(INDEX(Assumptions!$F$41:$F$51,MATCH(J27,Levels_of_response,0))*Assumptions!$F$9),0)","v":0},{"$f":"IF(L27<=0,\"VL1\",IFERROR(INDEX('Risk Matrix'!$G$28:$G$53,MATCH(SUMPRODUCT(('Risk Matrix'!$B$28:$B$53<=L27)*('Risk Matrix'!$C$28:$C$53>=L27)*('Risk Matrix'!$D$28:$D$53<=K27)*('Risk Matrix'!$E$28:$E$53>=K27)*('Risk Matrix'!$F$28:$F$53)),'Risk Matrix'!$F$28:$F$53,0)),0))","v":"VL1"}]
[null,null,null,null,null,null,null,null,{"$f":"IFERROR((((INDEX(Assumptions!$F$28:$F$38,MATCH(E28,Vulnerabilties,0))*Assumptions!$F$10)+(INDEX(Assumptions!$F$28:$F$38,MATCH(F28,Vulnerabilties,0))*Assumptions!$F$10)+(INDEX(Assumptions!$F$28:$F$38,MATCH(G28,Vulnerabilties,0))*Assumptions!$F$10)+(INDEX(Assumptions!$F$28:$F$38,MATCH(H28,Vulnerabilties,0))*Assumptions!$F$10))*Assumptions!$F$9),0)","v":0},null,{"$f":"IFERROR(INDEX(Assumptions!$F$15:$F$25,MATCH(D28,Exposures,0)*Assumptions!$F$8+(I28/Assumptions!$F$9)*Assumptions!$F$8),0)","v":0},{"$f":"IFERROR((K28*Assumptions!$F$9)-(INDEX(Assumptions!$F$41:$F$51,MATCH(J28,Levels_of_response,0))*Assumptions!$F$9),0)","v":0},{"$f":"IF(L28<=0,\"VL1\",IFERROR(INDEX('Risk Matrix'!$G$28:$G$53,MATCH(SUMPRODUCT(('Risk Matrix'!$B$28:$B$53<=L28)*('Risk Matrix'!$C$28:$C$53>=L28)*('Risk Matrix'!$D$28:$D$53<=K28)*('Risk Matrix'!$E$28:$E$53>=K28)*('Risk Matrix'!$F$28:$F$53)),'Risk Matrix'!$F$28:$F$53,0)),0))","v":"VL1"}]
[null,null,null,null,null,null,null,null,{"$f":"IFERROR((((INDEX(Assumptions!$F$28:$F$38,MATCH(E29,Vulnerabilties,0))*Assumptions!$F$10)+(INDEX(Assumptions!$F$28:$F$38,MATCH(F29,Vulnerabilties,0))*Assumptions!$F$10)+(INDEX(Assumptions!$F$28:$F$38,MATCH(G29,Vulnerabilties,0))*Assumptions!$F$10)+(INDEX(Assumptions!$F$28:$F$38,MATCH(H29,Vulnerabilties,0))*Assumptions!$F$10))*Assumptions!$F$9),0)","v":0},null,{"$f":"IFERROR(INDEX(Assumptions!$F$15:$F$25,MATCH(D29,Exposures,0)*Assumptions!$F$8+(I29/Assumptions!$F$9)*Assumptions!$F$8),0)","v":0},{"$f":"IFERROR((K29*Assumptions!$F$9)-(INDEX(Assumptions!$F$41:$F$51,MATCH(J29,Levels_of_response,0))*Assumptions!$F$9),0)","v":0},{"$f":"IF(L29<=0,\"VL1\",IFERROR(INDEX('Risk Matrix'!$G$28:$G$53,MATCH(SUMPRODUCT(('Risk Matrix'!$B$28:$B$53<=L29)*('Risk Matrix'!$C$28:$C$53>=L29)*('Risk Matrix'!$D$28:$D$53<=K29)*('Risk Matrix'!$E$28:$E$53>=K29)*('Risk Matrix'!$F$28:$F$53)),'Risk Matrix'!$F$28:$F$53,0)),0))","v":"VL1"}]
[null,null,null,null,null,null,null,null,{"$f":"IFERROR((((INDEX(Assumptions!$F$28:$F$38,MATCH(E30,Vulnerabilties,0))*Assumptions!$F$10)+(INDEX(Assumptions!$F$28:$F$38,MATCH(F30,Vulnerabilties,0))*Assumptions!$F$10)+(INDEX(Assumptions!$F$28:$F$38,MATCH(G30,Vulnerabilties,0))*Assumptions!$F$10)+(INDEX(Assumptions!$F$28:$F$38,MATCH(H30,Vulnerabilties,0))*Assumptions!$F$10))*Assumptions!$F$9),0)","v":0},null,{"$f":"IFERROR(INDEX(Assumptions!$F$15:$F$25,MATCH(D30,Exposures,0)*Assumptions!$F$8+(I30/Assumptions!$F$9)*Assumptions!$F$8),0)","v":0},{"$f":"IFERROR((K30*Assumptions!$F$9)-(INDEX(Assumptions!$F$41:$F$51,MATCH(J30,Levels_of_response,0))*Assumptions!$F$9),0)","v":0},{"$f":"IF(L30<=0,\"VL1\",IFERROR(INDEX('Risk Matrix'!$G$28:$G$53,MATCH(SUMPRODUCT(('Risk Matrix'!$B$28:$B$53<=L30)*('Risk Matrix'!$C$28:$C$53>=L30)*('Risk Matrix'!$D$28:$D$53<=K30)*('Risk Matrix'!$E$28:$E$53>=K30)*('Risk Matrix'!$F$28:$F$53)),'Risk Matrix'!$F$28:$F$53,0)),0))","v":"VL1"}]
[null,"H5 - ภัยทางชีววิทยาที่สำคัญ "]
[null,null,null,null,null,null,null,null,{"$f":"IFERROR((((INDEX(Assumptions!$F$28:$F$38,MATCH(E32,Vulnerabilties,0))*Assumptions!$F$10)+(INDEX(Assumptions!$F$28:$F$38,MATCH(F32,Vulnerabilties,0))*Assumptions!$F$10)+(INDEX(Assumptions!$F$28:$F$38,MATCH(G32,Vulnerabilties,0))*Assumptions!$F$10)+(INDEX(Assumptions!$F$28:$F$38,MATCH(H32,Vulnerabilties,0))*Assumptions!$F$10))*Assumptions!$F$9),0)","v":0},null,{"$f":"IFERROR(INDEX(Assumptions!$F$15:$F$25,MATCH(D32,Exposures,0)*Assumptions!$F$8+(I32/Assumptions!$F$9)*Assumptions!$F$8),0)","v":0},{"$f":"IFERROR((K32*Assumptions!$F$9)-(INDEX(Assumptions!$F$41:$F$51,MATCH(J32,Levels_of_response,0))*Assumptions!$F$9),0)","v":0},{"$f":"IF(L32<=0,\"VL1\",IFERROR(INDEX('Risk Matrix'!$G$28:$G$53,MATCH(SUMPRODUCT(('Risk Matrix'!$B$28:$B$53<=L32)*('Risk Matrix'!$C$28:$C$53>=L32)*('Risk Matrix'!$D$28:$D$53<=K32)*('Risk Matrix'!$E$28:$E$53>=K32)*('Risk Matrix'!$F$28:$F$53)),'Risk Matrix'!$F$28:$F$53,0)),0))","v":"VL1"}]
[null,null,null,null,null,null,null,null,{"$f":"IFERROR((((INDEX(Assumptions!$F$28:$F$38,MATCH(E33,Vulnerabilties,0))*Assumptions!$F$10)+(INDEX(Assumptions!$F$28:$F$38,MATCH(F33,Vulnerabilties,0))*Assumptions!$F$10)+(INDEX(Assumptions!$F$28:$F$38,MATCH(G33,Vulnerabilties,0))*Assumptions!$F$10)+(INDEX(Assumptions!$F$28:$F$38,MATCH(H33,Vulnerabilties,0))*Assumptions!$F$10))*Assumptions!$F$9),0)","v":0},null,{"$f":"IFERROR(INDEX(Assumptions!$F$15:$F$25,MATCH(D33,Exposures,0)*Assumptions!$F$8+(I33/Assumptions!$F$9)*Assumptions!$F$8),0)","v":0},{"$f":"IFERROR((K33*Assumptions!$F$9)-(INDEX(Assumptions!$F$41:$F$51,MATCH(J33,Levels_of_response,0))*Assumptions!$F$9),0)","v":0},{"$f":"IF(L33<=0,\"VL1\",IFERROR(INDEX('Risk Matrix'!$G$28:$G$53,MATCH(SUMPRODUCT(('Risk Matrix'!$B$28:$B$53<=L33)*('Risk Matrix'!$C$28:$C$53>=L33)*('Risk Matrix'!$D$28:$D$53<=K33)*('Risk Matrix'!$E$28:$E$53>=K33)*('Risk Matrix'!$F$28:$F$53)),'Risk Matrix'!$F$28:$F$53,0)),0))","v":"VL1"}]
[null,null,null,null,null,null,null,null,{"$f":"IFERROR((((INDEX(Assumptions!$F$28:$F$38,MATCH(E34,Vulnerabilties,0))*Assumptions!$F$10)+(INDEX(Assumptions!$F$28:$F$38,MATCH(F34,Vulnerabilties,0))*Assumptions!$F$10)+(INDEX(Assumptions!$F$28:$F$38,MATCH(G34,Vulnerabilties,0))*Assumptions!$F$10)+(INDEX(Assumptions!$F$28:$F$38,MATCH(H34,Vulnerabilties,0))*Assumptions!$F$10))*Assumptions!$F$9),0)","v":0},null,{"$f":"IFERROR(INDEX(Assumptions!$F$15:$F$25,MATCH(D34,Exposures,0)*Assumptions!$F$8+(I34/Assumptions!$F$9)*Assumptions!$F$8),0)","v":0},{"$f":"IFERROR((K34*Assumptions!$F$9)-(INDEX(Assumptions!$F$41:$F$51,MATCH(J34,Levels_of_response,0))*Assumptions!$F$9),0)","v":0},{"$f":"IF(L34<=0,\"VL1\",IFERROR(INDEX('Risk Matrix'!$G$28:$G$53,MATCH(SUMPRODUCT(('Risk Matrix'!$B$28:$B$53<=L34)*('Risk Matrix'!$C$28:$C$53>=L34)*('Risk Matrix'!$D$28:$D$53<=K34)*('Risk Matrix'!$E$28:$E$53>=K34)*('Risk Matrix'!$F$28:$F$53)),'Risk Matrix'!$F$28:$F$53,0)),0))","v":"VL1"}]
[null,null,null,null,null,null,null,null,{"$f":"IFERROR((((INDEX(Assumptions!$F$28:$F$38,MATCH(E35,Vulnerabilties,0))*Assumptions!$F$10)+(INDEX(Assumptions!$F$28:$F$38,MATCH(F35,Vulnerabilties,0))*Assumptions!$F$10)+(INDEX(Assumptions!$F$28:$F$38,MATCH(G35,Vulnerabilties,0))*Assumptions!$F$10)+(INDEX(Assumptions!$F$28:$F$38,MATCH(H35,Vulnerabilties,0))*Assumptions!$F$10))*Assumptions!$F$9),0)","v":0},null,{"$f":"IFERROR(INDEX(Assumptions!$F$15:$F$25,MATCH(D35,Exposures,0)*Assumptions!$F$8+(I35/Assumptions!$F$9)*Assumptions!$F$8),0)","v":0},{"$f":"IFERROR((K35*Assumptions!$F$9)-(INDEX(Assumptions!$F$41:$F$51,MATCH(J35,Levels_of_response,0))*Assumptions!$F$9),0)","v":0},{"$f":"IF(L35<=0,\"VL1\",IFERROR(INDEX('Risk Matrix'!$G$28:$G$53,MATCH(SUMPRODUCT(('Risk Matrix'!$B$28:$B$53<=L35)*('Risk Matrix'!$C$28:$C$53>=L35)*('Risk Matrix'!$D$28:$D$53<=K35)*('Risk Matrix'!$E$28:$E$53>=K35)*('Risk Matrix'!$F$28:$F$53)),'Risk Matrix'!$F$28:$F$53,0)),0))","v":"VL1"}]
[null,null,null,null,null,null,null,null,{"$f":"IFERROR((((INDEX(Assumptions!$F$28:$F$38,MATCH(E36,Vulnerabilties,0))*Assumptions!$F$10)+(INDEX(Assumptions!$F$28:$F$38,MATCH(F36,Vulnerabilties,0))*Assumptions!$F$10)+(INDEX(Assumptions!$F$28:$F$38,MATCH(G36,Vulnerabilties,0))*Assumptions!$F$10)+(INDEX(Assumptions!$F$28:$F$38,MATCH(H36,Vulnerabilties,0))*Assumptions!$F$10))*Assumptions!$F$9),0)","v":0},null,{"$f":"IFERROR(INDEX(Assumptions!$F$15:$F$25,MATCH(D36,Exposures,0)*Assumptions!$F$8+(I36/Assumptions!$F$9)*Assumptions!$F$8),0)","v":0},{"$f":"IFERROR((K36*Assumptions!$F$9)-(INDEX(Assumptions!$F$41:$F$51,MATCH(J36,Levels_of_response,0))*Assumptions!$F$9),0)","v":0},{"$f":"IF(L36<=0,\"VL1\",IFERROR(INDEX('Risk Matrix'!$G$28:$G$53,MATCH(SUMPRODUCT(('Risk Matrix'!$B$28:$B$53<=L36)*('Risk Matrix'!$C$28:$C$53>=L36)*('Risk Matrix'!$D$28:$D$53<=K36)*('Risk Matrix'!$E$28:$E$53>=K36)*('Risk Matrix'!$F$28:$F$53)),'Risk Matrix'!$F$28:$F$53,0)),0))","v":"VL1"}]
[null,"H6 - ภัยจากนอกโลกที่สำคัญ"]
[null,null,null,null,null,null,null,null,{"$f":"IFERROR((((INDEX(Assumptions!$F$28:$F$38,MATCH(E38,Vulnerabilties,0))*Assumptions!$F$10)+(INDEX(Assumptions!$F$28:$F$38,MATCH(F38,Vulnerabilties,0))*Assumptions!$F$10)+(INDEX(Assumptions!$F$28:$F$38,MATCH(G38,Vulnerabilties,0))*Assumptions!$F$10)+(INDEX(Assumptions!$F$28:$F$38,MATCH(H38,Vulnerabilties,0))*Assumptions!$F$10))*Assumptions!$F$9),0)","v":0},null,{"$f":"IFERROR(INDEX(Assumptions!$F$15:$F$25,MATCH(D38,Exposures,0)*Assumptions!$F$8+(I38/Assumptions!$F$9)*Assumptions!$F$8),0)","v":0},{"$f":"IFERROR((K38*Assumptions!$F$9)-(INDEX(Assumptions!$F$41:$F$51,MATCH(J38,Levels_of_response,0))*Assumptions!$F$9),0)","v":0},{"$f":"IF(L38<=0,\"VL1\",IFERROR(INDEX('Risk Matrix'!$G$28:$G$53,MATCH(SUMPRODUCT(('Risk Matrix'!$B$28:$B$53<=L38)*('Risk Matrix'!$C$28:$C$53>=L38)*('Risk Matrix'!$D$28:$D$53<=K38)*('Risk Matrix'!$E$28:$E$53>=K38)*('Risk Matrix'!$F$28:$F$53)),'Risk Matrix'!$F$28:$F$53,0)),0))","v":"VL1"}]
[null,null,null,null,null,null,null,null,{"$f":"IFERROR((((INDEX(Assumptions!$F$28:$F$38,MATCH(E39,Vulnerabilties,0))*Assumptions!$F$10)+(INDEX(Assumptions!$F$28:$F$38,MATCH(F39,Vulnerabilties,0))*Assumptions!$F$10)+(INDEX(Assumptions!$F$28:$F$38,MATCH(G39,Vulnerabilties,0))*Assumptions!$F$10)+(INDEX(Assumptions!$F$28:$F$38,MATCH(H39,Vulnerabilties,0))*Assumptions!$F$10))*Assumptions!$F$9),0)","v":0},null,{"$f":"IFERROR(INDEX(Assumptions!$F$15:$F$25,MATCH(D39,Exposures,0)*Assumptions!$F$8+(I39/Assumptions!$F$9)*Assumptions!$F$8),0)","v":0},{"$f":"IFERROR((K39*Assumptions!$F$9)-(INDEX(Assumptions!$F$41:$F$51,MATCH(J39,Levels_of_response,0))*Assumptions!$F$9),0)","v":0},{"$f":"IF(L39<=0,\"VL1\",IFERROR(INDEX('Risk Matrix'!$G$28:$G$53,MATCH(SUMPRODUCT(('Risk Matrix'!$B$28:$B$53<=L39)*('Risk Matrix'!$C$28:$C$53>=L39)*('Risk Matrix'!$D$28:$D$53<=K39)*('Risk Matrix'!$E$28:$E$53>=K39)*('Risk Matrix'!$F$28:$F$53)),'Risk Matrix'!$F$28:$F$53,0)),0))","v":"VL1"}]
[null,null,null,null,null,null,null,null,{"$f":"IFERROR((((INDEX(Assumptions!$F$28:$F$38,MATCH(E40,Vulnerabilties,0))*Assumptions!$F$10)+(INDEX(Assumptions!$F$28:$F$38,MATCH(F40,Vulnerabilties,0))*Assumptions!$F$10)+(INDEX(Assumptions!$F$28:$F$38,MATCH(G40,Vulnerabilties,0))*Assumptions!$F$10)+(INDEX(Assumptions!$F$28:$F$38,MATCH(H40,Vulnerabilties,0))*Assumptions!$F$10))*Assumptions!$F$9),0)","v":0},null,{"$f":"IFERROR(INDEX(Assumptions!$F$15:$F$25,MATCH(D40,Exposures,0)*Assumptions!$F$8+(I40/Assumptions!$F$9)*Assumptions!$F$8),0)","v":0},{"$f":"IFERROR((K40*Assumptions!$F$9)-(INDEX(Assumptions!$F$41:$F$51,MATCH(J40,Levels_of_response,0))*Assumptions!$F$9),0)","v":0},{"$f":"IF(L40<=0,\"VL1\",IFERROR(INDEX('Risk Matrix'!$G$28:$G$53,MATCH(SUMPRODUCT(('Risk Matrix'!$B$28:$B$53<=L40)*('Risk Matrix'!$C$28:$C$53>=L40)*('Risk Matrix'!$D$28:$D$53<=K40)*('Risk Matrix'!$E$28:$E$53>=K40)*('Risk Matrix'!$F$28:$F$53)),'Risk Matrix'!$F$28:$F$53,0)),0))","v":"VL1"}]
[null,null,null,null,null,null,null,null,{"$f":"IFERROR((((INDEX(Assumptions!$F$28:$F$38,MATCH(E41,Vulnerabilties,0))*Assumptions!$F$10)+(INDEX(Assumptions!$F$28:$F$38,MATCH(F41,Vulnerabilties,0))*Assumptions!$F$10)+(INDEX(Assumptions!$F$28:$F$38,MATCH(G41,Vulnerabilties,0))*Assumptions!$F$10)+(INDEX(Assumptions!$F$28:$F$38,MATCH(H41,Vulnerabilties,0))*Assumptions!$F$10))*Assumptions!$F$9),0)","v":0},null,{"$f":"IFERROR(INDEX(Assumptions!$F$15:$F$25,MATCH(D41,Exposures,0)*Assumptions!$F$8+(I41/Assumptions!$F$9)*Assumptions!$F$8),0)","v":0},{"$f":"IFERROR((K41*Assumptions!$F$9)-(INDEX(Assumptions!$F$41:$F$51,MATCH(J41,Levels_of_response,0))*Assumptions!$F$9),0)","v":0},{"$f":"IF(L41<=0,\"VL1\",IFERROR(INDEX('Risk Matrix'!$G$28:$G$53,MATCH(SUMPRODUCT(('Risk Matrix'!$B$28:$B$53<=L41)*('Risk Matrix'!$C$28:$C$53>=L41)*('Risk Matrix'!$D$28:$D$53<=K41)*('Risk Matrix'!$E$28:$E$53>=K41)*('Risk Matrix'!$F$28:$F$53)),'Risk Matrix'!$F$28:$F$53,0)),0))","v":"VL1"}]
[null,null,null,null,null,null,null,null,{"$f":"IFERROR((((INDEX(Assumptions!$F$28:$F$38,MATCH(E42,Vulnerabilties,0))*Assumptions!$F$10)+(INDEX(Assumptions!$F$28:$F$38,MATCH(F42,Vulnerabilties,0))*Assumptions!$F$10)+(INDEX(Assumptions!$F$28:$F$38,MATCH(G42,Vulnerabilties,0))*Assumptions!$F$10)+(INDEX(Assumptions!$F$28:$F$38,MATCH(H42,Vulnerabilties,0))*Assumptions!$F$10))*Assumptions!$F$9),0)","v":0},null,{"$f":"IFERROR(INDEX(Assumptions!$F$15:$F$25,MATCH(D42,Exposures,0)*Assumptions!$F$8+(I42/Assumptions!$F$9)*Assumptions!$F$8),0)","v":0},{"$f":"IFERROR((K42*Assumptions!$F$9)-(INDEX(Assumptions!$F$41:$F$51,MATCH(J42,Levels_of_response,0))*Assumptions!$F$9),0)","v":0},{"$f":"IF(L42<=0,\"VL1\",IFERROR(INDEX('Risk Matrix'!$G$28:$G$53,MATCH(SUMPRODUCT(('Risk Matrix'!$B$28:$B$53<=L42)*('Risk Matrix'!$C$28:$C$53>=L42)*('Risk Matrix'!$D$28:$D$53<=K42)*('Risk Matrix'!$E$28:$E$53>=K42)*('Risk Matrix'!$F$28:$F$53)),'Risk Matrix'!$F$28:$F$53,0)),0))","v":"VL1"}]
[null,"H7 - ภัยที่เกิดจากการกระทำของมนุษย์ที่สำคัญ"]
[null,null,null,null,null,null,null,null,{"$f":"IFERROR((((INDEX(Assumptions!$F$28:$F$38,MATCH(E44,Vulnerabilties,0))*Assumptions!$F$10)+(INDEX(Assumptions!$F$28:$F$38,MATCH(F44,Vulnerabilties,0))*Assumptions!$F$10)+(INDEX(Assumptions!$F$28:$F$38,MATCH(G44,Vulnerabilties,0))*Assumptions!$F$10)+(INDEX(Assumptions!$F$28:$F$38,MATCH(H44,Vulnerabilties,0))*Assumptions!$F$10))*Assumptions!$F$9),0)","v":0},null,{"$f":"IFERROR(INDEX(Assumptions!$F$15:$F$25,MATCH(D44,Exposures,0)*Assumptions!$F$8+(I44/Assumptions!$F$9)*Assumptions!$F$8),0)","v":0},{"$f":"IFERROR((K44*Assumptions!$F$9)-(INDEX(Assumptions!$F$41:$F$51,MATCH(J44,Levels_of_response,0))*Assumptions!$F$9),0)","v":0},{"$f":"IF(L44<=0,\"VL1\",IFERROR(INDEX('Risk Matrix'!$G$28:$G$53,MATCH(SUMPRODUCT(('Risk Matrix'!$B$28:$B$53<=L44)*('Risk Matrix'!$C$28:$C$53>=L44)*('Risk Matrix'!$D$28:$D$53<=K44)*('Risk Matrix'!$E$28:$E$53>=K44)*('Risk Matrix'!$F$28:$F$53)),'Risk Matrix'!$F$28:$F$53,0)),0))","v":"VL1"}]
[null,null,null,null,null,null,null,null,{"$f":"IFERROR((((INDEX(Assumptions!$F$28:$F$38,MATCH(E45,Vulnerabilties,0))*Assumptions!$F$10)+(INDEX(Assumptions!$F$28:$F$38,MATCH(F45,Vulnerabilties,0))*Assumptions!$F$10)+(INDEX(Assumptions!$F$28:$F$38,MATCH(G45,Vulnerabilties,0))*Assumptions!$F$10)+(INDEX(Assumptions!$F$28:$F$38,MATCH(H45,Vulnerabilties,0))*Assumptions!$F$10))*Assumptions!$F$9),0)","v":0},null,{"$f":"IFERROR(INDEX(Assumptions!$F$15:$F$25,MATCH(D45,Exposures,0)*Assumptions!$F$8+(I45/Assumptions!$F$9)*Assumptions!$F$8),0)","v":0},{"$f":"IFERROR((K45*Assumptions!$F$9)-(INDEX(Assumptions!$F$41:$F$51,MATCH(J45,Levels_of_response,0))*Assumptions!$F$9),0)","v":0},{"$f":"IF(L45<=0,\"VL1\",IFERROR(INDEX('Risk Matrix'!$G$28:$G$53,MATCH(SUMPRODUCT(('Risk Matrix'!$B$28:$B$53<=L45)*('Risk Matrix'!$C$28:$C$53>=L45)*('Risk Matrix'!$D$28:$D$53<=K45)*('Risk Matrix'!$E$28:$E$53>=K45)*('Risk Matrix'!$F$28:$F$53)),'Risk Matrix'!$F$28:$F$53,0)),0))","v":"VL1"}]
[null,null,null,null,null,null,null,null,{"$f":"IFERROR((((INDEX(Assumptions!$F$28:$F$38,MATCH(E46,Vulnerabilties,0))*Assumptions!$F$10)+(INDEX(Assumptions!$F$28:$F$38,MATCH(F46,Vulnerabilties,0))*Assumptions!$F$10)+(INDEX(Assumptions!$F$28:$F$38,MATCH(G46,Vulnerabilties,0))*Assumptions!$F$10)+(INDEX(Assumptions!$F$28:$F$38,MATCH(H46,Vulnerabilties,0))*Assumptions!$F$10))*Assumptions!$F$9),0)","v":0},null,{"$f":"IFERROR(INDEX(Assumptions!$F$15:$F$25,MATCH(D46,Exposures,0)*Assumptions!$F$8+(I46/Assumptions!$F$9)*Assumptions!$F$8),0)","v":0},{"$f":"IFERROR((K46*Assumptions!$F$9)-(INDEX(Assumptions!$F$41:$F$51,MATCH(J46,Levels_of_response,0))*Assumptions!$F$9),0)","v":0},{"$f":"IF(L46<=0,\"VL1\",IFERROR(INDEX('Risk Matrix'!$G$28:$G$53,MATCH(SUMPRODUCT(('Risk Matrix'!$B$28:$B$53<=L46)*('Risk Matrix'!$C$28:$C$53>=L46)*('Risk Matrix'!$D$28:$D$53<=K46)*('Risk Matrix'!$E$28:$E$53>=K46)*('Risk Matrix'!$F$28:$F$53)),'Risk Matrix'!$F$28:$F$53,0)),0))","v":"VL1"}]
[null,null,null,null,null,null,null,null,{"$f":"IFERROR((((INDEX(Assumptions!$F$28:$F$38,MATCH(E47,Vulnerabilties,0))*Assumptions!$F$10)+(INDEX(Assumptions!$F$28:$F$38,MATCH(F47,Vulnerabilties,0))*Assumptions!$F$10)+(INDEX(Assumptions!$F$28:$F$38,MATCH(G47,Vulnerabilties,0))*Assumptions!$F$10)+(INDEX(Assumptions!$F$28:$F$38,MATCH(H47,Vulnerabilties,0))*Assumptions!$F$10))*Assumptions!$F$9),0)","v":0},null,{"$f":"IFERROR(INDEX(Assumptions!$F$15:$F$25,MATCH(D47,Exposures,0)*Assumptions!$F$8+(I47/Assumptions!$F$9)*Assumptions!$F$8),0)","v":0},{"$f":"IFERROR((K47*Assumptions!$F$9)-(INDEX(Assumptions!$F$41:$F$51,MATCH(J47,Levels_of_response,0))*Assumptions!$F$9),0)","v":0},{"$f":"IF(L47<=0,\"VL1\",IFERROR(INDEX('Risk Matrix'!$G$28:$G$53,MATCH(SUMPRODUCT(('Risk Matrix'!$B$28:$B$53<=L47)*('Risk Matrix'!$C$28:$C$53>=L47)*('Risk Matrix'!$D$28:$D$53<=K47)*('Risk Matrix'!$E$28:$E$53>=K47)*('Risk Matrix'!$F$28:$F$53)),'Risk Matrix'!$F$28:$F$53,0)),0))","v":"VL1"}]
[null,null,null,null,null,null,null,null,{"$f":"IFERROR((((INDEX(Assumptions!$F$28:$F$38,MATCH(E48,Vulnerabilties,0))*Assumptions!$F$10)+(INDEX(Assumptions!$F$28:$F$38,MATCH(F48,Vulnerabilties,0))*Assumptions!$F$10)+(INDEX(Assumptions!$F$28:$F$38,MATCH(G48,Vulnerabilties,0))*Assumptions!$F$10)+(INDEX(Assumptions!$F$28:$F$38,MATCH(H48,Vulnerabilties,0))*Assumptions!$F$10))*Assumptions!$F$9),0)","v":0},null,{"$f":"IFERROR(INDEX(Assumptions!$F$15:$F$25,MATCH(D48,Exposures,0)*Assumptions!$F$8+(I48/Assumptions!$F$9)*Assumptions!$F$8),0)","v":0},{"$f":"IFERROR((K48*Assumptions!$F$9)-(INDEX(Assumptions!$F$41:$F$51,MATCH(J48,Levels_of_response,0))*Assumptions!$F$9),0)","v":0},{"$f":"IF(L48<=0,\"VL1\",IFERROR(INDEX('Risk Matrix'!$G$28:$G$53,MATCH(SUMPRODUCT(('Risk Matrix'!$B$28:$B$53<=L48)*('Risk Matrix'!$C$28:$C$53>=L48)*('Risk Matrix'!$D$28:$D$53<=K48)*('Risk Matrix'!$E$28:$E$53>=K48)*('Risk Matrix'!$F$28:$F$53)),'Risk Matrix'!$F$28:$F$53,0)),0))","v":"VL1"}]
[null,"H8 - ภัยสำคัญอื่นๆ (โปรดระบุ )"]
[null,null,null,null,null,null,null,null,{"$f":"IFERROR((((INDEX(Assumptions!$F$28:$F$38,MATCH(E50,Vulnerabilties,0))*Assumptions!$F$10)+(INDEX(Assumptions!$F$28:$F$38,MATCH(F50,Vulnerabilties,0))*Assumptions!$F$10)+(INDEX(Assumptions!$F$28:$F$38,MATCH(G50,Vulnerabilties,0))*Assumptions!$F$10)+(INDEX(Assumptions!$F$28:$F$38,MATCH(H50,Vulnerabilties,0))*Assumptions!$F$10))*Assumptions!$F$9),0)","v":0},null,{"$f":"IFERROR(INDEX(Assumptions!$F$15:$F$25,MATCH(D50,Exposures,0)*Assumptions!$F$8+(I50/Assumptions!$F$9)*Assumptions!$F$8),0)","v":0},{"$f":"IFERROR((K50*Assumptions!$F$9)-(INDEX(Assumptions!$F$41:$F$51,MATCH(J50,Levels_of_response,0))*Assumptions!$F$9),0)","v":0},{"$f":"IF(L50<=0,\"VL1\",IFERROR(INDEX('Risk Matrix'!$G$28:$G$53,MATCH(SUMPRODUCT(('Risk Matrix'!$B$28:$B$53<=L50)*('Risk Matrix'!$C$28:$C$53>=L50)*('Risk Matrix'!$D$28:$D$53<=K50)*('Risk Matrix'!$E$28:$E$53>=K50)*('Risk Matrix'!$F$28:$F$53)),'Risk Matrix'!$F$28:$F$53,0)),0))","v":"VL1"}]
[null,null,null,null,null,null,null,null,{"$f":"IFERROR((((INDEX(Assumptions!$F$28:$F$38,MATCH(E51,Vulnerabilties,0))*Assumptions!$F$10)+(INDEX(Assumptions!$F$28:$F$38,MATCH(F51,Vulnerabilties,0))*Assumptions!$F$10)+(INDEX(Assumptions!$F$28:$F$38,MATCH(G51,Vulnerabilties,0))*Assumptions!$F$10)+(INDEX(Assumptions!$F$28:$F$38,MATCH(H51,Vulnerabilties,0))*Assumptions!$F$10))*Assumptions!$F$9),0)","v":0},null,{"$f":"IFERROR(INDEX(Assumptions!$F$15:$F$25,MATCH(D51,Exposures,0)*Assumptions!$F$8+(I51/Assumptions!$F$9)*Assumptions!$F$8),0)","v":0},{"$f":"IFERROR((K51*Assumptions!$F$9)-(INDEX(Assumptions!$F$41:$F$51,MATCH(J51,Levels_of_response,0))*Assumptions!$F$9),0)","v":0},{"$f":"IF(L51<=0,\"VL1\",IFERROR(INDEX('Risk Matrix'!$G$28:$G$53,MATCH(SUMPRODUCT(('Risk Matrix'!$B$28:$B$53<=L51)*('Risk Matrix'!$C$28:$C$53>=L51)*('Risk Matrix'!$D$28:$D$53<=K51)*('Risk Matrix'!$E$28:$E$53>=K51)*('Risk Matrix'!$F$28:$F$53)),'Risk Matrix'!$F$28:$F$53,0)),0))","v":"VL1"}]
[null,null,null,null,null,null,null,null,{"$f":"IFERROR((((INDEX(Assumptions!$F$28:$F$38,MATCH(E52,Vulnerabilties,0))*Assumptions!$F$10)+(INDEX(Assumptions!$F$28:$F$38,MATCH(F52,Vulnerabilties,0))*Assumptions!$F$10)+(INDEX(Assumptions!$F$28:$F$38,MATCH(G52,Vulnerabilties,0))*Assumptions!$F$10)+(INDEX(Assumptions!$F$28:$F$38,MATCH(H52,Vulnerabilties,0))*Assumptions!$F$10))*Assumptions!$F$9),0)","v":0},null,{"$f":"IFERROR(INDEX(Assumptions!$F$15:$F$25,MATCH(D52,Exposures,0)*Assumptions!$F$8+(I52/Assumptions!$F$9)*Assumptions!$F$8),0)","v":0},{"$f":"IFERROR((K52*Assumptions!$F$9)-(INDEX(Assumptions!$F$41:$F$51,MATCH(J52,Levels_of_response,0))*Assumptions!$F$9),0)","v":0},{"$f":"IF(L52<=0,\"VL1\",IFERROR(INDEX('Risk Matrix'!$G$28:$G$53,MATCH(SUMPRODUCT(('Risk Matrix'!$B$28:$B$53<=L52)*('Risk Matrix'!$C$28:$C$53>=L52)*('Risk Matrix'!$D$28:$D$53<=K52)*('Risk Matrix'!$E$28:$E$53>=K52)*('Risk Matrix'!$F$28:$F$53)),'Risk Matrix'!$F$28:$F$53,0)),0))","v":"VL1"}]
[null,null,null,null,null,null,null,null,{"$f":"IFERROR((((INDEX(Assumptions!$F$28:$F$38,MATCH(E53,Vulnerabilties,0))*Assumptions!$F$10)+(INDEX(Assumptions!$F$28:$F$38,MATCH(F53,Vulnerabilties,0))*Assumptions!$F$10)+(INDEX(Assumptions!$F$28:$F$38,MATCH(G53,Vulnerabilties,0))*Assumptions!$F$10)+(INDEX(Assumptions!$F$28:$F$38,MATCH(H53,Vulnerabilties,0))*Assumptions!$F$10))*Assumptions!$F$9),0)","v":0},null,{"$f":"IFERROR(INDEX(Assumptions!$F$15:$F$25,MATCH(D53,Exposures,0)*Assumptions!$F$8+(I53/Assumptions!$F$9)*Assumptions!$F$8),0)","v":0},{"$f":"IFERROR((K53*Assumptions!$F$9)-(INDEX(Assumptions!$F$41:$F$51,MATCH(J53,Levels_of_response,0))*Assumptions!$F$9),0)","v":0},{"$f":"IF(L53<=0,\"VL1\",IFERROR(INDEX('Risk Matrix'!$G$28:$G$53,MATCH(SUMPRODUCT(('Risk Matrix'!$B$28:$B$53<=L53)*('Risk Matrix'!$C$28:$C$53>=L53)*('Risk Matrix'!$D$28:$D$53<=K53)*('Risk Matrix'!$E$28:$E$53>=K53)*('Risk Matrix'!$F$28:$F$53)),'Risk Matrix'!$F$28:$F$53,0)),0))","v":"VL1"}]
[null,null,null,null,null,null,null,null,{"$f":"IFERROR((((INDEX(Assumptions!$F$28:$F$38,MATCH(E54,Vulnerabilties,0))*Assumptions!$F$10)+(INDEX(Assumptions!$F$28:$F$38,MATCH(F54,Vulnerabilties,0))*Assumptions!$F$10)+(INDEX(Assumptions!$F$28:$F$38,MATCH(G54,Vulnerabilties,0))*Assumptions!$F$10)+(INDEX(Assumptions!$F$28:$F$38,MATCH(H54,Vulnerabilties,0))*Assumptions!$F$10))*Assumptions!$F$9),0)","v":0},null,{"$f":"IFERROR(INDEX(Assumptions!$F$15:$F$25,MATCH(D54,Exposures,0)*Assumptions!$F$8+(I54/Assumptions!$F$9)*Assumptions!$F$8),0)","v":0},{"$f":"IFERROR((K54*Assumptions!$F$9)-(INDEX(Assumptions!$F$41:$F$51,MATCH(J54,Levels_of_response,0))*Assumptions!$F$9),0)","v":0},{"$f":"IF(L54<=0,\"VL1\",IFERROR(INDEX('Risk Matrix'!$G$28:$G$53,MATCH(SUMPRODUCT(('Risk Matrix'!$B$28:$B$53<=L54)*('Risk Matrix'!$C$28:$C$53>=L54)*('Risk Matrix'!$D$28:$D$53<=K54)*('Risk Matrix'!$E$28:$E$53>=K54)*('Risk Matrix'!$F$28:$F$53)),'Risk Matrix'!$F$28:$F$53,0)),0))","v":"VL1"}]

{"sheet":"Data Scores","index":7,"n_rows":48,"n_cols":13,"rows_kept":48,"cut":false,"hidden":false,"merged":[[25,1,29,1],[30,1,34,1],[35,1,39,1],[40,1,44,1],[5,0,6,0],[5,1,9,1],[10,1,14,1],[15,1,19,1],[20,1,24,1]]}
[{"$f":"MdlTle","v":"Quick Risk Estimation (QRE) Tool"}]
[{"$f":"MID(CELL(\"filename\",A1),FIND(\"]\",CELL(\"filename\",A1))+1,255)","v":"Data Scores"}]
["คะแนนที่ได้"]
[]
[null,"ประเภทภัย","ประเภทภัยย่อย","เหตุการณ์ที่เป็นภัยอันตราย","คะแนนความล่อแหลม (Exposure) \n(1-10)",{"$f":"'Hazard Data Entry'!E6","v":"โครงสร้างพื้นฐาน (Infrastructure)"},{"$f":"'Hazard Data Entry'!F6","v":"ภาคการผลิต (Productive sectors)"},{"$f":"'Hazard Data Entry'!G6","v":"ภาคการบริการพื้นฐานหรือจำเป็น (Essential or basic service)"},{"$f":"'Hazard Data Entry'!H6","v":"ด้านมนุษย์และสังคม (Human and social aspects)"},"คะแนนความเปราะบาง (Vulnerability)\n(1-100)","คะแนนระดับมาตรการการรับมือที่มีอยู่ในปัจจุบัน (Response measures)(1-10)","คะแนนความเป็นไปได้ในการเกิด (Likelihood)\n(1-10)","ระดับความรุนแรง (Severity)\n(1-100)"]
[null,{"$f":"'Hazard Data Entry'!$B$7","v":"H1 - ภัยทางธรณีวิทยาที่สำคัญ"},{"$f":"'Hazard Data Entry'!B8","v":0},{"$f":"'Hazard Data Entry'!C8","v":0},{"$f":"IFERROR(INDEX(Assumptions!$F$15:$F$25,MATCH('Hazard Data Entry'!D8,Exposures,0)),0)","v":0},{"$f":"IFERROR(INDEX(Assumptions!$F$15:$F$25,MATCH('Hazard Data Entry'!E8,Exposures,0)),0)","v":0},{"$f":"IFERROR(INDEX(Assumptions!$F$15:$F$25,MATCH('Hazard Data Entry'!F8,Exposures,0)),0)","v":0},{"$f":"IFERROR(INDEX(Assumptions!$F$15:$F$25,MATCH('Hazard Data Entry'!G8,Exposures,0)),0)","v":0},{"$f":"IFERROR(INDEX(Assumptions!$F$15:$F$25,MATCH('Hazard Data Entry'!H8,Exposures,0)),0)","v":0},{"$f":"'Hazard Data Entry'!I8","v":0},{"$f":"IFERROR(INDEX(Assumptions!$F$41:$F$51,MATCH('Hazard Data Entry'!J8,Levels_of_response,0)),0)","v":0},{"$f":"'Hazard Data Entry'!K8","v":0},{"$f":"'Hazard Data Entry'!L8","v":0}]
[null,null,{"$f":"'Hazard Data Entry'!B9","v":0},{"$f":"'Hazard Data Entry'!C9","v":0},{"$f":"IFERROR(INDEX(Assumptions!$F$15:$F$25,MATCH('Hazard Data Entry'!D9,Exposures,0)),0)","v":0},{"$f":"IFERROR(INDEX(Assumptions!$F$15:$F$25,MATCH('Hazard Data Entry'!E9,Exposures,0)),0)","v":0},{"$f":"IFERROR(INDEX(Assumptions!$F$15:$F$25,MATCH('Hazard Data Entry'!F9,Exposures,0)),0)","v":0},{"$f":"IFERROR(INDEX(Assumptions!$F$15:$F$25,MATCH('Hazard Data Entry'!G9,Exposures,0)),0)","v":0},{"$f":"IFERROR(INDEX(Assumptions!$F$15:$F$25,MATCH('Hazard Data Entry'!H9,Exposures,0)),0)","v":0},{"$f":"'Hazard Data Entry'!I9","v":0},{"$f":"IFERROR(INDEX(Assumptions!$F$41:$F$51,MATCH('Hazard Data Entry'!J9,Levels_of_response,0)),0)","v":0},{"$f":"'Hazard Data Entry'!K9","v":0},{"$f":"'Hazard Data Entry'!L9","v":0}]
[null,null,{"$f":"'Hazard Data Entry'!B10","v":0},{"$f":"'Hazard Data Entry'!C10","v":0},{"$f":"IFERROR(INDEX(Assumptions!$F$15:$F$25,MATCH('Hazard Data Entry'!D10,Exposures,0)),0)","v":0},{"$f":"IFERROR(INDEX(Assumptions!$F$15:$F$25,MATCH('Hazard Data Entry'!E10,Exposures,0)),0)","v":0},{"$f":"IFERROR(INDEX(Assumptions!$F$15:$F$25,MATCH('Hazard Data Entry'!F10,Exposures,0)),0)","v":0},{"$f":"IFERROR(INDEX(Assumptions!$F$15:$F$25,MATCH('Hazard Data Entry'!G10,Exposures,0)),0)","v":0},{"$f":"IFERROR(INDEX(Assumptions!$F$15:$F$25,MATCH('Hazard Data Entry'!H10,Exposures,0)),0)","v":0},{"$f":"'Hazard Data Entry'!I10","v":0},{"$f":"IFERROR(INDEX(Assumptions!$F$41:$F$51,MATCH('Hazard Data Entry'!J10,Levels_of_response,0)),0)","v":0},{"$f":"'Hazard Data Entry'!K10","v":0},{"$f":"'Hazard Data Entry'!L10","v":0}]
[null,null,{"$f":"'Hazard Data Entry'!B11","v":0},{"$f":"'Hazard Data Entry'!C11","v":0},{"$f":"IFERROR(INDEX(Assumptions!$F$15:$F$25,MATCH('Hazard Data Entry'!D11,Exposures,0)),0)","v":0},{"$f":"IFERROR(INDEX(Assumptions!$F$15:$F$25,MATCH('Hazard Data Entry'!E11,Exposures,0)),0)","v":0},{"$f":"IFERROR(INDEX(Assumptions!$F$15:$F$25,MATCH('Hazard Data Entry'!F11,Exposures,0)),0)","v":0},{"$f":"IFERROR(INDEX(Assumptions!$F$15:$F$25,MATCH('Hazard Data Entry'!G11,Exposures,0)),0)","v":0},{"$f":"IFERROR(INDEX(Assumptions!$F$15:$F$25,MATCH('Hazard Data Entry'!H11,Exposures,0)),0)","v":0},{"$f":"'Hazard Data Entry'!I11","v":0},{"$f":"IFERROR(INDEX(Assumptions!$F$41:$F$51,MATCH('Hazard Data Entry'!J11,Levels_of_response,0)),0)","v":0},{"$f":"'Hazard Data Entry'!K11","v":0},{"$f":"'Hazard Data Entry'!L11","v":0}]
[null,null,{"$f":"'Hazard Data Entry'!B12","v":0},{"$f":"'Hazard Data Entry'!C12","v":0},{"$f":"IFERROR(INDEX(Assumptions!$F$15:$F$25,MATCH('Hazard Data Entry'!D12,Exposures,0)),0)","v":0},{"$f":"IFERROR(INDEX(Assumptions!$F$15:$F$25,MATCH('Hazard Data Entry'!E12,Exposures,0)),0)","v":0},{"$f":"IFERROR(INDEX(Assumptions!$F$15:$F$25,MATCH('Hazard Data Entry'!F12,Exposures,0)),0)","v":0},{"$f":"IFERROR(INDEX(Assumptions!$F$15:$F$25,MATCH('Hazard Data Entry'!G12,Exposures,0)),0)","v":0},{"$f":"IFERROR(INDEX(Assumptions!$F$15:$F$25,MATCH('Hazard Data Entry'!H12,Exposures,0)),0)","v":0},{"$f":"'Hazard Data Entry'!I12","v":0},{"$f":"IFERROR(INDEX(Assumptions!$F$41:$F$51,MATCH('Hazard Data Entry'!J12,Levels_of_response,0)),0)","v":0},{"$f":"'Hazard Data Entry'!K12","v":0},{"$f":"'Hazard Data Entry'!L12","v":0}]
[null,{"$f":"'Hazard Data Entry'!$B$13","v":"H2 - ภัยทางอุทกวิทยาที่สำคัญ"},{"$f":"'Hazard Data Entry'!B14","v":0},{"$f":"'Hazard Data Entry'!C14","v":0},{"$f":"IFERROR(INDEX(Assumptions!$F$15:$F$25,MATCH('Hazard Data Entry'!D14,Exposures,0)),0)","v":0},{"$f":"IFERROR(INDEX(Assumptions!$F$15:$F$25,MATCH('Hazard Data Entry'!E14,Exposures,0)),0)","v":0},{"$f":"IFERROR(INDEX(Assumptions!$F$15:$F$25,MATCH('Hazard Data Entry'!F14,Exposures,0)),0)","v":0},{"$f":"IFERROR(INDEX(Assumptions!$F$15:$F$25,MATCH('Hazard Data Entry'!G14,Exposures,0)),0)","v":0},{"$f":"IFERROR(INDEX(Assumptions!$F$15:$F$25,MATCH('Hazard Data Entry'!H14,Exposures,0)),0)","v":0},{"$f":"'Hazard Data Entry'!I14","v":0},{"$f":"IFERROR(INDEX(Assumptions!$F$41:$F$51,MATCH('Hazard Data Entry'!J14,Levels_of_response,0)),0)","v":0},{"$f":"'Hazard Data Entry'!K14","v":0},{"$f":"'Hazard Data Entry'!L14","v":0}]
[null,null,{"$f":"'Hazard Data Entry'!B15","v":0},{"$f":"'Hazard Data Entry'!C15","v":0},{"$f":"IFERROR(INDEX(Assumptions!$F$15:$F$25,MATCH('Hazard Data Entry'!D15,Exposures,0)),0)","v":0},{"$f":"IFERROR(INDEX(Assumptions!$F$15:$F$25,MATCH('Hazard Data Entry'!E15,Exposures,0)),0)","v":0},{"$f":"IFERROR(INDEX(Assumptions!$F$15:$F$25,MATCH('Hazard Data Entry'!F15,Exposures,0)),0)","v":0},{"$f":"IFERROR(INDEX(Assumptions!$F$15:$F$25,MATCH('Hazard Data Entry'!G15,Exposures,0)),0)","v":0},{"$f":"IFERROR(INDEX(Assumptions!$F$15:$F$25,MATCH('Hazard Data Entry'!H15,Exposures,0)),0)","v":0},{"$f":"'Hazard Data Entry'!I15","v":0},{"$f":"IFERROR(INDEX(Assumptions!$F$41:$F$51,MATCH('Hazard Data Entry'!J15,Levels_of_response,0)),0)","v":0},{"$f":"'Hazard Data Entry'!K15","v":0},{"$f":"'Hazard Data Entry'!L15","v":0}]
[null,null,{"$f":"'Hazard Data Entry'!B16","v":0},{"$f":"'Hazard Data Entry'!C16","v":0},{"$f":"IFERROR(INDEX(Assumptions!$F$15:$F$25,MATCH('Hazard Data Entry'!D16,Exposures,0)),0)","v":0},{"$f":"IFERROR(INDEX(Assumptions!$F$15:$F$25,MATCH('Hazard Data Entry'!E16,Exposures,0)),0)","v":0},{"$f":"IFERROR(INDEX(Assumptions!$F$15:$F$25,MATCH('Hazard Data Entry'!F16,Exposures,0)),0)","v":0},{"$f":"IFERROR(INDEX(Assumptions!$F$15:$F$25,MATCH('Hazard Data Entry'!G16,Exposures,0)),0)","v":0},{"$f":"IFERROR(INDEX(Assumptions!$F$15:$F$25,MATCH('Hazard Data Entry'!H16,Exposures,0)),0)","v":0},{"$f":"'Hazard Data Entry'!I16","v":0},{"$f":"IFERROR(INDEX(Assumptions!$F$41:$F$51,MATCH('Hazard Data Entry'!J16,Levels_of_response,0)),0)","v":0},{"$f":"'Hazard Data Entry'!K16","v":0},{"$f":"'Hazard Data Entry'!L16","v":0}]
[null,null,{"$f":"'Hazard Data Entry'!B17","v":0},{"$f":"'Hazard Data Entry'!C17","v":0},{"$f":"IFERROR(INDEX(Assumptions!$F$15:$F$25,MATCH('Hazard Data Entry'!D17,Exposures,0)),0)","v":0},{"$f":"IFERROR(INDEX(Assumptions!$F$15:$F$25,MATCH('Hazard Data Entry'!E17,Exposures,0)),0)","v":0},{"$f":"IFERROR(INDEX(Assumptions!$F$15:$F$25,MATCH('Hazard Data Entry'!F17,Exposures,0)),0)","v":0},{"$f":"IFERROR(INDEX(Assumptions!$F$15:$F$25,MATCH('Hazard Data Entry'!G17,Exposures,0)),0)","v":0},{"$f":"IFERROR(INDEX(Assumptions!$F$15:$F$25,MATCH('Hazard Data Entry'!H17,Exposures,0)),0)","v":0},{"$f":"'Hazard Data Entry'!I17","v":0},{"$f":"IFERROR(INDEX(Assumptions!$F$41:$F$51,MATCH('Hazard Data Entry'!J17,Levels_of_response,0)),0)","v":0},{"$f":"'Hazard Data Entry'!K17","v":0},{"$f":"'Hazard Data Entry'!L17","v":0}]
[null,null,{"$f":"'Hazard Data Entry'!B18","v":0},{"$f":"'Hazard Data Entry'!C18","v":0},{"$f":"IFERROR(INDEX(Assumptions!$F$15:$F$25,MATCH('Hazard Data Entry'!D18,Exposures,0)),0)","v":0},{"$f":"IFERROR(INDEX(Assumptions!$F$15:$F$25,MATCH('Hazard Data Entry'!E18,Exposures,0)),0)","v":0},{"$f":"IFERROR(INDEX(Assumptions!$F$15:$F$25,MATCH('Hazard Data Entry'!F18,Exposures,0)),0)","v":0},{"$f":"IFERROR(INDEX(Assumptions!$F$15:$F$25,MATCH('Hazard Data Entry'!G18,Exposures,0)),0)","v":0},{"$f":"IFERROR(INDEX(Assumptions!$F$15:$F$25,MATCH('Hazard Data Entry'!H18,Exposures,0)),0)","v":0},{"$f":"'Hazard Data Entry'!I18","v":0},{"$f":"IFERROR(INDEX(Assumptions!$F$41:$F$51,MATCH('Hazard Data Entry'!J18,Levels_of_response,0)),0)","v":0},{"$f":"'Hazard Data Entry'!K18","v":0},{"$f":"'Hazard Data Entry'!L18","v":0}]
[null,{"$f":"'Hazard Data Entry'!$B$19","v":"H3 - ภัยทางอุตุนิยมวิทยาที่สำคัญ"},{"$f":"'Hazard Data Entry'!B20","v":0},{"$f":"'Hazard Data Entry'!C20","v":0},{"$f":"IFERROR(INDEX(Assumptions!$F$15:$F$25,MATCH('Hazard Data Entry'!D20,Exposures,0)),0)","v":0},{"$f":"IFERROR(INDEX(Assumptions!$F$15:$F$25,MATCH('Hazard Data Entry'!E20,Exposures,0)),0)","v":0},{"$f":"IFERROR(INDEX(Assumptions!$F$15:$F$25,MATCH('Hazard Data Entry'!F20,Exposures,0)),0)","v":0},{"$f":"IFERROR(INDEX(Assumptions!$F$15:$F$25,MATCH('Hazard Data Entry'!G20,Exposures,0)),0)","v":0},{"$f":"IFERROR(INDEX(Assumptions!$F$15:$F$25,MATCH('Hazard Data Entry'!H20,Exposures,0)),0)","v":0},{"$f":"'Hazard Data Entry'!I20","v":0},{"$f":"IFERROR(INDEX(Assumptions!$F$41:$F$51,MATCH('Hazard Data Entry'!J20,Levels_of_response,0)),0)","v":0},{"$f":"'Hazard Data Entry'!K20","v":0},{"$f":"'Hazard Data Entry'!L20","v":0}]
[null,null,{"$f":"'Hazard Data Entry'!B21","v":0},{"$f":"'Hazard Data Entry'!C21","v":0},{"$f":"IFERROR(INDEX(Assumptions!$F$15:$F$25,MATCH('Hazard Data Entry'!D21,Exposures,0)),0)","v":0},{"$f":"IFERROR(INDEX(Assumptions!$F$15:$F$25,MATCH('Hazard Data Entry'!E21,Exposures,0)),0)","v":0},{"$f":"IFERROR(INDEX(Assumptions!$F$15:$F$25,MATCH('Hazard Data Entry'!F21,Exposures,0)),0)","v":0},{"$f":"IFERROR(INDEX(Assumptions!$F$15:$F$25,MATCH('Hazard Data Entry'!G21,Exposures,0)),0)","v":0},{"$f":"IFERROR(INDEX(Assumptions!$F$15:$F$25,MATCH('Hazard Data Entry'!H21,Exposures,0)),0)","v":0},{"$f":"'Hazard Data Entry'!I21","v":0},{"$f":"IFERROR(INDEX(Assumptions!$F$41:$F$51,MATCH('Hazard Data Entry'!J21,Levels_of_response,0)),0)","v":0},{"$f":"'Hazard Data Entry'!K21","v":0},{"$f":"'Hazard Data Entry'!L21","v":0}]
[null,null,{"$f":"'Hazard Data Entry'!B22","v":0},{"$f":"'Hazard Data Entry'!C22","v":0},{"$f":"IFERROR(INDEX(Assumptions!$F$15:$F$25,MATCH('Hazard Data Entry'!D22,Exposures,0)),0)","v":0},{"$f":"IFERROR(INDEX(Assumptions!$F$15:$F$25,MATCH('Hazard Data Entry'!E22,Exposures,0)),0)","v":0},{"$f":"IFERROR(INDEX(Assumptions!$F$15:$F$25,MATCH('Hazard Data Entry'!F22,Exposures,0)),0)","v":0},{"$f":"IFERROR(INDEX(Assumptions!$F$15:$F$25,MATCH('Hazard Data Entry'!G22,Exposures,0)),0)","v":0},{"$f":"IFERROR(INDEX(Assumptions!$F$15:$F$25,MATCH('Hazard Data Entry'!H22,Exposures,0)),0)","v":0},{"$f":"'Hazard Data Entry'!I22","v":0},{"$f":"IFERROR(INDEX(Assumptions!$F$41:$F$51,MATCH('Hazard Data Entry'!J22,Levels_of_response,0)),0)","v":0},{"$f":"'Hazard Data Entry'!K22","v":0},{"$f":"'Hazard Data Entry'!L22","v":0}]
[null,null,{"$f":"'Hazard Data Entry'!B23","v":0},{"$f":"'Hazard Data Entry'!C23","v":0},{"$f":"IFERROR(INDEX(Assumptions!$F$15:$F$25,MATCH('Hazard Data Entry'!D23,Exposures,0)),0)","v":0},{"$f":"IFERROR(INDEX(Assumptions!$F$15:$F$25,MATCH('Hazard Data Entry'!E23,Exposures,0)),0)","v":0},{"$f":"IFERROR(INDEX(Assumptions!$F$15:$F$25,MATCH('Hazard Data Entry'!F23,Exposures,0)),0)","v":0},{"$f":"IFERROR(INDEX(Assumptions!$F$15:$F$25,MATCH('Hazard Data Entry'!G23,Exposures,0)),0)","v":0},{"$f":"IFERROR(INDEX(Assumptions!$F$15:$F$25,MATCH('Hazard Data Entry'!H23,Exposures,0)),0)","v":0},{"$f":"'Hazard Data Entry'!I23","v":0},{"$f":"IFERROR(INDEX(Assumptions!$F$41:$F$51,MATCH('Hazard Data Entry'!J23,Levels_of_response,0)),0)","v":0},{"$f":"'Hazard Data Entry'!K23","v":0},{"$f":"'Hazard Data Entry'!L23","v":0}]
[null,null,{"$f":"'Hazard Data Entry'!B24","v":0},{"$f":"'Hazard Data Entry'!C24","v":0},{"$f":"IFERROR(INDEX(Assumptions!$F$15:$F$25,MATCH('Hazard Data Entry'!D24,Exposures,0)),0)","v":0},{"$f":"IFERROR(INDEX(Assumptions!$F$15:$F$25,MATCH('Hazard Data Entry'!E24,Exposures,0)),0)","v":0},{"$f":"IFERROR(INDEX(Assumptions!$F$15:$F$25,MATCH('Hazard Data Entry'!F24,Exposures,0)),0)","v":0},{"$f":"IFERROR(INDEX(Assumptions!$F$15:$F$25,MATCH('Hazard Data Entry'!G24,Exposures,0)),0)","v":0},{"$f":"IFERROR(INDEX(Assumptions!$F$15:$F$25,MATCH('Hazard Data Entry'!H24,Exposures,0)),0)","v":0},{"$f":"'Hazard Data Entry'!I24","v":0},{"$f":"IFERROR(INDEX(Assumptions!$F$41:$F$51,MATCH('Hazard Data Entry'!J24,Levels_of_response,0)),0)","v":0},{"$f":"'Hazard Data Entry'!K24","v":0},{"$f":"'Hazard Data Entry'!L24","v":0}]
[null,{"$f":"'Hazard Data Entry'!B25","v":"H4 - ภัยทางภูมิอากาศวิทยาที่สำคัญ"},{"$f":"'Hazard Data Entry'!B26","v":0},{"$f":"'Hazard Data Entry'!C26","v":0},{"$f":"IFERROR(INDEX(Assumptions!$F$15:$F$25,MATCH('Hazard Data Entry'!D26,Exposures,0)),0)","v":0},{"$f":"IFERROR(INDEX(Assumptions!$F$15:$F$25,MATCH('Hazard Data Entry'!E26,Exposures,0)),0)","v":0},{"$f":"IFERROR(INDEX(Assumptions!$F$15:$F$25,MATCH('Hazard Data Entry'!F26,Exposures,0)),0)","v":0},{"$f":"IFERROR(INDEX(Assumptions!$F$15:$F$25,MATCH('Hazard Data Entry'!G26,Exposures,0)),0)","v":0},{"$f":"IFERROR(INDEX(Assumptions!$F$15:$F$25,MATCH('Hazard Data Entry'!H26,Exposures,0)),0)","v":0},{"$f":"'Hazard Data Entry'!I26","v":0},{"$f":"IFERROR(INDEX(Assumptions!$F$41:$F$51,MATCH('Hazard Data Entry'!J26,Levels_of_response,0)),0)","v":0},{"$f":"'Hazard Data Entry'!K26","v":0},{"$f":"'Hazard Data Entry'!L26","v":0}]
[null,null,{"$f":"'Hazard Data Entry'!B27","v":0},{"$f":"'Hazard Data Entry'!C27","v":0},{"$f":"IFERROR(INDEX(Assumptions!$F$15:$F$25,MATCH('Hazard Data Entry'!D27,Exposures,0)),0)","v":0},{"$f":"IFERROR(INDEX(Assumptions!$F$15:$F$25,MATCH('Hazard Data Entry'!E27,Exposures,0)),0)","v":0},{"$f":"IFERROR(INDEX(Assumptions!$F$15:$F$25,MATCH('Hazard Data Entry'!F27,Exposures,0)),0)","v":0},{"$f":"IFERROR(INDEX(Assumptions!$F$15:$F$25,MATCH('Hazard Data Entry'!G27,Exposures,0)),0)","v":0},{"$f":"IFERROR(INDEX(Assumptions!$F$15:$F$25,MATCH('Hazard Data Entry'!H27,Exposures,0)),0)","v":0},{"$f":"'Hazard Data Entry'!I27","v":0},{"$f":"IFERROR(INDEX(Assumptions!$F$41:$F$51,MATCH('Hazard Data Entry'!J27,Levels_of_response,0)),0)","v":0},{"$f":"'Hazard Data Entry'!K27","v":0},{"$f":"'Hazard Data Entry'!L27","v":0}]
[null,null,{"$f":"'Hazard Data Entry'!B28","v":0},{"$f":"'Hazard Data Entry'!C28","v":0},{"$f":"IFERROR(INDEX(Assumptions!$F$15:$F$25,MATCH('Hazard Data Entry'!D28,Exposures,0)),0)","v":0},{"$f":"IFERROR(INDEX(Assumptions!$F$15:$F$25,MATCH('Hazard Data Entry'!E28,Exposures,0)),0)","v":0},{"$f":"IFERROR(INDEX(Assumptions!$F$15:$F$25,MATCH('Hazard Data Entry'!F28,Exposures,0)),0)","v":0},{"$f":"IFERROR(INDEX(Assumptions!$F$15:$F$25,MATCH('Hazard Data Entry'!G28,Exposures,0)),0)","v":0},{"$f":"IFERROR(INDEX(Assumptions!$F$15:$F$25,MATCH('Hazard Data Entry'!H28,Exposures,0)),0)","v":0},{"$f":"'Hazard Data Entry'!I28","v":0},{"$f":"IFERROR(INDEX(Assumptions!$F$41:$F$51,MATCH('Hazard Data Entry'!J28,Levels_of_response,0)),0)","v":0},{"$f":"'Hazard Data Entry'!K28","v":0},{"$f":"'Hazard Data Entry'!L28","v":0}]
[null,null,{"$f":"'Hazard Data Entry'!B29","v":0},{"$f":"'Hazard Data Entry'!C29","v":0},{"$f":"IFERROR(INDEX(Assumptions!$F$15:$F$25,MATCH('Hazard Data Entry'!D29,Exposures,0)),0)","v":0},{"$f":"IFERROR(INDEX(Assumptions!$F$15:$F$25,MATCH('Hazard Data Entry'!E29,Exposures,0)),0)","v":0},{"$f":"IFERROR(INDEX(Assumptions!$F$15:$F$25,MATCH('Hazard Data Entry'!F29,Exposures,0)),0)","v":0},{"$f":"IFERROR(INDEX(Assumptions!$F$15:$F$25,MATCH('Hazard Data Entry'!G29,Exposures,0)),0)","v":0},{"$f":"IFERROR(INDEX(Assumptions!$F$15:$F$25,MATCH('Hazard Data Entry'!H29,Exposures,0)),0)","v":0},{"$f":"'Hazard Data Entry'!I29","v":0},{"$f":"IFERROR(INDEX(Assumptions!$F$41:$F$51,MATCH('Hazard Data Entry'!J29,Levels_of_response,0)),0)","v":0},{"$f":"'Hazard Data Entry'!K29","v":0},{"$f":"'Hazard Data Entry'!L29","v":0}]
[null,null,{"$f":"'Hazard Data Entry'!B30","v":0},{"$f":"'Hazard Data Entry'!C30","v":0},{"$f":"IFERROR(INDEX(Assumptions!$F$15:$F$25,MATCH('Hazard Data Entry'!D30,Exposures,0)),0)","v":0},{"$f":"IFERROR(INDEX(Assumptions!$F$15:$F$25,MATCH('Hazard Data Entry'!E30,Exposures,0)),0)","v":0},{"$f":"IFERROR(INDEX(Assumptions!$F$15:$F$25,MATCH('Hazard Data Entry'!F30,Exposures,0)),0)","v":0},{"$f":"IFERROR(INDEX(Assumptions!$F$15:$F$25,MATCH('Hazard Data Entry'!G30,Exposures,0)),0)","v":0},{"$f":"IFERROR(INDEX(Assumptions!$F$15:$F$25,MATCH('Hazard Data Entry'!H30,Exposures,0)),0)","v":0},{"$f":"'Hazard Data Entry'!I30","v":0},{"$f":"IFERROR(INDEX(Assumptions!$F$41:$F$51,MATCH('Hazard Data Entry'!J30,Levels_of_response,0)),0)","v":0},{"$f":"'Hazard Data Entry'!K30","v":0},{"$f":"'Hazard Data Entry'!L30","v":0}]
[null,{"$f":"'Hazard Data Entry'!$B$31","v":"H5 - ภัยทางชีววิทยาที่สำคัญ "},{"$f":"'Hazard Data Entry'!B32","v":0},{"$f":"'Hazard Data Entry'!C32","v":0},{"$f":"IFERROR(INDEX(Assumptions!$F$15:$F$25,MATCH('Hazard Data Entry'!D32,Exposures,0)),0)","v":0},{"$f":"IFERROR(INDEX(Assumptions!$F$15:$F$25,MATCH('Hazard Data Entry'!E32,Exposures,0)),0)","v":0},{"$f":"IFERROR(INDEX(Assumptions!$F$15:$F$25,MATCH('Hazard Data Entry'!F32,Exposures,0)),0)","v":0},{"$f":"IFERROR(INDEX(Assumptions!$F$15:$F$25,MATCH('Hazard Data Entry'!G32,Exposures,0)),0)","v":0},{"$f":"IFERROR(INDEX(Assumptions!$F$15:$F$25,MATCH('Hazard Data Entry'!H32,Exposures,0)),0)","v":0},{"$f":"'Hazard Data Entry'!I32","v":0},{"$f":"IFERROR(INDEX(Assumptions!$F$41:$F$51,MATCH('Hazard Data Entry'!J32,Levels_of_response,0)),0)","v":0},{"$f":"'Hazard Data Entry'!K32","v":0},{"$f":"'Hazard Data Entry'!L32","v":0}]
[null,null,{"$f":"'Hazard Data Entry'!B33","v":0},{"$f":"'Hazard Data Entry'!C33","v":0},{"$f":"IFERROR(INDEX(Assumptions!$F$15:$F$25,MATCH('Hazard Data Entry'!D33,Exposures,0)),0)","v":0},{"$f":"IFERROR(INDEX(Assumptions!$F$15:$F$25,MATCH('Hazard Data Entry'!E33,Exposures,0)),0)","v":0},{"$f":"IFERROR(INDEX(Assumptions!$F$15:$F$25,MATCH('Hazard Data Entry'!F33,Exposures,0)),0)","v":0},{"$f":"IFERROR(INDEX(Assumptions!$F$15:$F$25,MATCH('Hazard Data Entry'!G33,Exposures,0)),0)","v":0},{"$f":"IFERROR(INDEX(Assumptions!$F$15:$F$25,MATCH('Hazard Data Entry'!H33,Exposures,0)),0)","v":0},{"$f":"'Hazard Data Entry'!I33","v":0},{"$f":"IFERROR(INDEX(Assumptions!$F$41:$F$51,MATCH('Hazard Data Entry'!J33,Levels_of_response,0)),0)","v":0},{"$f":"'Hazard Data Entry'!K33","v":0},{"$f":"'Hazard Data Entry'!L33","v":0}]
[null,null,{"$f":"'Hazard Data Entry'!B34","v":0},{"$f":"'Hazard Data Entry'!C34","v":0},{"$f":"IFERROR(INDEX(Assumptions!$F$15:$F$25,MATCH('Hazard Data Entry'!D34,Exposures,0)),0)","v":0},{"$f":"IFERROR(INDEX(Assumptions!$F$15:$F$25,MATCH('Hazard Data Entry'!E34,Exposures,0)),0)","v":0},{"$f":"IFERROR(INDEX(Assumptions!$F$15:$F$25,MATCH('Hazard Data Entry'!F34,Exposures,0)),0)","v":0},{"$f":"IFERROR(INDEX(Assumptions!$F$15:$F$25,MATCH('Hazard Data Entry'!G34,Exposures,0)),0)","v":0},{"$f":"IFERROR(INDEX(Assumptions!$F$15:$F$25,MATCH('Hazard Data Entry'!H34,Exposures,0)),0)","v":0},{"$f":"'Hazard Data Entry'!I34","v":0},{"$f":"IFERROR(INDEX(Assumptions!$F$41:$F$51,MATCH('Hazard Data Entry'!J34,Levels_of_response,0)),0)","v":0},{"$f":"'Hazard Data Entry'!K34","v":0},{"$f":"'Hazard Data Entry'!L34","v":0}]
[null,null,{"$f":"'Hazard Data Entry'!B35","v":0},{"$f":"'Hazard Data Entry'!C35","v":0},{"$f":"IFERROR(INDEX(Assumptions!$F$15:$F$25,MATCH('Hazard Data Entry'!D35,Exposures,0)),0)","v":0},{"$f":"IFERROR(INDEX(Assumptions!$F$15:$F$25,MATCH('Hazard Data Entry'!E35,Exposures,0)),0)","v":0},{"$f":"IFERROR(INDEX(Assumptions!$F$15:$F$25,MATCH('Hazard Data Entry'!F35,Exposures,0)),0)","v":0},{"$f":"IFERROR(INDEX(Assumptions!$F$15:$F$25,MATCH('Hazard Data Entry'!G35,Exposures,0)),0)","v":0},{"$f":"IFERROR(INDEX(Assumptions!$F$15:$F$25,MATCH('Hazard Data Entry'!H35,Exposures,0)),0)","v":0},{"$f":"'Hazard Data Entry'!I35","v":0},{"$f":"IFERROR(INDEX(Assumptions!$F$41:$F$51,MATCH('Hazard Data Entry'!J35,Levels_of_response,0)),0)","v":0},{"$f":"'Hazard Data Entry'!K35","v":0},{"$f":"'Hazard Data Entry'!L35","v":0}]
[null,null,{"$f":"'Hazard Data Entry'!B36","v":0},{"$f":"'Hazard Data Entry'!C36","v":0},{"$f":"IFERROR(INDEX(Assumptions!$F$15:$F$25,MATCH('Hazard Data Entry'!D36,Exposures,0)),0)","v":0},{"$f":"IFERROR(INDEX(Assumptions!$F$15:$F$25,MATCH('Hazard Data Entry'!E36,Exposures,0)),0)","v":0},{"$f":"IFERROR(INDEX(Assumptions!$F$15:$F$25,MATCH('Hazard Data Entry'!F36,Exposures,0)),0)","v":0},{"$f":"IFERROR(INDEX(Assumptions!$F$15:$F$25,MATCH('Hazard Data Entry'!G36,Exposures,0)),0)","v":0},{"$f":"IFERROR(INDEX(Assumptions!$F$15:$F$25,MATCH('Hazard Data Entry'!H36,Exposures,0)),0)","v":0},{"$f":"'Hazard Data Entry'!I36","v":0},{"$f":"IFERROR(INDEX(Assumptions!$F$41:$F$51,MATCH('Hazard Data Entry'!J36,Levels_of_response,0)),0)","v":0},{"$f":"'Hazard Data Entry'!K36","v":0},{"$f":"'Hazard Data Entry'!L36","v":0}]
[null,{"$f":"'Hazard Data Entry'!$B$37","v":"H6 - ภัยจากนอกโลกที่สำคัญ"},{"$f":"'Hazard Data Entry'!B38","v":0},{"$f":"'Hazard Data Entry'!C38","v":0},{"$f":"IFERROR(INDEX(Assumptions!$F$15:$F$25,MATCH('Hazard Data Entry'!D38,Exposures,0)),0)","v":0},{"$f":"IFERROR(INDEX(Assumptions!$F$15:$F$25,MATCH('Hazard Data Entry'!E38,Exposures,0)),0)","v":0},{"$f":"IFERROR(INDEX(Assumptions!$F$15:$F$25,MATCH('Hazard Data Entry'!F38,Exposures,0)),0)","v":0},{"$f":"IFERROR(INDEX(Assumptions!$F$15:$F$25,MATCH('Hazard Data Entry'!G38,Exposures,0)),0)","v":0},{"$f":"IFERROR(INDEX(Assumptions!$F$15:$F$25,MATCH('Hazard Data Entry'!H38,Exposures,0)),0)","v":0},{"$f":"'Hazard Data Entry'!I38","v":0},{"$f":"IFERROR(INDEX(Assumptions!$F$41:$F$51,MATCH('Hazard Data Entry'!J38,Levels_of_response,0)),0)","v":0},{"$f":"'Hazard Data Entry'!K38","v":0},{"$f":"'Hazard Data Entry'!L38","v":0}]
[null,null,{"$f":"'Hazard Data Entry'!B39","v":0},{"$f":"'Hazard Data Entry'!C39","v":0},{"$f":"IFERROR(INDEX(Assumptions!$F$15:$F$25,MATCH('Hazard Data Entry'!D39,Exposures,0)),0)","v":0},{"$f":"IFERROR(INDEX(Assumptions!$F$15:$F$25,MATCH('Hazard Data Entry'!E39,Exposures,0)),0)","v":0},{"$f":"IFERROR(INDEX(Assumptions!$F$15:$F$25,MATCH('Hazard Data Entry'!F39,Exposures,0)),0)","v":0},{"$f":"IFERROR(INDEX(Assumptions!$F$15:$F$25,MATCH('Hazard Data Entry'!G39,Exposures,0)),0)","v":0},{"$f":"IFERROR(INDEX(Assumptions!$F$15:$F$25,MATCH('Hazard Data Entry'!H39,Exposures,0)),0)","v":0},{"$f":"'Hazard Data Entry'!I39","v":0},{"$f":"IFERROR(INDEX(Assumptions!$F$41:$F$51,MATCH('Hazard Data Entry'!J39,Levels_of_response,0)),0)","v":0},{"$f":"'Hazard Data Entry'!K39","v":0},{"$f":"'Hazard Data Entry'!L39","v":0}]
[null,null,{"$f":"'Hazard Data Entry'!B40","v":0},{"$f":"'Hazard Data Entry'!C40","v":0},{"$f":"IFERROR(INDEX(Assumptions!$F$15:$F$25,MATCH('Hazard Data Entry'!D40,Exposures,0)),0)","v":0},{"$f":"IFERROR(INDEX(Assumptions!$F$15:$F$25,MATCH('Hazard Data Entry'!E40,Exposures,0)),0)","v":0},{"$f":"IFERROR(INDEX(Assumptions!$F$15:$F$25,MATCH('Hazard Data Entry'!F40,Exposures,0)),0)","v":0},{"$f":"IFERROR(INDEX(Assumptions!$F$15:$F$25,MATCH('Hazard Data Entry'!G40,Exposures,0)),0)","v":0},{"$f":"IFERROR(INDEX(Assumptions!$F$15:$F$25,MATCH('Hazard Data Entry'!H40,Exposures,0)),0)","v":0},{"$f":"'Hazard Data Entry'!I40","v":0},{"$f":"IFERROR(INDEX(Assumptions!$F$41:$F$51,MATCH('Hazard Data Entry'!J40,Levels_of_response,0)),0)","v":0},{"$f":"'Hazard Data Entry'!K40","v":0},{"$f":"'Hazard Data Entry'!L40","v":0}]
[null,null,{"$f":"'Hazard Data Entry'!B41","v":0},{"$f":"'Hazard Data Entry'!C41","v":0},{"$f":"IFERROR(INDEX(Assumptions!$F$15:$F$25,MATCH('Hazard Data Entry'!D41,Exposures,0)),0)","v":0},{"$f":"IFERROR(INDEX(Assumptions!$F$15:$F$25,MATCH('Hazard Data Entry'!E41,Exposures,0)),0)","v":0},{"$f":"IFERROR(INDEX(Assumptions!$F$15:$F$25,MATCH('Hazard Data Entry'!F41,Exposures,0)),0)","v":0},{"$f":"IFERROR(INDEX(Assumptions!$F$15:$F$25,MATCH('Hazard Data Entry'!G41,Exposures,0)),0)","v":0},{"$f":"IFERROR(INDEX(Assumptions!$F$15:$F$25,MATCH('Hazard Data Entry'!H41,Exposures,0)),0)","v":0},{"$f":"'Hazard Data Entry'!I41","v":0},{"$f":"IFERROR(INDEX(Assumptions!$F$41:$F$51,MATCH('Hazard Data Entry'!J41,Levels_of_response,0)),0)","v":0},{"$f":"'Hazard Data Entry'!K41","v":0},{"$f":"'Hazard Data Entry'!L41","v":0}]
[null,null,{"$f":"'Hazard Data Entry'!B42","v":0},{"$f":"'Hazard Data Entry'!C42","v":0},{"$f":"IFERROR(INDEX(Assumptions!$F$15:$F$25,MATCH('Hazard Data Entry'!D42,Exposures,0)),0)","v":0},{"$f":"IFERROR(INDEX(Assumptions!$F$15:$F$25,MATCH('Hazard Data Entry'!E42,Exposures,0)),0)","v":0},{"$f":"IFERROR(INDEX(Assumptions!$F$15:$F$25,MATCH('Hazard Data Entry'!F42,Exposures,0)),0)","v":0},{"$f":"IFERROR(INDEX(Assumptions!$F$15:$F$25,MATCH('Hazard Data Entry'!G42,Exposures,0)),0)","v":0},{"$f":"IFERROR(INDEX(Assumptions!$F$15:$F$25,MATCH('Hazard Data Entry'!H42,Exposures,0)),0)","v":0},{"$f":"'Hazard Data Entry'!I42","v":0},{"$f":"IFERROR(INDEX(Assumptions!$F$41:$F$51,MATCH('Hazard Data Entry'!J42,Levels_of_response,0)),0)","v":0},{"$f":"'Hazard Data Entry'!K42","v":0},{"$f":"'Hazard Data Entry'!L42","v":0}]
[null,{"$f":"'Hazard Data Entry'!$B$43","v":"H7 - ภัยที่เกิดจากการกระทำของมนุษย์ที่สำคัญ"},{"$f":"'Hazard Data Entry'!B44","v":0},{"$f":"'Hazard Data Entry'!C44","v":0},{"$f":"IFERROR(INDEX(Assumptions!$F$15:$F$25,MATCH('Hazard Data Entry'!D44,Exposures,0)),0)","v":0},{"$f":"IFERROR(INDEX(Assumptions!$F$15:$F$25,MATCH('Hazard Data Entry'!E44,Exposures,0)),0)","v":0},{"$f":"IFERROR(INDEX(Assumptions!$F$15:$F$25,MATCH('Hazard Data Entry'!F44,Exposures,0)),0)","v":0},{"$f":"IFERROR(INDEX(Assumptions!$F$15:$F$25,MATCH('Hazard Data Entry'!G44,Exposures,0)),0)","v":0},{"$f":"IFERROR(INDEX(Assumptions!$F$15:$F$25,MATCH('Hazard Data Entry'!H44,Exposures,0)),0)","v":0},{"$f":"'Hazard Data Entry'!I44","v":0},{"$f":"IFERROR(INDEX(Assumptions!$F$41:$F$51,MATCH('Hazard Data Entry'!J44,Levels_of_response,0)),0)","v":0},{"$f":"'Hazard Data Entry'!K44","v":0},{"$f":"'Hazard Data Entry'!L44","v":0}]
[null,null,{"$f":"'Hazard Data Entry'!B45","v":0},{"$f":"'Hazard Data Entry'!C45","v":0},{"$f":"IFERROR(INDEX(Assumptions!$F$15:$F$25,MATCH('Hazard Data Entry'!D45,Exposures,0)),0)","v":0},{"$f":"IFERROR(INDEX(Assumptions!$F$15:$F$25,MATCH('Hazard Data Entry'!E45,Exposures,0)),0)","v":0},{"$f":"IFERROR(INDEX(Assumptions!$F$15:$F$25,MATCH('Hazard Data Entry'!F45,Exposures,0)),0)","v":0},{"$f":"IFERROR(INDEX(Assumptions!$F$15:$F$25,MATCH('Hazard Data Entry'!G45,Exposures,0)),0)","v":0},{"$f":"IFERROR(INDEX(Assumptions!$F$15:$F$25,MATCH('Hazard Data Entry'!H45,Exposures,0)),0)","v":0},{"$f":"'Hazard Data Entry'!I45","v":0},{"$f":"IFERROR(INDEX(Assumptions!$F$41:$F$51,MATCH('Hazard Data Entry'!J45,Levels_of_response,0)),0)","v":0},{"$f":"'Hazard Data Entry'!K45","v":0},{"$f":"'Hazard Data Entry'!L45","v":0}]
[null,null,{"$f":"'Hazard Data Entry'!B46","v":0},{"$f":"'Hazard Data Entry'!C46","v":0},{"$f":"IFERROR(INDEX(Assumptions!$F$15:$F$25,MATCH('Hazard Data Entry'!D46,Exposures,0)),0)","v":0},{"$f":"IFERROR(INDEX(Assumptions!$F$15:$F$25,MATCH('Hazard Data Entry'!E46,Exposures,0)),0)","v":0},{"$f":"IFERROR(INDEX(Assumptions!$F$15:$F$25,MATCH('Hazard Data Entry'!F46,Exposures,0)),0)","v":0},{"$f":"IFERROR(INDEX(Assumptions!$F$15:$F$25,MATCH('Hazard Data Entry'!G46,Exposures,0)),0)","v":0},{"$f":"IFERROR(INDEX(Assumptions!$F$15:$F$25,MATCH('Hazard Data Entry'!H46,Exposures,0)),0)","v":0},{"$f":"'Hazard Data Entry'!I46","v":0},{"$f":"IFERROR(INDEX(Assumptions!$F$41:$F$51,MATCH('Hazard Data Entry'!J46,Levels_of_response,0)),0)","v":0},{"$f":"'Hazard Data Entry'!K46","v":0},{"$f":"'Hazard Data Entry'!L46","v":0}]
[null,null,{"$f":"'Hazard Data Entry'!B47","v":0},{"$f":"'Hazard Data Entry'!C47","v":0},{"$f":"IFERROR(INDEX(Assumptions!$F$15:$F$25,MATCH('Hazard Data Entry'!D47,Exposures,0)),0)","v":0},{"$f":"IFERROR(INDEX(Assumptions!$F$15:$F$25,MATCH('Hazard Data Entry'!E47,Exposures,0)),0)","v":0},{"$f":"IFERROR(INDEX(Assumptions!$F$15:$F$25,MATCH('Hazard Data Entry'!F47,Exposures,0)),0)","v":0},{"$f":"IFERROR(INDEX(Assumptions!$F$15:$F$25,MATCH('Hazard Data Entry'!G47,Exposures,0)),0)","v":0},{"$f":"IFERROR(INDEX(Assumptions!$F$15:$F$25,MATCH('Hazard Data Entry'!H47,Exposures,0)),0)","v":0},{"$f":"'Hazard Data Entry'!I47","v":0},{"$f":"IFERROR(INDEX(Assumptions!$F$41:$F$51,MATCH('Hazard Data Entry'!J47,Levels_of_response,0)),0)","v":0},{"$f":"'Hazard Data Entry'!K47","v":0},{"$f":"'Hazard Data Entry'!L47","v":0}]
[null,null,{"$f":"'Hazard Data Entry'!B48","v":0},{"$f":"'Hazard Data Entry'!C48","v":0},{"$f":"IFERROR(INDEX(Assumptions!$F$15:$F$25,MATCH('Hazard Data Entry'!D48,Exposures,0)),0)","v":0},{"$f":"IFERROR(INDEX(Assumptions!$F$15:$F$25,MATCH('Hazard Data Entry'!E48,Exposures,0)),0)","v":0},{"$f":"IFERROR(INDEX(Assumptions!$F$15:$F$25,MATCH('Hazard Data Entry'!F48,Exposures,0)),0)","v":0},{"$f":"IFERROR(INDEX(Assumptions!$F$15:$F$25,MATCH('Hazard Data Entry'!G48,Exposures,0)),0)","v":0},{"$f":"IFERROR(INDEX(Assumptions!$F$15:$F$25,MATCH('Hazard Data Entry'!H48,Exposures,0)),0)","v":0},{"$f":"'Hazard Data Entry'!I48","v":0},{"$f":"IFERROR(INDEX(Assumptions!$F$41:$F$51,MATCH('Hazard Data Entry'!J48,Levels_of_response,0)),0)","v":0},{"$f":"'Hazard Data Entry'!K48","v":0},{"$f":"'Hazard Data Entry'!L48","v":0}]
[null,{"$f":"'Hazard Data Entry'!$B$49","v":"H8 - ภัยสำคัญอื่นๆ (โปรดระบุ )"},{"$f":"'Hazard Data Entry'!B50","v":0},{"$f":"'Hazard Data Entry'!C50","v":0},{"$f":"IFERROR(INDEX(Assumptions!$F$15:$F$25,MATCH('Hazard Data Entry'!D50,Exposures,0)),0)","v":0},{"$f":"IFERROR(INDEX(Assumptions!$F$15:$F$25,MATCH('Hazard Data Entry'!E50,Exposures,0)),0)","v":0},{"$f":"IFERROR(INDEX(Assumptions!$F$15:$F$25,MATCH('Hazard Data Entry'!F50,Exposures,0)),0)","v":0},{"$f":"IFERROR(INDEX(Assumptions!$F$15:$F$25,MATCH('Hazard Data Entry'!G50,Exposures,0)),0)","v":0},{"$f":"IFERROR(INDEX(Assumptions!$F$15:$F$25,MATCH('Hazard Data Entry'!H50,Exposures,0)),0)","v":0},{"$f":"'Hazard Data Entry'!I50","v":0},{"$f":"IFERROR(INDEX(Assumptions!$F$41:$F$51,MATCH('Hazard Data Entry'!J50,Levels_of_response,0)),0)","v":0},{"$f":"'Hazard Data Entry'!K50","v":0},{"$f":"'Hazard Data Entry'!L50","v":0}]
[null,null,{"$f":"'Hazard Data Entry'!B51","v":0},{"$f":"'Hazard Data Entry'!C51","v":0},{"$f":"IFERROR(INDEX(Assumptions!$F$15:$F$25,MATCH('Hazard Data Entry'!D51,Exposures,0)),0)","v":0},{"$f":"IFERROR(INDEX(Assumptions!$F$15:$F$25,MATCH('Hazard Data Entry'!E51,Exposures,0)),0)","v":0},{"$f":"IFERROR(INDEX(Assumptions!$F$15:$F$25,MATCH('Hazard Data Entry'!F51,Exposures,0)),0)","v":0},{"$f":"IFERROR(INDEX(Assumptions!$F$15:$F$25,MATCH('Hazard Data Entry'!G51,Exposures,0)),0)","v":0},{"$f":"IFERROR(INDEX(Assumptions!$F$15:$F$25,MATCH('Hazard Data Entry'!H51,Exposures,0)),0)","v":0},{"$f":"'Hazard Data Entry'!I51","v":0},{"$f":"IFERROR(INDEX(Assumptions!$F$41:$F$51,MATCH('Hazard Data Entry'!J51,Levels_of_response,0)),0)","v":0},{"$f":"'Hazard Data Entry'!K51","v":0},{"$f":"'Hazard Data Entry'!L51","v":0}]
[null,null,{"$f":"'Hazard Data Entry'!B52","v":0},{"$f":"'Hazard Data Entry'!C52","v":0},{"$f":"IFERROR(INDEX(Assumptions!$F$15:$F$25,MATCH('Hazard Data Entry'!D52,Exposures,0)),0)","v":0},{"$f":"IFERROR(INDEX(Assumptions!$F$15:$F$25,MATCH('Hazard Data Entry'!E52,Exposures,0)),0)","v":0},{"$f":"IFERROR(INDEX(Assumptions!$F$15:$F$25,MATCH('Hazard Data Entry'!F52,Exposures,0)),0)","v":0},{"$f":"IFERROR(INDEX(Assumptions!$F$15:$F$25,MATCH('Hazard Data Entry'!G52,Exposures,0)),0)","v":0},{"$f":"IFERROR(INDEX(Assumptions!$F$15:$F$25,MATCH('Hazard Data Entry'!H52,Exposures,0)),0)","v":0},{"$f":"'Hazard Data Entry'!I52","v":0},{"$f":"IFERROR(INDEX(Assumptions!$F$41:$F$51,MATCH('Hazard Data Entry'!J52,Levels_of_response,0)),0)","v":0},{"$f":"'Hazard Data Entry'!K52","v":0},{"$f":"'Hazard Data Entry'!L52","v":0}]
[null,null,{"$f":"'Hazard Data Entry'!B53","v":0},{"$f":"'Hazard Data Entry'!C53","v":0},{"$f":"IFERROR(INDEX(Assumptions!$F$15:$F$25,MATCH('Hazard Data Entry'!D53,Exposures,0)),0)","v":0},{"$f":"IFERROR(INDEX(Assumptions!$F$15:$F$25,MATCH('Hazard Data Entry'!E53,Exposures,0)),0)","v":0},{"$f":"IFERROR(INDEX(Assumptions!$F$15:$F$25,MATCH('Hazard Data Entry'!F53,Exposures,0)),0)","v":0},{"$f":"IFERROR(INDEX(Assumptions!$F$15:$F$25,MATCH('Hazard Data Entry'!G53,Exposures,0)),0)","v":0},{"$f":"IFERROR(INDEX(Assumptions!$F$15:$F$25,MATCH('Hazard Data Entry'!H53,Exposures,0)),0)","v":0},{"$f":"'Hazard Data Entry'!I53","v":0},{"$f":"IFERROR(INDEX(Assumptions!$F$41:$F$51,MATCH('Hazard Data Entry'!J53,Levels_of_response,0)),0)","v":0},{"$f":"'Hazard Data Entry'!K53","v":0},{"$f":"'Hazard Data Entry'!L53","v":0}]
[null,null,{"$f":"'Hazard Data Entry'!B54","v":0},{"$f":"'Hazard Data Entry'!C54","v":0},{"$f":"IFERROR(INDEX(Assumptions!$F$15:$F$25,MATCH('Hazard Data Entry'!D54,Exposures,0)),0)","v":0},{"$f":"IFERROR(INDEX(Assumptions!$F$15:$F$25,MATCH('Hazard Data Entry'!E54,Exposures,0)),0)","v":0},{"$f":"IFERROR(INDEX(Assumptions!$F$15:$F$25,MATCH('Hazard Data Entry'!F54,Exposures,0)),0)","v":0},{"$f":"IFERROR(INDEX(Assumptions!$F$15:$F$25,MATCH('Hazard Data Entry'!G54,Exposures,0)),0)","v":0},{"$f":"IFERROR(INDEX(Assumptions!$F$15:$F$25,MATCH('Hazard Data Entry'!H54,Exposures,0)),0)","v":0},{"$f":"'Hazard Data Entry'!I54","v":0},{"$f":"IFERROR(INDEX(Assumptions!$F$41:$F$51,MATCH('Hazard Data Entry'!J54,Levels_of_response,0)),0)","v":0},{"$f":"'Hazard Data Entry'!K54","v":0},{"$f":"'Hazard Data Entry'!L54","v":0}]
[]
[]
[null,"End"]

{"sheet":"Risk Summary","index":8,"n_rows":9,"n_cols":3,"rows_kept":9,"cut":false,"hidden":false,"merged":[]}
[null,{"$f":"MdlTle","v":"Quick Risk Estimation (QRE) Tool"}]
[null,{"$f":"MID(CELL(\"filename\",B1),FIND(\"]\",CELL(\"filename\",B1))+1,255)","v":"Risk Summary"}]
[null,"บทสรุปความเสี่ยง"]
[]
[null,{"$f":"Information!C15","v":"ชื่อเมือง หรือ ท้องถิ่น:"},{"$f":"Information!$L$15","v":0}]
[null,{"$f":"Information!C17","v":"ข้อมูลเพิ่มเติมเกี่ยวกับเมือง (รวมทั้งรายละเอียดของภาคส่วนที่เกี่ยวข้อง และขอบเขตของการประเมิน):"},{"$f":"Information!$L$17","v":0}]
[null,{"$f":"Information!C20","v":"ผู้ทำการประเมิน:"},{"$f":"Information!$L$20","v":0}]
[null,{"$f":"Information!C22","v":"วันที่ประเมินเสร็จสิ้น: "},{"$f":"TEXT(Information!$L$22,\"DD MMM YYYY\")","v":"00 Jan 1900"}]
[null,{"$f":"Information!C24","v":"หากเป็นการประเมินซ้ำ หรือตรวจทาน โปรดระบุวันที่ตรวจทาน"},{"$f":"TEXT(Information!$L$24, \"DD MMM YYYY\")","v":"00 Jan 1900"}]

{"sheet":"Vulnerability Report","index":9,"n_rows":56,"n_cols":3,"rows_kept":56,"cut":false,"hidden":false,"merged":[]}
[null,{"$f":"MdlTle","v":"Quick Risk Estimation (QRE) Tool"}]
[null,{"$f":"MID(CELL(\"filename\",B1),FIND(\"]\",CELL(\"filename\",B1))+1,255)","v":"Vulnerability Report"}]
[null,"รายงานความเปราะบาง"]
[]
[null,{"$f":"Information!C15","v":"ชื่อเมือง หรือ ท้องถิ่น:"},{"$f":"Information!$L$15","v":0}]
[null,{"$f":"Information!C17","v":"ข้อมูลเพิ่มเติมเกี่ยวกับเมือง (รวมทั้งรายละเอียดของภาคส่วนที่เกี่ยวข้อง และขอบเขตของการประเมิน):"},{"$f":"Information!$L$17","v":0}]
[null,{"$f":"Information!C20","v":"ผู้ทำการประเมิน:"},{"$f":"Information!$L$20","v":0}]
[null,{"$f":"Information!C22","v":"วันที่ประเมินเสร็จสิ้น: "},{"$f":"TEXT(Information!$L$22,\"DD MMM YYYY\")","v":"00 Jan 1900"}]
[null,{"$f":"Information!C24","v":"หากเป็นการประเมินซ้ำ หรือตรวจทาน โปรดระบุวันที่ตรวจทาน"},{"$f":"TEXT(Information!$L$24, \"DD MMM YYYY\")","v":"00 Jan 1900"}]
[]
[]
[]
[]
[]
[]
[]
[]
[]
[]
[]
[]
[]
[]
[]
[]
[]
[]
[]
[]
[]
[]
[]
[]
[]
[]
[]
[]
[]
[]
[]
[]
[]
[]
[]
[]
[]
[]
[]
[]
[]
[]
[]
[]
[null,{"$f":"MdlTle","v":"Quick Risk Estimation (QRE) Tool"}]
[null,{"$f":"MID(CELL(\"filename\",B54),FIND(\"]\",CELL(\"filename\",B54))+1,255)","v":"Vulnerability Report"}]
[null,"รายงานความเปราะบาง"]

{"sheet":"Contacts","index":10,"n_rows":14,"n_cols":2,"rows_kept":14,"cut":false,"hidden":false,"merged":[[6,0,6,1]]}
[{"$f":"MdlTle","v":"Quick Risk Estimation (QRE) Tool"}]
[{"$f":"MID(CELL(\"filename\",A1),FIND(\"]\",CELL(\"filename\",A1))+1,255)","v":"Contacts"}]
["ติดต่อสอบถาม"]
[]
[]
[]
["หากมีคำถามหรือข้อสงสัย สามารถติดต่อเจ้าหน้าที่ประจำภูมิภาคต่างๆ ได้ตามอีเมลด้านล่าง"]
[]
["MCR2030 Global Secretariat","mcr2030-global@un.org"]
["MCR2030 Regional Secretariat ประจำภาคพื้นแอฟริกา","mcr2030-africa@un.org"]
["MCR2030 Regional Secretariat ประจำภาคพื้นอเมริกาและหมู่เกาะคาริบเบียน","mcr2030-amc@un.org"]
["MCR2030 Regional Secretariat ประจำภาคพื้นอาหรับ","mcr2030-arabstates@un.org"]
["MCR2030 Regional Secretariat ประจำภาคพื้นเอเชียและแปซิฟิค","mcr2030-ap@un.org"]
["MCR2030 Regional Secretariat ประจำภาคพื้นยุโรปและเอเชียกลาง","mcr2030-eca@un.org"]